Workbook

Sheet Start

Sheet Frequency modelling
A2: E[λ] | B2: 0.1 | C2: The expected value of λ
A3: Lower Bound | B3: 0.06666667 | C3: The lower bound of λ
A4: Upper Bound | B4: 0.14285714 | C4: The upper bound of λ
A5: Probability | B5: 0.66666667 | C5: The probability that λ will fall between the bounds
A7: Years | B7: 10 | C7: Number of years of history
A8: Events | B8: 2 | C8: Total number of events in those years
A13: α | B13: 6.660527357 | C13: Initial value of α
A14: β | B14: 0.01501382648 | C14: Initial value of β
A16: Objective | B16: =GAMMADIST(B_Upper,alpha,beta,TRUE)-GAMMADIST(A_Lower,alpha,beta,TRUE) -> 0.6666666719
A17: λ | B17: =alpha*beta -> 0.100000002
A19: α hat | B19: =alpha+Events -> 8.660527357 | C19: Value of α taking into account event information
A20: β hat | B20: =beta/(1+beta*Years) -> 0.01305393181 | C20: Value of β taking into account event information
A21: λ hat | B21: =alpha_hat*beta_hat -> 0.1130539336 | C21: Updated λ

Sheet Severity modelling
B1: Log Normal | H1: Log Normal | J1: Pareto | K1: Weibull
A2: Expected loss | B2: 20 | D2: Expected loss | E2: 20000000 | G2: Expected loss | H2: 0 | J2: 10
A3: 95% quantile | B3: 100 | D3: 95% quantile | E3: 100000000 | G3: Lower bound | J3: 8
D4: Distribution | E4: Lognormal | G4: Upper bound | J4: 12
A5: mu | B5: 2.995732274 | G5: Probability | H5: 0.66666667 | J5: 0.66666667
A6: sigma | B6: 0.9784687721 | D6: Param 1 | E6: 16.81124283
D7: Param 2 | E7: 4.100151562 | G7: LN Sigma | H7: 1 | I7: Par B | J7: 2
A8: Objective | B8: =EXP(mu + sigma * NORMSINV(0.95)) -> 99.99999962 | G8: LN MuZero | H8: 1 | I8: Par Alpha | J8: 23.08570333
A9: Loss | B9: =EXP(mu) -> 20 | D9: Objective | E9: =(Distribution(DistName, DistQuantile, DistParam1, DistParam2, TRUE) - 0.95)^2 -> 0.08840681567 | G9: LN SigmaZero | H9: 1 | I9: Par Beta | J9: 0.4331685202
D10: Loss | E10: =(Distribution(DistName, DistExpLoss, DistParam1, DistParam2, TRUE) - 0.5)^2 -> 0
A11: Alt Objective | B11: =(EXP(mu + sigma * NORMSINV(0.95)) - Quantile)^2 + (EXP(mu) - Expected_loss)^2 -> 1.454092068e-13 | G11: Objective | H11: =NORMSDIST((LN(LN_UpperBound) - (LN_Sigma^2)/2 - LN_MuZero) / LN_SigmaZero) - NORMSDIST((LN(LN_LowerBound) - (LN_Sigma^2)/2 - LN_MuZero) / LN_SigmaZero) ->  | J11: =(GAMMADIST(Par_UpperBound, Par_Alpha, Par_Beta, TRUE) - GAMMADIST(Par_LowerBound, Par_Alpha, Par_Beta, TRUE)) / (1 - GAMMADIST(Par_B, Par_Alpha, Par_Beta, TRUE)) -> 0.6666666794
G12: Loss | H12: =EXP(LN_MuZero + (LN_Sigma^2)/2 + (LN_SigmaZero^2)/2) -> 7.389056099 | J12: =Par_Alpha * Par_Beta * ((1 - GAMMADIST(Par_B, Par_Alpha + 1, Par_Beta, TRUE)) / (1 - GAMMADIST(Par_B, Par_Alpha, Par_Beta, TRUE))) -> 9.999999957

Sheet Sheet1
E1: Weibull | F1: LogNormal | G1: Burr | O1: Discount Rate
A2: 2000 | B2: 13 | D2: 0.01 | E2: =_xlfn.WEIBULL.DIST(D2,0.909448950865661,1.49631510724688,FALSE) -> 0.9465379591 | F2: =_xlfn.LOGNORM.DIST(D2,0,0.978468774402127,FALSE) -> 0.0006313777297 | G2: =BurrDist(D2,1.8,1,FALSE) -> 0.04519124986 | H2: =LogNormPDF(D2,0,0.978468774402127) -> 0.0006313777297 | I2: =NORMSDIST(1) -> 0.8413447461 | L2: Capital | M2: Maintenance | N2: Lifetime | O2: 0.01 | P2: 0.03 | Q2: 0.06 | R2: 0.1
A3: 2001 | B3: 49 | D3: 0.02 | E3: =_xlfn.WEIBULL.DIST(D3,0.909448950865661,1.49631510724688,FALSE) -> 0.8807798748 | F3: =_xlfn.LOGNORM.DIST(D3,0,0.978468774402127,FALSE) -> 0.006890721208 | G3: =BurrDist(D3,1.8,1,FALSE) -> 0.07858453504 | H3: =LogNormPDF(D3,0,0.978468774402127) -> 0.006890721208 | I3: =LOGNORMDIST(1,1,1) -> 0.1586552539 | L3: 35 | M3: 3.5 | N3: 40 | O3: =dpv($L3,$M3,$N3,O$2) -> 149.9214014 | P3: =dpv($L3,$M3,$N3,P$2) -> 115.9017019 | Q3: 87.66203905 | R3: 69.22667751
A4: 2002 | B4: 36 | D4: 0.03 | E4: 0.8415813958 | F4: 0.02210087786 | G4: 0.1084912368 | H4: 0.02210087786 | I4: =NORMDIST(LN(1), 0, 1, FALSE) -> 0.3989422804 | L4: 100 | M4: 19.5 | N4: 40 | O4: =dpv($L4,$M4,$N4,O$2) -> 740.2763792 | P4: 550.7380535 | Q4: 393.402789 | R4: 290.691489
A5: 2003 | B5: 31 | D5: 0.04 | E5: 0.8129668123 | F5: 0.04553002811 | G5: 0.1362319367 | H5: 0.04553002811 | I5: =LogNormPDF(1, 1, 1) -> 0.2419707245 | L5: 152.5 | M5: 30 | N5: 40 | O5: 1137.540583 | P5: 845.9431592 | Q5: 603.8889061 | R5: 445.8715216
A6: 2004 | B6: 44 | D6: 0.05 | E6: 0.7900807809 | F6: 0.07514763001 | G6: 0.1623693952 | H6: 0.07514763001 | L6: 0.5 | M6: 0.05 | N6: 40 | O6: 2.141734306 | P6: 1.655738599 | Q6: 1.252314844 | R6: 0.9889525359
D7: 0.06 | E7: 0.7707988721 | F7: 0.1088816669 | G7: 0.1872069036 | H7: 0.1088816669
B8: =LN(B2) -> 2.564949357 | D8: 0.07 | E8: 0.7540012681 | F8: 0.1449932196 | G8: 0.210929233 | H8: 0.1449932196
B9: =LN(B3) -> 3.891820298 | D9: 0.08 | E9: 0.7390250944 | F9: 0.1821331409 | G9: 0.2336579342 | H9: 0.1821331409
B10: 3.583518938 | D10: 0.09 | E10: 0.7254453132 | F10: 0.2192986217 | G10: 0.2554773678 | H10: 0.2192986217
B11: 3.433987204 | D11: 0.1 | E11: 0.7129729206 | F11: 0.2557670746 | G11: 0.2764485068 | H11: 0.2557670746
B12: 3.784189634 | D12: 0.11 | E12: 0.701402363 | F12: 0.2910332081 | G12: 0.2966169029 | H12: 0.2910332081
D13: 0.12 | E13: 0.6905821322 | F13: 0.3247564732 | G13: 0.3160175859 | H13: 0.3247564732
A14: mu hat | B14: =SUM(B8:B12)/COUNT(B8:B12) -> 3.451693086 | D14: 0.13 | E14: 0.6803972712 | F14: 0.3567194997 | G14: 0.334678229 | H14: 0.3567194997
D15: 0.14 | E15: 0.6707584337 | F15: 0.3867960764 | G15: 0.3526212736 | H15: 0.3867960764
B16: =(B8-$B$14)^2 -> 0.786314441 | D16: 0.15 | E16: 0.6615947567 | F16: 0.414926818 | G16: 0.369865403 | H16: 0.414926818
B17: =(B9-$B$14)^2 -> 0.1937119624 | D17: 0.16 | E17: 0.6528490544 | F17: 0.4411008099 | G17: 0.3864265885 | H17: 0.4411008099
B18: 0.01737805525 | D18: 0.17 | E18: 0.6444744813 | F18: 0.4653418209 | G18: 0.4023188475 | H18: 0.4653418209
B19: 0.0003134982574 | D19: 0.18 | E19: 0.6364321571 | F19: 0.4876979777 | G19: 0.4175548029 | H19: 0.4876979777
B20: 0.1105539541 | D20: 0.19 | E20: 0.6286894372 | F20: 0.5082340514 | G20: 0.4321460986 | H20: 0.5082340514
D21: 0.2 | E21: 0.6212186308 | F21: 0.5270257114 | G21: 0.4461037128 | H21: 0.5270257114
A22: sigma hat | B22: =SUM(B16:B20)/COUNT(B16:B20) -> 0.2216543822 | D22: 0.21 | E22: 0.6139960322 | F22: 0.5441552612 | G22: 0.459438194 | H22: 0.5441552612
D23: 0.22 | E23: 0.60700118 | F23: 0.5597084916 | G23: 0.4721598394 | H23: 0.5597084916
D24: 0.23 | E24: 0.6002162803 | F24: 0.5737723744 | G24: 0.4842788297 | H24: 0.5737723744
D25: 0.24 | E25: 0.5936257539 | F25: 0.5864333921 | G25: 0.4958053292 | H25: 0.5864333921
D26: 0.25 | E26: 0.5872158758 | F26: 0.5977763448 | G26: 0.5067495601 | H26: 0.5977763448
D27: 0.26 | E27: 0.5809744862 | F27: 0.6078835187 | G27: 0.5171218554 | H27: 0.6078835187
D28: 0.27 | E28: 0.5748907548 | F28: 0.6168341247 | G28: 0.5269326955 | H28: 0.6168341247
D29: 0.28 | E29: 0.5689549897 | F29: 0.6247039409 | G29: 0.5361927319 | H29: 0.6247039409
D30: 0.29 | E30: 0.5631584783 | F30: 0.6315651061 | G30: 0.5449127999 | H30: 0.6315651061
D31: 0.3 | E31: 0.5574933561 | F31: 0.6374860263 | G31: 0.5531039232 | H31: 0.6374860263
D32: 0.31 | E32: 0.5519524968 | F32: 0.6425313637 | G32: 0.5607773122 | H32: 0.6425313637
D33: 0.32 | E33: 0.5465294195 | F33: 0.6467620851 | G33: 0.5679443566 | H33: 0.6467620851
D34: 0.33 | E34: 0.5412182104 | F34: 0.6502355541 | G34: 0.574616614 | H34: 0.6502355541
D35: 0.34 | E35: 0.5360134561 | F35: 0.6530056514 | G35: 0.5808057953 | H35: 0.6530056514
D36: 0.35 | E36: 0.5309101865 | F36: 0.6551229156 | G36: 0.5865237478 | H36: 0.6551229156
D37: 0.36 | E37: 0.525903826 | F37: 0.656634696 | G37: 0.5917824363 | H37: 0.656634696
D38: 0.37 | E38: 0.5209901507 | F38: 0.6575853113 | G38: 0.5965939231 | H38: 0.6575853113
D39: 0.38 | E39: 0.5161652517 | F39: 0.6580162118 | G39: 0.6009703473 | H39: 0.6580162118
D40: 0.39 | E40: 0.5114255033 | F40: 0.6579661391 | G40: 0.6049239033 | H40: 0.6579661391
D41: 0.4 | E41: 0.506767535 | F41: 0.6574712845 | G41: 0.6084668194 | H41: 0.6574712845
D42: 0.41 | E42: 0.5021882066 | F42: 0.6565654417 | G42: 0.6116113365 | H42: 0.6565654417
D43: 0.42 | E43: 0.4976845867 | F43: 0.6552801544 | G43: 0.6143696874 | H43: 0.6552801544
D44: 0.43 | E44: 0.4932539338 | F44: 0.6536448572 | G44: 0.616754076 | H44: 0.6536448572
D45: 0.44 | E45: 0.4888936792 | F45: 0.65168701 | G45: 0.6187766577 | H45: 0.65168701
D46: 0.45 | E46: 0.4846014117 | F46: 0.6494322253 | G46: 0.6204495206 | H46: 0.6494322253
D47: 0.46 | E47: 0.4803748646 | F47: 0.6469043884 | G47: 0.6217846669 | H47: 0.6469043884
D48: 0.47 | E48: 0.4762119035 | F48: 0.6441257709 | G48: 0.6227939961 | H48: 0.6441257709
D49: 0.48 | E49: 0.4721105152 | F49: 0.6411171372 | G49: 0.6234892887 | H49: 0.6411171372
D50: 0.49 | E50: 0.4680687989 | F50: 0.6378978445 | G50: 0.6238821911 | H50: 0.6378978445
D51: 0.5 | E51: 0.4640849565 | F51: 0.6344859367 | G51: 0.6239842012 | H51: 0.6344859367
D52: 0.51 | E52: 0.4601572854 | F52: 0.6308982318 | G52: 0.6238066557 | H52: 0.6308982318
D53: 0.52 | E53: 0.4562841712 | F53: 0.6271504041 | G53: 0.6233607179 | H53: 0.6271504041
D54: 0.53 | E54: 0.4524640813 | F54: 0.623257061 | G54: 0.6226573668 | H54: 0.623257061
D55: 0.54 | E55: 0.448695559 | F55: 0.6192318141 | G55: 0.6217073872 | H55: 0.6192318141
D56: 0.55 | E56: 0.4449772182 | F56: 0.6150873465 | G56: 0.6205213608 | H56: 0.6150873465
D57: 0.56 | E57: 0.4413077385 | F57: 0.6108354743 | G57: 0.6191096583 | H57: 0.6108354743
D58: 0.57 | E58: 0.4376858609 | F58: 0.6064872054 | G58: 0.6174824327 | H58: 0.6064872054
D59: 0.58 | E59: 0.4341103836 | F59: 0.6020527932 | G59: 0.6156496129 | H59: 0.6020527932
D60: 0.59 | E60: 0.4305801582 | F60: 0.597541787 | G60: 0.613620899 | H60: 0.597541787
D61: 0.6 | E61: 0.4270940869 | F61: 0.5929630791 | G61: 0.6114057576 | H61: 0.5929630791
D62: 0.61 | E62: 0.4236511183 | F62: 0.5883249487 | G62: 0.6090134188 | H62: 0.5883249487
D63: 0.62 | E63: 0.4202502456 | F63: 0.5836351022 | G63: 0.6064528733 | H63: 0.5836351022
D64: 0.63 | E64: 0.4168905033 | F64: 0.5789007121 | G64: 0.6037328706 | H64: 0.5789007121
D65: 0.64 | E65: 0.4135709647 | F65: 0.5741284514 | G65: 0.6008619174 | H65: 0.5741284514
D66: 0.65 | E66: 0.41029074 | F66: 0.5693245274 | G66: 0.5978482775 | H66: 0.5693245274
D67: 0.66 | E67: =_xlfn.WEIBULL.DIST(D67,0.909448950865661,1.49631510724688,FALSE) -> 0.4070489742 | F67: =_xlfn.LOGNORM.DIST(D67,0,0.978468774402127,FALSE) -> 0.5644947121 | G67: =BurrDist(D67,1.8,1,FALSE) -> 0.5946999712 | H67: =LogNormPDF(D67,0,0.978468774402127) -> 0.5644947121
D68: 0.67 | E68: 0.4038448446 | F68: 0.5596443711 | G68: 0.5914247764 | H68: 0.5596443711
D69: 0.68 | E69: 0.4006775596 | F69: 0.5547784901 | G69: 0.5880302292 | H69: 0.5547784901
D70: 0.69 | E70: 0.3975463568 | F70: 0.5499017 | G70: 0.5845236259 | H70: 0.5499017
D71: 0.7 | E71: 0.3944505012 | F71: 0.5450183003 | G71: 0.5809120245 | H71: 0.5450183003
D72: 0.71 | E72: 0.3913892842 | F72: 0.5401322805 | G72: 0.5772022474 | H72: 0.5401322805
D73: 0.72 | E73: 0.3883620219 | F73: 0.5352473405 | G73: 0.5734008839 | H73: 0.5352473405
D74: 0.73 | E74: 0.3853680538 | F74: 0.5303669095 | G74: 0.5695142935 | H74: 0.5303669095
D75: 0.74 | E75: 0.3824067421 | F75: 0.5254941639 | G75: 0.5655486093 | H75: 0.5254941639
D76: 0.75 | E76: 0.3794774699 | F76: 0.5206320431 | G76: 0.5615097414 | H76: 0.5206320431
D77: 0.76 | E77: 0.3765796407 | F77: 0.5157832655 | G77: 0.5574033807 | H77: 0.5157832655
D78: 0.77 | E78: 0.373712677 | F78: 0.5109503426 | G78: 0.5532350036 | H78: 0.5109503426
D79: 0.78 | E79: 0.37087602 | F79: 0.5061355925 | G79: 0.5490098756 | H79: 0.5061355925
D80: 0.79 | E80: 0.368069128 | F80: 0.5013411523 | G80: 0.5447330558 | H80: 0.5013411523
D81: 0.8 | E81: 0.3652914762 | F81: 0.4965689902 | G81: 0.5404094019 | H81: 0.4965689902
D82: 0.81 | E82: 0.3625425556 | F82: 0.4918209157 | G82: 0.5360435744 | H82: 0.4918209157
D83: 0.82 | E83: 0.3598218723 | F83: 0.4870985907 | G83: 0.5316400417 | H83: 0.4870985907
D84: 0.83 | E84: 0.3571289471 | F84: 0.4824035386 | G84: 0.5272030844 | H84: 0.4824035386
D85: 0.84 | E85: 0.3544633147 | F85: 0.4777371532 | G85: 0.5227368007 | H85: 0.4777371532
D86: 0.85 | E86: 0.3518245229 | F86: 0.4731007076 | G86: 0.5182451112 | H86: 0.4731007076
D87: 0.86 | E87: 0.3492121324 | F87: 0.4684953612 | G87: 0.5137317636 | H87: 0.4684953612
D88: 0.87 | E88: 0.3466257161 | F88: 0.4639221679 | G88: 0.5092003377 | H88: 0.4639221679
D89: 0.88 | E89: 0.3440648584 | F89: 0.4593820825 | G89: 0.5046542504 | H89: 0.4593820825
D90: 0.89 | E90: 0.3415291552 | F90: 0.4548759672 | G90: 0.5000967606 | H90: 0.4548759672
D91: 0.9 | E91: 0.3390182129 | F91: 0.4504045977 | G91: 0.4955309739 | H91: 0.4504045977
D92: 0.91 | E92: 0.3365316485 | F92: 0.4459686688 | G92: 0.4909598478 | H92: 0.4459686688
D93: 0.92 | E93: 0.3340690887 | F93: 0.4415687997 | G93: 0.486386196 | H93: 0.4415687997
D94: 0.93 | E94: 0.33163017 | F94: 0.4372055391 | G94: 0.4818126934 | H94: 0.4372055391
D95: 0.94 | E95: 0.3292145378 | F95: 0.4328793693 | G95: 0.4772418807 | H95: 0.4328793693
D96: 0.95 | E96: 0.3268218466 | F96: 0.4285907116 | G96: 0.4726761691 | H96: 0.4285907116
D97: 0.96 | E97: 0.3244517593 | F97: 0.4243399291 | G97: 0.4681178443 | H97: 0.4243399291
D98: 0.97 | E98: 0.322103947 | F98: 0.4201273316 | G98: 0.4635690718 | H98: 0.4201273316
D99: 0.98 | E99: 0.3197780887 | F99: 0.4159531787 | G99: 0.4590319003 | H99: 0.4159531787
D100: 0.99 | E100: 0.3174738711 | F100: 0.4118176829 | G100: 0.4545082668 | H100: 0.4118176829
D101: 1 | E101: 0.3151909881 | F101: 0.4077210135 | G101: 0.45 | H101: 0.4077210135
D102: 1.01 | E102: 0.3129291408 | F102: 0.403663299 | G102: 0.4455088249 | H102: 0.403663299
D103: 1.02 | E103: 0.3106880371 | F103: 0.3996446298 | G103: 0.4410363664 | H103: 0.3996446298
D104: 1.03 | E104: 0.3084673915 | F104: 0.3956650613 | G104: 0.4365841536 | H104: 0.3956650613
D105: 1.04 | E105: 0.306266925 | F105: 0.3917246161 | G105: 0.4321536231 | H105: 0.3917246161
D106: 1.05 | E106: 0.3040863646 | F106: 0.3878232859 | G106: 0.427746123 | H106: 0.3878232859
D107: 1.06 | E107: 0.3019254435 | F107: 0.3839610343 | G107: 0.4233629162 | H107: 0.3839610343
D108: 1.07 | E108: 0.2997839004 | F108: 0.3801377986 | G108: 0.4190051841 | H108: 0.3801377986
D109: 1.08 | E109: 0.2976614797 | F109: 0.3763534913 | G109: 0.4146740299 | H109: 0.3763534913
D110: 1.09 | E110: 0.2955579313 | F110: 0.3726080026 | G110: 0.4103704818 | H110: 0.3726080026
D111: 1.1 | E111: 0.2934730102 | F111: 0.3689012015 | G111: 0.4060954962 | H111: 0.3689012015
D112: 1.11 | E112: 0.2914064766 | F112: 0.3652329374 | G112: 0.4018499608 | H112: 0.3652329374
D113: 1.12 | E113: 0.2893580954 | F113: 0.3616030419 | G113: 0.3976346976 | H113: 0.3616030419
D114: 1.13 | E114: 0.2873276366 | F114: 0.3580113299 | G114: 0.3934504656 | H114: 0.3580113299
D115: 1.14 | E115: 0.2853148746 | F115: 0.3544576012 | G115: 0.3892979638 | H115: 0.3544576012
D116: 1.15 | E116: 0.2833195882 | F116: 0.3509416412 | G116: 0.3851778338 | H116: 0.3509416412
D117: 1.16 | E117: 0.2813415607 | F117: 0.3474632226 | G117: 0.3810906624 | H117: 0.3474632226
D118: 1.17 | E118: 0.2793805796 | F118: 0.344022106 | G118: 0.3770369839 | H118: 0.344022106
D119: 1.18 | E119: 0.2774364365 | F119: 0.3406180414 | G119: 0.3730172831 | H119: 0.3406180414
D120: 1.19 | E120: 0.2755089269 | F120: 0.3372507685 | G120: 0.3690319969 | H120: 0.3372507685
D121: 1.2 | E121: 0.2735978502 | F121: 0.3339200183 | G121: 0.365081517 | H121: 0.3339200183
D122: 1.21 | E122: 0.2717030097 | F122: 0.3306255134 | G122: 0.361166192 | H122: 0.3306255134
D123: 1.22 | E123: 0.2698242121 | F123: 0.3273669689 | G123: 0.3572863294 | H123: 0.3273669689
D124: 1.23 | E124: 0.2679612679 | F124: 0.3241440934 | G124: 0.3534421977 | H124: 0.3241440934
D125: 1.24 | E125: 0.2661139908 | F125: 0.3209565893 | G125: 0.3496340283 | H125: 0.3209565893
D126: 1.25 | E126: 0.2642821981 | F126: 0.3178041537 | G126: 0.3458620172 | H126: 0.3178041537
D127: 1.26 | E127: 0.2624657102 | F127: 0.3146864788 | G127: 0.3421263271 | H127: 0.3146864788
D128: 1.27 | E128: 0.2606643507 | F128: 0.3116032526 | G128: 0.3384270889 | H128: 0.3116032526
D129: 1.28 | E129: 0.2588779465 | F129: 0.3085541594 | G129: 0.3347644033 | H129: 0.3085541594
D130: 1.29 | E130: 0.2571063272 | F130: 0.3055388805 | G130: 0.3311383426 | H130: 0.3055388805
D131: 1.3 | E131: =_xlfn.WEIBULL.DIST(D131,0.909448950865661,1.49631510724688,FALSE) -> 0.2553493256 | F131: =_xlfn.LOGNORM.DIST(D131,0,0.978468774402127,FALSE) -> 0.3025570941 | G131: =BurrDist(D131,1.8,1,FALSE) -> 0.3275489519 | H131: =LogNormPDF(D131,0,0.978468774402127) -> 0.3025570941
D132: 1.31 | E132: 0.2536067772 | F132: 0.2996084764 | G132: 0.3239962509 | H132: 0.2996084764
D133: 1.32 | E133: 0.2518785204 | F133: 0.2966927014 | G133: 0.3204802351 | H133: 0.2966927014
D134: 1.33 | E134: 0.2501643962 | F134: 0.2938094419 | G134: 0.3170008772 | H134: 0.2938094419
D135: 1.34 | E135: 0.2484642483 | F135: 0.2909583691 | G135: 0.3135581282 | H135: 0.2909583691
D136: 1.35 | E136: 0.2467779232 | F136: 0.2881391538 | G136: 0.3101519191 | H136: 0.2881391538
D137: 1.36 | E137: 0.2451052695 | F137: 0.2853514659 | G137: 0.3067821614 | H137: 0.2853514659
D138: 1.37 | E138: 0.2434461386 | F138: 0.2825949752 | G138: 0.3034487488 | H138: 0.2825949752
D139: 1.38 | E139: 0.2418003843 | F139: 0.2798693516 | G139: 0.3001515581 | H139: 0.2798693516
D140: 1.39 | E140: 0.2401678625 | F140: 0.277174265 | G140: 0.2968904501 | H140: 0.277174265
D141: 1.4 | E141: 0.2385484316 | F141: 0.274509386 | G141: 0.2936652705 | H141: 0.274509386
D142: 1.41 | E142: 0.2369419521 | F142: 0.2718743859 | G142: 0.2904758514 | H142: 0.2718743859
D143: 1.42 | E143: 0.2353482869 | F143: 0.2692689368 | G143: 0.2873220115 | H143: 0.2692689368
D144: 1.43 | E144: 0.2337673007 | F144: 0.2666927119 | G144: 0.2842035574 | H144: 0.2666927119
D145: 1.44 | E145: 0.2321988607 | F145: 0.2641453858 | G145: 0.2811202843 | H145: 0.2641453858
D146: 1.45 | E146: 0.2306428357 | F146: 0.2616266345 | G146: 0.2780719767 | H146: 0.2616266345
D147: 1.46 | E147: 0.2290990968 | F147: 0.2591361354 | G147: 0.2750584093 | H147: 0.2591361354
D148: 1.47 | E148: 0.2275675169 | F148: 0.2566735677 | G148: 0.2720793475 | H148: 0.2566735677
D149: 1.48 | E149: 0.226047971 | F149: 0.2542386126 | G149: 0.2691345484 | H149: 0.2542386126
D150: 1.49 | E150: 0.2245403356 | F150: 0.2518309531 | G150: 0.266223761 | H150: 0.2518309531
D151: 1.5 | E151: 0.2230444894 | F151: 0.2494502741 | G151: 0.2633467274 | H151: 0.2494502741
D152: 1.51 | E152: 0.2215603127 | F152: 0.2470962631 | G152: 0.2605031826 | H152: 0.2470962631
D153: 1.52 | E153: 0.2200876876 | F153: 0.2447686094 | G153: 0.257692856 | H153: 0.2447686094
D154: 1.53 | E154: 0.2186264977 | F154: 0.2424670049 | G154: 0.254915471 | H154: 0.2424670049
D155: 1.54 | E155: 0.2171766287 | F155: 0.2401911438 | G155: 0.2521707463 | H155: 0.2401911438
D156: 1.55 | E156: 0.2157379675 | F156: 0.2379407228 | G156: 0.2494583958 | H156: 0.2379407228
D157: 1.56 | E157: 0.2143104028 | F157: 0.2357154411 | G157: 0.2467781292 | H157: 0.2357154411
D158: 1.57 | E158: 0.2128938249 | F158: 0.2335150006 | G158: 0.2441296529 | H158: 0.2335150006
D159: 1.58 | E159: 0.2114881256 | F159: 0.2313391056 | G159: 0.2415126695 | H159: 0.2313391056
D160: 1.59 | E160: 0.2100931982 | F160: 0.2291874635 | G160: 0.2389268792 | H160: 0.2291874635
D161: 1.6 | E161: 0.2087089374 | F161: 0.2270597839 | G161: 0.2363719792 | H161: 0.2270597839
D162: 1.61 | E162: 0.2073352395 | F162: 0.2249557796 | G162: 0.2338476649 | H162: 0.2249557796
D163: 1.62 | E163: 0.2059720021 | F163: 0.2228751658 | G163: 0.2313536297 | H163: 0.2228751658
D164: 1.63 | E164: 0.2046191242 | F164: 0.220817661 | G164: 0.2288895654 | H164: 0.220817661
D165: 1.64 | E165: 0.2032765063 | F165: 0.2187829861 | G165: 0.2264551628 | H165: 0.2187829861
D166: 1.65 | E166: 0.20194405 | F166: 0.2167708649 | G166: 0.2240501114 | H166: 0.2167708649
D167: 1.66 | E167: 0.2006216584 | F167: 0.2147810244 | G167: 0.2216741004 | H167: 0.2147810244
D168: 1.67 | E168: 0.1993092357 | F168: 0.2128131941 | G168: 0.2193268182 | H168: 0.2128131941
D169: 1.68 | E169: 0.1980066877 | F169: 0.2108671065 | G169: 0.2170079532 | H169: 0.2108671065
D170: 1.69 | E170: 0.196713921 | F170: 0.2089424972 | G170: 0.2147171938 | H170: 0.2089424972
D171: 1.7 | E171: 0.1954308438 | F171: 0.2070391044 | G171: 0.2124542286 | H171: 0.2070391044
D172: 1.71 | E172: 0.1941573652 | F172: 0.2051566693 | G172: 0.2102187466 | H172: 0.2051566693
D173: 1.72 | E173: 0.1928933957 | F173: 0.2032949361 | G173: 0.2080104375 | H173: 0.2032949361
D174: 1.73 | E174: 0.1916388467 | F174: 0.2014536519 | G174: 0.2058289916 | H174: 0.2014536519
D175: 1.74 | E175: 0.1903936309 | F175: 0.1996325664 | G175: 0.2036741004 | H175: 0.1996325664
D176: 1.75 | E176: 0.1891576622 | F176: 0.1978314325 | G176: 0.2015454563 | H176: 0.1978314325
D177: 1.76 | E177: 0.1879308553 | F177: 0.1960500058 | G177: 0.1994427531 | H177: 0.1960500058
D178: 1.77 | E178: 0.1867131262 | F178: 0.1942880448 | G178: 0.1973656858 | H178: 0.1942880448
D179: 1.78 | E179: 0.1855043919 | F179: 0.192545311 | G179: 0.1953139511 | H179: 0.192545311
D180: 1.79 | E180: 0.1843045703 | F180: 0.1908215684 | G180: 0.1932872472 | H180: 0.1908215684
D181: 1.8 | E181: 0.1831135804 | F181: 0.1891165841 | G181: 0.191285274 | H181: 0.1891165841
D182: 1.81 | E182: 0.1819313424 | F182: 0.1874301279 | G182: 0.1893077334 | H182: 0.1874301279
D183: 1.82 | E183: 0.1807577771 | F183: 0.1857619723 | G183: 0.1873543292 | H183: 0.1857619723
D184: 1.83 | E184: 0.1795928065 | F184: 0.1841118929 | G184: 0.185424767 | H184: 0.1841118929
D185: 1.84 | E185: 0.1784363534 | F185: 0.1824796676 | G185: 0.1835187547 | H185: 0.1824796676
D186: 1.85 | E186: 0.1772883418 | F186: 0.1808650773 | G186: 0.1816360024 | H186: 0.1808650773
D187: 1.86 | E187: 0.1761486962 | F187: 0.1792679056 | G187: 0.1797762224 | H187: 0.1792679056
D188: 1.87 | E188: 0.1750173424 | F188: 0.1776879386 | G188: 0.1779391291 | H188: 0.1776879386
D189: 1.88 | E189: 0.1738942068 | F189: 0.1761249653 | G189: 0.1761244396 | H189: 0.1761249653
D190: 1.89 | E190: 0.1727792168 | F190: 0.1745787772 | G190: 0.1743318732 | H190: 0.1745787772
D191: 1.9 | E191: 0.1716723007 | F191: 0.1730491685 | G191: 0.1725611517 | H191: 0.1730491685
D192: 1.91 | E192: 0.1705733874 | F192: 0.1715359359 | G192: 0.1708119996 | H192: 0.1715359359
D193: 1.92 | E193: 0.1694824069 | F193: 0.1700388787 | G193: 0.1690841436 | H193: 0.1700388787
D194: 1.93 | E194: 0.1683992898 | F194: 0.1685577989 | G194: 0.1673773133 | H194: 0.1685577989
D195: 1.94 | E195: =_xlfn.WEIBULL.DIST(D195,0.909448950865661,1.49631510724688,FALSE) -> 0.1673239677 | F195: =_xlfn.LOGNORM.DIST(D195,0,0.978468774402127,FALSE) -> 0.1670925007 | G195: =BurrDist(D195,1.8,1,FALSE) -> 0.1656912407 | H195: =LogNormPDF(D195,0,0.978468774402127) -> 0.1670925007
D196: 1.95 | E196: 0.1662563728 | F196: 0.1656427911 | G196: 0.1640256606 | H196: 0.1656427911
D197: 1.96 | E197: 0.1651964382 | F197: 0.1642084794 | G197: 0.1623803103 | H197: 0.1642084794
D198: 1.97 | E198: 0.1641440977 | F198: 0.1627893775 | G198: 0.16075493 | H198: 0.1627893775
D199: 1.98 | E199: 0.1630992859 | F199: 0.1613852995 | G199: 0.1591492624 | H199: 0.1613852995
D200: 1.99 | E200: 0.162061938 | F200: 0.1599960621 | G200: 0.1575630531 | H200: 0.1599960621
... 101 more rows

Sheet MLE
B1: Log normal | E1: Weibull
B2: Log(x) | C2: (Log(x) - muhat)^2 | E2: x^beta | F2: x^beta * log(x)
A3: 50 | B3: =LN(A3) -> 3.912023005 | C3: =(B3-$B$14)^2 -> 0.1832994983 | E3: =A3^MLEbeta -> 32.65573913 | F3: =E3*B3 -> 127.7500027
A4: 30 | B4: 3.401197382 | C4: 0.00683775469 | E4: 20.71424639 | F4: =E4*B4 -> 70.4532406
A5: 300 | B5: 5.703782475 | C5: 4.92793104 | E5: 161.2031271 | F5: 919.4675714
A6: 20 | B6: 2.995732274 | C6: 0.2382961097 | E6: 14.43289511 | F6: 43.23708968
A7: 10 | B7: 2.302585093 | C7: 1.395476791 | E7: 7.782234703 | F7: 17.91925762
A8: 15 | B8: 2.708050201 | C8: 0.6019244434 | E8: 11.169147 | F8: 30.24661078
A9: 25 | B9: 3.218875825 | C9: 0.0702315053 | E9: 17.6080145 | F9: 56.67801218
A10: 40 | B10: 3.688879454 | C10: 0.04202145578 | E10: 26.76717796 | F10: 98.74089282
A11: 10 | B11: 2.302585093 | C11: 1.395476791 | E11: 7.782234703 | F11: 17.91925762
A12: 100 | B12: 4.605170186 | C12: 1.257273519 | E12: 60.56317697 | F12: 278.903737
B14: =SUM(B3:B12)/COUNT(B3:B12) -> 3.483888099 | C14: =SUM(C3:C12)/COUNT(C3:C12) -> 1.011876891 | E14: =SUM(E3:E12) -> 360.6779936 | F14: =SUM(F3:F12) -> 1661.315672
B15: mu hat | C15: sigma^2 hat
C16: =SQRT(C14) -> 1.005920917 | E16: Objective | F16: =(1/MLEbeta)+B14-(F14/E14) -> 1.253215043e-07
C17: sigma hat | E17: beta | F17: 0.8911043245
E18: theta | F18: =(E14/COUNT(A3:A12))^(1/MLEbeta) -> 55.8990505

Sheet MCAtemplate
C1: Economic | I1: Weight | J1: 100 | K1: Environmental | Q1: Weight | R1: 100 | S1: Social | Y1: Weight | Z1: 100 | AA1: Co-Benefits | AG1: Weight | AH1: 100 | AI1: Final
C2: Expert 1 | D2: Expert 2 | E2: Expert 3 | F2: Expert 4 | G2: Expert 5 | H2: Expert 6 | I2: Score | J2: Rank | K2: Expert 1 | L2: Expert 2 | M2: Expert 3 | N2: Expert 4 | O2: Expert 5 | P2: Expert 6 | Q2: Score | R2: Rank | S2: Expert 1 | T2: Expert 2 | U2: Expert 3 | V2: Expert 4 | W2: Expert 5 | X2: Expert 6 | Y2: Score | Z2: Rank | AA2: Expert 1 | AB2: Expert 2 | AC2: Expert 3 | AD2: Expert 4 | AE2: Expert 5 | AF2: Expert 6 | AG2: Score | AH2: Rank | AI2: Score | AJ2: Rank | AK2: Borda votes | AL2: Borda rank
B3: Weight | C3: 100 | D3: 100 | E3: 100 | F3: 100 | G3: 100 | H3: 100 | K3: 100 | L3: 100 | M3: 100 | N3: 100 | O3: 100 | P3: 100 | S3: 100 | T3: 100 | U3: 100 | V3: 100 | W3: 100 | X3: 100 | AA3: 100 | AB3: 100 | AC3: 100 | AD3: 100 | AE3: 100 | AF3: 100
A4: Options | B4: Project 1 | I4: =IF(COUNT(C4:H4)>0,C4*(C$3/Expert1SumWeight)+D4*(D$3/Expert2SumWeight)+E4*(E$3/Expert3SumWeight)+F4*(F$3/Expert4SumWeight)+G4*(G$3/Expert5SumWeight)+H4*(H$3/Expert6SumWeight), "") ->  | J4: =IF(ISNUMBER(I4), RANK(I4,I$4:I$13), "") ->  | Q4: =IF(COUNT(K4:P4)>0,K4*(K$3/Expert1SumWeight)+L4*(L$3/Expert2SumWeight)+M4*(M$3/Expert3SumWeight)+N4*(N$3/Expert4SumWeight)+O4*(O$3/Expert5SumWeight)+P4*(P$3/Expert6SumWeight), "") ->  | R4: =IF(ISNUMBER(Q4), RANK(Q4,Q$4:Q$13), "") ->  | Y4: =IF(COUNT(S4:X4)>0,S4*(S$3/Expert1SumWeight)+T4*(T$3/Expert2SumWeight)+U4*(U$3/Expert3SumWeight)+V4*(V$3/Expert4SumWeight)+W4*(W$3/Expert5SumWeight)+X4*(X$3/Expert6SumWeight), "") ->  | Z4: =IF(ISNUMBER(Y4), RANK(Y4,Y$4:Y$13), "") ->  | AG4: =IF(COUNT(AA4:AF4)>0,AA4*(AA$3/Expert1SumWeight)+AB4*(AB$3/Expert2SumWeight)+AC4*(AC$3/Expert3SumWeight)+AD4*(AD$3/Expert4SumWeight)+AE4*(AE$3/Expert5SumWeight)+AF4*(AF$3/Expert6SumWeight), "") ->  | AH4: =IF(ISNUMBER(AG4), RANK(AG4,AG$4:AG$13), "") ->  | AI4: =IF(OR(ISNUMBER(I4),ISNUMBER(Q4),ISNUMBER(Y4),ISNUMBER(AG4)), IF(ISNUMBER(I4),I4*J$1/$AI$19,0) +IF(ISNUMBER(Q4),Q4*R$1/$AI$19,0)+IF(ISNUMBER(Y4),Y4*Z$1/$AI$19,0)+IF(ISNUMBER(AG4),AG4*AH$1/$AI$19,0), "") ->  | AJ4: =IF(ISNUMBER(AI4), RANK(AI4,AI$4:AI$13), "") ->  | AK4: =IF(AND(ISNUMBER(J4),ISNUMBER(R4),ISNUMBER(Z4),ISNUMBER(AH4)),(NumOpts-J4)*J$1/$AI$19+(NumOpts-R4)*R$1/$AI$19+(NumOpts-Z4)*Z$1/$AI$19+(NumOpts-AH4)*AH$1/$AI$19,"") ->  | AL4: =IF(ISNUMBER(AK4), RANK(AK4,AK$4:AK$13), "") -> 
B5: Project 2 | J5: =IF(ISNUMBER(I5), RANK(I5,I$4:I$13), "") ->  | R5: =IF(ISNUMBER(Q5), RANK(Q5,Q$4:Q$13), "") ->  | Z5: =IF(ISNUMBER(Y5), RANK(Y5,Y$4:Y$13), "") ->  | AH5: =IF(ISNUMBER(AG5), RANK(AG5,AG$4:AG$13), "") ->  | AI5: =IF(OR(ISNUMBER(I5),ISNUMBER(Q5),ISNUMBER(Y5),ISNUMBER(AG5)), IF(ISNUMBER(I5),I5*J$1/$AI$19,0) +IF(ISNUMBER(Q5),Q5*R$1/$AI$19,0)+IF(ISNUMBER(Y5),Y5*Z$1/$AI$19,0)+IF(ISNUMBER(AG5),AG5*AH$1/$AI$19,0), "") ->  | AJ5: =IF(ISNUMBER(AI5), RANK(AI5,AI$4:AI$13), "") ->  | AL5: =IF(ISNUMBER(AK5), RANK(AK5,AK$4:AK$13), "") -> 
B6: Project 3
B7: Project 4
B8: Project 5
B9: Project 6
B10: Project 7
B11: Project 8
B12: Project 9
B13: Project 10
C16: Everything below this line is used for internal calculations and should not be changed.
C18: Expert Weight Sums | AI18: Total Weight | AK18: Num Opts
C19: Expert 1 | D19: Expert 2 | E19: Expert 3 | F19: Expert 4 | G19: Expert 5 | H19: Expert 6 | AI19: =SUM(J1,R1,Z1,AH1) -> 400 | AK19: =COUNTA(B4:B13) -> 10
C20: =IF(SUM(C3,K3,S3,AA3)=0,1,SUM(C3,K3,S3,AA3)) -> 400 | D20: =IF(SUM(D3,L3,T3,AB3)=0,1,SUM(D3,L3,T3,AB3)) -> 400 | E20: 400 | F20: 400 | G20: 400 | H20: 400
AH21: Temp -> | AI21: IF(OR(ISNUMBER(I21),ISNUMBER(Q21),ISNUMBER(Y21),ISNUMBER(AG21)), I21*J$1/$AI$19 +Q21*R$1/$AI$19+Y21*Z$1/$AI$19+AG21*AH$1/$AI$19, "")

Sheet MCAexpert
C1: Economic | E1: Enviromental | G1: Social | I1: Co-Benefit
B2: Expertise | C2: 100 | D2: Comment | E2: 100 | F2: Comment | G2: 100 | H2: Comment | I2: 100 | J2: Comment
A3: Options | B3: Option 1
B4: Option 2
B5: Option 3
B6: Option 4
B7: Option 5
B8: Option 6
B9: Option 7
B10: Option 8
B11: Option 9
B12: Option 10

Sheet MCAuserexpert
C1: Criterion 1 | E1: Criterion 2 | G1: Criterion 3 | I1: Criterion 4 | K1: Criterion 5 | M1: Criterion 6 | O1: Criterion 7 | Q1: Criterion 8 | S1: Criterion 9 | U1: Criterion 10 | W1: Criterion 11 | Y1: Criterion 12 | AA1: Criterion 13 | AC1: Criterion 14 | AE1: Criterion 15 | AG1: Criterion 16 | AI1: Criterion 17 | AK1: Criterion 18 | AM1: Criterion 19 | AO1: Criterion 20 | AQ1: Criterion 21 | AS1: Criterion 22 | AU1: Criterion 23 | AW1: Criterion 24 | AY1: Criterion 25
B2: Expertise | C2: 100 | D2: Comment | E2: 100 | F2: Comment | G2: 100 | H2: Comment | I2: 100 | J2: Comment | K2: 100 | L2: Comment | M2: 100 | N2: Comment | O2: 100 | P2: Comment | Q2: 100 | R2: Comment | S2: 100 | T2: Comment | U2: 100 | V2: Comment | W2: 100 | X2: Comment | Y2: 100 | Z2: Comment | AA2: 100 | AB2: Comment | AC2: 100 | AD2: Comment | AE2: 100 | AF2: Comment | AG2: 100 | AH2: Comment | AI2: 100 | AJ2: Comment | AK2: 100 | AL2: Comment | AM2: 100 | AN2: Comment | AO2: 100 | AP2: Comment | AQ2: 100 | AR2: Comment | AS2: 100 | AT2: Comment | AU2: 100 | AV2: Comment | AW2: 100 | AX2: Comment | AY2: 100 | AZ2: Comment
A3: Options | B3: Option 1
B4: Option 2
B5: Option 3
B6: Option 4
B7: Option 5
B8: Option 6
B9: Option 7
B10: Option 8
B11: Option 9
B12: Option 10

Sheet MCAsummary
M1: Weight | O1: Weight | Q1: Weight | S1: Weight | U1: Weight | W1: Weight | Y1: Weight
L2: Economic | M2: 100
L3: Environmental | M3: 100
L4: Social | M4: 100
C5: Economic | E5: Environmental | G5: Social | I5: Co-Benefit | L5: Co-Benefit | M5: 100
C6: Score | D6: Rank | E6: Score | F6: Rank | G6: Score | H6: Rank | I6: Score | J6: Rank | M6: Score | N6: Rank | O6: Score | P6: Rank | Q6: Score | R6: Rank | S6: Score | T6: Rank | U6: Score | V6: Rank | W6: Score | X6: Rank | Y6: Score | Z6: Rank
A7: Options | B7: Option 1 | D7: =IF(ISNUMBER(C7), RANK(C7,C$7:C$16), "") ->  | F7: =IF(ISNUMBER(E7), RANK(E7,E$7:E$16), "") ->  | H7: =IF(ISNUMBER(G7), RANK(G7,G$7:G$16), "") ->  | J7: =IF(ISNUMBER(I7), RANK(I7,I$7:I$16), "") ->  | M7: =IF(AND(M$21,OR(ISNUMBER($C7),ISNUMBER($E7),ISNUMBER($G7),ISNUMBER($I7))), IF(ISNUMBER($C7),$C7*M$2/M$19,0) +IF(ISNUMBER($E7),$E7*M$3/M$19,0)+IF(ISNUMBER($G7),$G7*M$4/M$19,0)+IF(ISNUMBER($I7),$I7*M$5/M$19,0), "") ->  | N7: =IF(ISNUMBER(M7), RANK(M7,M$7:M$16), "") ->  | O7: =IF(AND(O$21,OR(ISNUMBER($C7),ISNUMBER($E7),ISNUMBER($G7),ISNUMBER($I7))), IF(ISNUMBER($C7),$C7*O$2/O$19,0) +IF(ISNUMBER($E7),$E7*O$3/O$19,0)+IF(ISNUMBER($G7),$G7*O$4/O$19,0)+IF(ISNUMBER($I7),$I7*O$5/O$19,0), "") ->  | P7: =IF(ISNUMBER(O7), RANK(O7,O$7:O$16), "") ->  | Q7: =IF(AND(Q$21,OR(ISNUMBER($C7),ISNUMBER($E7),ISNUMBER($G7),ISNUMBER($I7))), IF(ISNUMBER($C7),$C7*Q$2/Q$19,0) +IF(ISNUMBER($E7),$E7*Q$3/Q$19,0)+IF(ISNUMBER($G7),$G7*Q$4/Q$19,0)+IF(ISNUMBER($I7),$I7*Q$5/Q$19,0), "") ->  | R7: =IF(ISNUMBER(Q7), RANK(Q7,Q$7:Q$16), "") ->  | S7: =IF(AND(S$21,OR(ISNUMBER($C7),ISNUMBER($E7),ISNUMBER($G7),ISNUMBER($I7))), IF(ISNUMBER($C7),$C7*S$2/S$19,0) +IF(ISNUMBER($E7),$E7*S$3/S$19,0)+IF(ISNUMBER($G7),$G7*S$4/S$19,0)+IF(ISNUMBER($I7),$I7*S$5/S$19,0), "") ->  | T7: =IF(ISNUMBER(S7), RANK(S7,S$7:S$16), "") ->  | U7: =IF(AND(U$21,OR(ISNUMBER($C7),ISNUMBER($E7),ISNUMBER($G7),ISNUMBER($I7))), IF(ISNUMBER($C7),$C7*U$2/U$19,0) +IF(ISNUMBER($E7),$E7*U$3/U$19,0)+IF(ISNUMBER($G7),$G7*U$4/U$19,0)+IF(ISNUMBER($I7),$I7*U$5/U$19,0), "") ->  | V7: =IF(ISNUMBER(U7), RANK(U7,U$7:U$16), "") ->  | W7: =IF(AND(W$21,OR(ISNUMBER($C7),ISNUMBER($E7),ISNUMBER($G7),ISNUMBER($I7))), IF(ISNUMBER($C7),$C7*W$2/W$19,0) +IF(ISNUMBER($E7),$E7*W$3/W$19,0)+IF(ISNUMBER($G7),$G7*W$4/W$19,0)+IF(ISNUMBER($I7),$I7*W$5/W$19,0), "") ->  | X7: =IF(ISNUMBER(W7), RANK(W7,W$7:W$16), "") ->  | Y7: =IF(AND(Y$21,OR(ISNUMBER($C7),ISNUMBER($E7),ISNUMBER($G7),ISNUMBER($I7))), IF(ISNUMBER($C7),$C7*Y$2/Y$19,0) +IF(ISNUMBER($E7),$E7*Y$3/Y$19,0)+IF(ISNUMBER($G7),$G7*Y$4/Y$19,0)+IF(ISNUMBER($I7),$I7*Y$5/Y$19,0), "") ->  | Z7: =IF(ISNUMBER(Y7), RANK(Y7,Y$7:Y$16), "") -> 
B8: Option 2 | D8: =IF(ISNUMBER(C8), RANK(C8,C$7:C$16), "") ->  | H8: =IF(ISNUMBER(G8), RANK(G8,G$7:G$16), "") ->  | J8: =IF(ISNUMBER(I8), RANK(I8,I$7:I$16), "") ->  | M8: =IF(AND(M$21,OR(ISNUMBER($C8),ISNUMBER($E8),ISNUMBER($G8),ISNUMBER($I8))), IF(ISNUMBER($C8),$C8*M$2/M$19,0) +IF(ISNUMBER($E8),$E8*M$3/M$19,0)+IF(ISNUMBER($G8),$G8*M$4/M$19,0)+IF(ISNUMBER($I8),$I8*M$5/M$19,0), "") ->  | N8: =IF(ISNUMBER(M8), RANK(M8,M$7:M$16), "") ->  | R8: =IF(ISNUMBER(Q8), RANK(Q8,Q$7:Q$16), "") ->  | T8: =IF(ISNUMBER(S8), RANK(S8,S$7:S$16), "") ->  | V8: =IF(ISNUMBER(U8), RANK(U8,U$7:U$16), "") ->  | X8: =IF(ISNUMBER(W8), RANK(W8,W$7:W$16), "") ->  | Z8: =IF(ISNUMBER(Y8), RANK(Y8,Y$7:Y$16), "") -> 
B9: Option 3 | H9: =IF(ISNUMBER(G9), RANK(G9,G$7:G$16), "") ->  | J9: =IF(ISNUMBER(I9), RANK(I9,I$7:I$16), "") ->  | R9: =IF(ISNUMBER(Q9), RANK(Q9,Q$7:Q$16), "") ->  | T9: =IF(ISNUMBER(S9), RANK(S9,S$7:S$16), "") ->  | V9: =IF(ISNUMBER(U9), RANK(U9,U$7:U$16), "") ->  | X9: =IF(ISNUMBER(W9), RANK(W9,W$7:W$16), "") ->  | Z9: =IF(ISNUMBER(Y9), RANK(Y9,Y$7:Y$16), "") -> 
B10: Option 4 | H10: =IF(ISNUMBER(G10), RANK(G10,G$7:G$16), "") ->  | J10: =IF(ISNUMBER(I10), RANK(I10,I$7:I$16), "") ->  | R10: =IF(ISNUMBER(Q10), RANK(Q10,Q$7:Q$16), "") ->  | T10: =IF(ISNUMBER(S10), RANK(S10,S$7:S$16), "") ->  | V10: =IF(ISNUMBER(U10), RANK(U10,U$7:U$16), "") ->  | X10: =IF(ISNUMBER(W10), RANK(W10,W$7:W$16), "") ->  | Z10: =IF(ISNUMBER(Y10), RANK(Y10,Y$7:Y$16), "") -> 
B11: Option 5 | H11: =IF(ISNUMBER(G11), RANK(G11,G$7:G$16), "") ->  | J11: =IF(ISNUMBER(I11), RANK(I11,I$7:I$16), "") ->  | R11: =IF(ISNUMBER(Q11), RANK(Q11,Q$7:Q$16), "") ->  | T11: =IF(ISNUMBER(S11), RANK(S11,S$7:S$16), "") ->  | V11: =IF(ISNUMBER(U11), RANK(U11,U$7:U$16), "") ->  | X11: =IF(ISNUMBER(W11), RANK(W11,W$7:W$16), "") ->  | Z11: =IF(ISNUMBER(Y11), RANK(Y11,Y$7:Y$16), "") -> 
B12: Option 6 | H12: =IF(ISNUMBER(G12), RANK(G12,G$7:G$16), "") ->  | J12: =IF(ISNUMBER(I12), RANK(I12,I$7:I$16), "") ->  | R12: =IF(ISNUMBER(Q12), RANK(Q12,Q$7:Q$16), "") ->  | T12: =IF(ISNUMBER(S12), RANK(S12,S$7:S$16), "") ->  | V12: =IF(ISNUMBER(U12), RANK(U12,U$7:U$16), "") ->  | X12: =IF(ISNUMBER(W12), RANK(W12,W$7:W$16), "") ->  | Z12: =IF(ISNUMBER(Y12), RANK(Y12,Y$7:Y$16), "") -> 
B13: Option 7 | H13: =IF(ISNUMBER(G13), RANK(G13,G$7:G$16), "") ->  | J13: =IF(ISNUMBER(I13), RANK(I13,I$7:I$16), "") ->  | R13: =IF(ISNUMBER(Q13), RANK(Q13,Q$7:Q$16), "") ->  | T13: =IF(ISNUMBER(S13), RANK(S13,S$7:S$16), "") ->  | V13: =IF(ISNUMBER(U13), RANK(U13,U$7:U$16), "") ->  | X13: =IF(ISNUMBER(W13), RANK(W13,W$7:W$16), "") ->  | Z13: =IF(ISNUMBER(Y13), RANK(Y13,Y$7:Y$16), "") -> 
B14: Option 8 | H14: =IF(ISNUMBER(G14), RANK(G14,G$7:G$16), "") ->  | J14: =IF(ISNUMBER(I14), RANK(I14,I$7:I$16), "") ->  | R14: =IF(ISNUMBER(Q14), RANK(Q14,Q$7:Q$16), "") ->  | T14: =IF(ISNUMBER(S14), RANK(S14,S$7:S$16), "") ->  | V14: =IF(ISNUMBER(U14), RANK(U14,U$7:U$16), "") ->  | X14: =IF(ISNUMBER(W14), RANK(W14,W$7:W$16), "") ->  | Z14: =IF(ISNUMBER(Y14), RANK(Y14,Y$7:Y$16), "") -> 
B15: Option 9 | H15: =IF(ISNUMBER(G15), RANK(G15,G$7:G$16), "") ->  | J15: =IF(ISNUMBER(I15), RANK(I15,I$7:I$16), "") ->  | R15: =IF(ISNUMBER(Q15), RANK(Q15,Q$7:Q$16), "") ->  | T15: =IF(ISNUMBER(S15), RANK(S15,S$7:S$16), "") ->  | V15: =IF(ISNUMBER(U15), RANK(U15,U$7:U$16), "") ->  | X15: =IF(ISNUMBER(W15), RANK(W15,W$7:W$16), "") ->  | Z15: =IF(ISNUMBER(Y15), RANK(Y15,Y$7:Y$16), "") -> 
B16: Option 10 | H16: =IF(ISNUMBER(G16), RANK(G16,G$7:G$16), "") ->  | J16: =IF(ISNUMBER(I16), RANK(I16,I$7:I$16), "") ->  | R16: =IF(ISNUMBER(Q16), RANK(Q16,Q$7:Q$16), "") ->  | T16: =IF(ISNUMBER(S16), RANK(S16,S$7:S$16), "") ->  | V16: =IF(ISNUMBER(U16), RANK(U16,U$7:U$16), "") ->  | X16: =IF(ISNUMBER(W16), RANK(W16,W$7:W$16), "") ->  | Z16: =IF(ISNUMBER(Y16), RANK(Y16,Y$7:Y$16), "") -> 
C18: Everything below this line is used for internal calculations and should not be changed. | M18: Sum | O18: Sum | Q18: Sum | S18: Sum | U18: Sum | W18: Sum | Y18: Sum
M19: =SUM(M2:M5) -> 400 | O19: =SUM(O2:O5) -> 0 | Q19: =SUM(Q2:Q5) -> 0 | S19: =SUM(S2:S5) -> 0 | U19: =SUM(U2:U5) -> 0 | W19: =SUM(W2:W5) -> 0 | Y19: =SUM(Y2:Y5) -> 0
C20: Expert 1 | D20: Expert 2 | E20: Expert 3 | F20: Expert 4 | G20: Expert 5 | H20: Expert 6 | J20: Expert Sum | M20: Is Number | O20: Is Number | Q20: Is Number | S20: Is Number | U20: Is Number | W20: Is Number | Y20: Is Number
C21: 1 | D21: 1 | E21: 1 | F21: 1 | G21: 1 | H21: 1 | J21: =SUM(C3:H3) -> 0 | M21: =AND(ISNUMBER(M2),ISNUMBER(M3),ISNUMBER(M4),ISNUMBER(M5)) -> TRUE | O21: =AND(ISNUMBER(O2),ISNUMBER(O3),ISNUMBER(O4),ISNUMBER(O5)) -> FALSE | Q21: =AND(ISNUMBER(Q2),ISNUMBER(Q3),ISNUMBER(Q4),ISNUMBER(Q5)) -> FALSE | S21: =AND(ISNUMBER(S2),ISNUMBER(S3),ISNUMBER(S4),ISNUMBER(S5)) -> FALSE | U21: =AND(ISNUMBER(U2),ISNUMBER(U3),ISNUMBER(U4),ISNUMBER(U5)) -> FALSE | W21: =AND(ISNUMBER(W2),ISNUMBER(W3),ISNUMBER(W4),ISNUMBER(W5)) -> FALSE | Y21: =AND(ISNUMBER(Y2),ISNUMBER(Y3),ISNUMBER(Y4),ISNUMBER(Y5)) -> FALSE
C22: Total Economic Weight | E22: Total Environmental Weight | G22: Total Social Weight | I22: Total Co-Benefit Weight

Sheet MCAuserscores
C1: Criterion 1 | E1: Criterion 2 | G1: Criterion 3 | I1: Criterion 4 | K1: Criterion 5 | M1: Criterion 6 | O1: Criterion 7 | Q1: Criterion 8 | S1: Criterion 9 | U1: Criterion 10 | W1: Criterion 11 | Y1: Criterion 12 | AA1: Criterion 13 | AC1: Criterion 14 | AE1: Criterion 15 | AG1: Criterion 16 | AI1: Criterion 17 | AK1: Criterion 18 | AM1: Criterion 19 | AO1: Criterion 20 | AQ1: Criterion 21 | AS1: Criterion 22 | AU1: Criterion 23 | AW1: Criterion 24 | AY1: Criterion 25
C2: Score | D2: Rank | E2: Score | F2: Rank | G2: Score | H2: Rank | I2: Score | J2: Rank | K2: Score | L2: Rank | M2: Score | N2: Rank | O2: Score | P2: Rank | Q2: Score | R2: Rank | S2: Score | T2: Rank | U2: Score | V2: Rank | W2: Score | X2: Rank | Y2: Score | Z2: Rank | AA2: Score | AB2: Rank | AC2: Score | AD2: Rank | AE2: Score | AF2: Rank | AG2: Score | AH2: Rank | AI2: Score | AJ2: Rank | AK2: Score | AL2: Rank | AM2: Score | AN2: Rank | AO2: Score | AP2: Rank | AQ2: Score | AR2: Rank | AS2: Score | AT2: Rank | AU2: Score | AV2: Rank | AW2: Score | AX2: Rank | AY2: Score | AZ2: Rank
A3: Options | B3: Option 1 | D3: =IF(ISNUMBER(C3), RANK(C3,C$3:C$12), "") ->  | F3: =IF(ISNUMBER(E3), RANK(E3,E$3:E$12), "") ->  | H3: =IF(ISNUMBER(G3), RANK(G3,G$3:G$12), "") ->  | J3: =IF(ISNUMBER(I3), RANK(I3,I$3:I$12), "") -> 
B4: Option 2 | D4: =IF(ISNUMBER(C4), RANK(C4,C$3:C$12), "") ->  | H4: =IF(ISNUMBER(G4), RANK(G4,G$3:G$12), "") ->  | J4: =IF(ISNUMBER(I4), RANK(I4,I$3:I$12), "") -> 
B5: Option 3
B6: Option 4
B7: Option 5
B8: Option 6
B9: Option 7
B10: Option 8
B11: Option 9
B12: Option 10
C14: Everything below this line is used for internal calculations and should not be changed.
C16: Expert 1 | D16: Expert 2 | E16: Expert 3 | F16: Expert 4 | G16: Expert 5 | H16: Expert 6 | J16: Expert Sum
C17: 1 | D17: 1 | E17: 1 | F17: 1 | G17: 1 | H17: 1 | J17: 1
C18: Total Crit 1 Weight | E18: Total Crit 2 Weight | G18: Total Crit 3 Weight | I18: Total Crit 4 Weight | K18: Total Crit 5 Weight | M18: Total Crit 6 Weight | O18: Total Crit 7 Weight | Q18: Total Crit 8 Weight | S18: Total Crit 9 Weight | U18: Total Crit 10 Weight | W18: Total Crit 11 Weight | Y18: Total Crit 12 Weight | AA18: Total Crit 13 Weight | AC18: Total Crit 14 Weight | AE18: Total Crit 15 Weight | AG18: Total Crit 16 Weight | AI18: Total Crit 17 Weight | AK18: Total Crit 18 Weight | AM18: Total Crit 19 Weight | AO18: Total Crit 20 Weight | AQ18: Total Crit 21 Weight | AS18: Total Crit 22 Weight | AU18: Total Crit 23 Weight | AW18: Total Crit 24 Weight | AY18: Total Crit 25 Weight

Sheet MCAusersensitivity
C1: Weight | E1: Weight | G1: Weight | I1: Weight | K1: Weight | M1: Weight | O1: Weight
A2: Criteria | B2: Criterion 1 | C2: 100
B3: Criterion 2 | C3: 100
B4: Criterion 3 | C4: 100
B5: Criterion 4 | C5: 100
B6: Criterion 5 | C6: 100
B7: Criterion 6 | C7: 100
B8: Criterion 7 | C8: 100
B9: Criterion 8 | C9: 100
B10: Criterion 9 | C10: 100
B11: Criterion 10 | C11: 100
B12: Criterion 11 | C12: 100
B13: Criterion 12 | C13: 100
B14: Criterion 13 | C14: 100
B15: Criterion 14 | C15: 100
B16: Criterion 15 | C16: 100
B17: Criterion 16 | C17: 100
B18: Criterion 17 | C18: 100
B19: Criterion 18 | C19: 100
B20: Criterion 19 | C20: 100
B21: Criterion 20 | C21: 100
B22: Criterion 21 | C22: 100
B23: Criterion 22 | C23: 100
B24: Criterion 23 | C24: 100
B25: Criterion 24 | C25: 100
B26: Criterion 25 | C26: 100
C27: Score | D27: Rank | E27: Score | F27: Rank | G27: Score | H27: Rank | I27: Score | J27: Rank | K27: Score | L27: Rank | M27: Score | N27: Rank | O27: Score | P27: Rank
A28: Options | B28: Option 1 | C28: =IF(AND(C$42,OR(ISNUMBER(#REF!),ISNUMBER(#REF!),ISNUMBER(#REF!),ISNUMBER(#REF!))), IF(ISNUMBER(#REF!),#REF!*C$2/C$40,0) +IF(ISNUMBER(#REF!),#REF!*C$3/C$40,0)+IF(ISNUMBER(#REF!),#REF!*C$4/C$40,0)+IF(ISNUMBER(#REF!),#REF!*C$26/C$40,0), "") ->  | D28: =IF(ISNUMBER(C28), RANK(C28,C$28:C$37), "") ->  | E28: =IF(AND(E$42,OR(ISNUMBER(#REF!),ISNUMBER(#REF!),ISNUMBER(#REF!),ISNUMBER(#REF!))), IF(ISNUMBER(#REF!),#REF!*E$2/E$40,0) +IF(ISNUMBER(#REF!),#REF!*E$3/E$40,0)+IF(ISNUMBER(#REF!),#REF!*E$4/E$40,0)+IF(ISNUMBER(#REF!),#REF!*E$26/E$40,0), "") ->  | F28: =IF(ISNUMBER(E28), RANK(E28,E$28:E$37), "") ->  | G28: =IF(AND(G$42,OR(ISNUMBER(#REF!),ISNUMBER(#REF!),ISNUMBER(#REF!),ISNUMBER(#REF!))), IF(ISNUMBER(#REF!),#REF!*G$2/G$40,0) +IF(ISNUMBER(#REF!),#REF!*G$3/G$40,0)+IF(ISNUMBER(#REF!),#REF!*G$4/G$40,0)+IF(ISNUMBER(#REF!),#REF!*G$26/G$40,0), "") ->  | H28: =IF(ISNUMBER(G28), RANK(G28,G$28:G$37), "") ->  | I28: =IF(AND(I$42,OR(ISNUMBER(#REF!),ISNUMBER(#REF!),ISNUMBER(#REF!),ISNUMBER(#REF!))), IF(ISNUMBER(#REF!),#REF!*I$2/I$40,0) +IF(ISNUMBER(#REF!),#REF!*I$3/I$40,0)+IF(ISNUMBER(#REF!),#REF!*I$4/I$40,0)+IF(ISNUMBER(#REF!),#REF!*I$26/I$40,0), "") ->  | J28: =IF(ISNUMBER(I28), RANK(I28,I$28:I$37), "") ->  | K28: =IF(AND(K$42,OR(ISNUMBER(#REF!),ISNUMBER(#REF!),ISNUMBER(#REF!),ISNUMBER(#REF!))), IF(ISNUMBER(#REF!),#REF!*K$2/K$40,0) +IF(ISNUMBER(#REF!),#REF!*K$3/K$40,0)+IF(ISNUMBER(#REF!),#REF!*K$4/K$40,0)+IF(ISNUMBER(#REF!),#REF!*K$26/K$40,0), "") ->  | L28: =IF(ISNUMBER(K28), RANK(K28,K$28:K$37), "") ->  | M28: =IF(AND(M$42,OR(ISNUMBER(#REF!),ISNUMBER(#REF!),ISNUMBER(#REF!),ISNUMBER(#REF!))), IF(ISNUMBER(#REF!),#REF!*M$2/M$40,0) +IF(ISNUMBER(#REF!),#REF!*M$3/M$40,0)+IF(ISNUMBER(#REF!),#REF!*M$4/M$40,0)+IF(ISNUMBER(#REF!),#REF!*M$26/M$40,0), "") ->  | N28: =IF(ISNUMBER(M28), RANK(M28,M$28:M$37), "") ->  | O28: =IF(AND(O$42,OR(ISNUMBER(#REF!),ISNUMBER(#REF!),ISNUMBER(#REF!),ISNUMBER(#REF!))), IF(ISNUMBER(#REF!),#REF!*O$2/O$40,0) +IF(ISNUMBER(#REF!),#REF!*O$3/O$40,0)+IF(ISNUMBER(#REF!),#REF!*O$4/O$40,0)+IF(ISNUMBER(#REF!),#REF!*O$26/O$40,0), "") ->  | P28: =IF(ISNUMBER(O28), RANK(O28,O$28:O$37), "") -> 
B29: Option 2 | C29: =IF(AND(C$42,OR(ISNUMBER(#REF!),ISNUMBER(#REF!),ISNUMBER(#REF!),ISNUMBER(#REF!))), IF(ISNUMBER(#REF!),#REF!*C$2/C$40,0) +IF(ISNUMBER(#REF!),#REF!*C$3/C$40,0)+IF(ISNUMBER(#REF!),#REF!*C$4/C$40,0)+IF(ISNUMBER(#REF!),#REF!*C$26/C$40,0), "") ->  | D29: =IF(ISNUMBER(C29), RANK(C29,C$28:C$37), "") ->  | E29: =IF(AND(E$42,OR(ISNUMBER(#REF!),ISNUMBER(#REF!),ISNUMBER(#REF!),ISNUMBER(#REF!))), IF(ISNUMBER(#REF!),#REF!*E$2/E$40,0) +IF(ISNUMBER(#REF!),#REF!*E$3/E$40,0)+IF(ISNUMBER(#REF!),#REF!*E$4/E$40,0)+IF(ISNUMBER(#REF!),#REF!*E$26/E$40,0), "") ->  | G29: =IF(AND(G$42,OR(ISNUMBER(#REF!),ISNUMBER(#REF!),ISNUMBER(#REF!),ISNUMBER(#REF!))), IF(ISNUMBER(#REF!),#REF!*G$2/G$40,0) +IF(ISNUMBER(#REF!),#REF!*G$3/G$40,0)+IF(ISNUMBER(#REF!),#REF!*G$4/G$40,0)+IF(ISNUMBER(#REF!),#REF!*G$26/G$40,0), "") ->  | H29: =IF(ISNUMBER(G29), RANK(G29,G$28:G$37), "") ->  | I29: =IF(AND(I$42,OR(ISNUMBER(#REF!),ISNUMBER(#REF!),ISNUMBER(#REF!),ISNUMBER(#REF!))), IF(ISNUMBER(#REF!),#REF!*I$2/I$40,0) +IF(ISNUMBER(#REF!),#REF!*I$3/I$40,0)+IF(ISNUMBER(#REF!),#REF!*I$4/I$40,0)+IF(ISNUMBER(#REF!),#REF!*I$26/I$40,0), "") ->  | J29: =IF(ISNUMBER(I29), RANK(I29,I$28:I$37), "") ->  | K29: =IF(AND(K$42,OR(ISNUMBER(#REF!),ISNUMBER(#REF!),ISNUMBER(#REF!),ISNUMBER(#REF!))), IF(ISNUMBER(#REF!),#REF!*K$2/K$40,0) +IF(ISNUMBER(#REF!),#REF!*K$3/K$40,0)+IF(ISNUMBER(#REF!),#REF!*K$4/K$40,0)+IF(ISNUMBER(#REF!),#REF!*K$26/K$40,0), "") ->  | L29: =IF(ISNUMBER(K29), RANK(K29,K$28:K$37), "") ->  | M29: =IF(AND(M$42,OR(ISNUMBER(#REF!),ISNUMBER(#REF!),ISNUMBER(#REF!),ISNUMBER(#REF!))), IF(ISNUMBER(#REF!),#REF!*M$2/M$40,0) +IF(ISNUMBER(#REF!),#REF!*M$3/M$40,0)+IF(ISNUMBER(#REF!),#REF!*M$4/M$40,0)+IF(ISNUMBER(#REF!),#REF!*M$26/M$40,0), "") ->  | N29: =IF(ISNUMBER(M29), RANK(M29,M$28:M$37), "") ->  | O29: =IF(AND(O$42,OR(ISNUMBER(#REF!),ISNUMBER(#REF!),ISNUMBER(#REF!),ISNUMBER(#REF!))), IF(ISNUMBER(#REF!),#REF!*O$2/O$40,0) +IF(ISNUMBER(#REF!),#REF!*O$3/O$40,0)+IF(ISNUMBER(#REF!),#REF!*O$4/O$40,0)+IF(ISNUMBER(#REF!),#REF!*O$26/O$40,0), "") ->  | P29: =IF(ISNUMBER(O29), RANK(O29,O$28:O$37), "") -> 
B30: Option 3 | C30: =IF(AND(C$42,OR(ISNUMBER(#REF!),ISNUMBER(#REF!),ISNUMBER(#REF!),ISNUMBER(#REF!))), IF(ISNUMBER(#REF!),#REF!*C$2/C$40,0) +IF(ISNUMBER(#REF!),#REF!*C$3/C$40,0)+IF(ISNUMBER(#REF!),#REF!*C$4/C$40,0)+IF(ISNUMBER(#REF!),#REF!*C$26/C$40,0), "") ->  | E30: =IF(AND(E$42,OR(ISNUMBER(#REF!),ISNUMBER(#REF!),ISNUMBER(#REF!),ISNUMBER(#REF!))), IF(ISNUMBER(#REF!),#REF!*E$2/E$40,0) +IF(ISNUMBER(#REF!),#REF!*E$3/E$40,0)+IF(ISNUMBER(#REF!),#REF!*E$4/E$40,0)+IF(ISNUMBER(#REF!),#REF!*E$26/E$40,0), "") ->  | G30: =IF(AND(G$42,OR(ISNUMBER(#REF!),ISNUMBER(#REF!),ISNUMBER(#REF!),ISNUMBER(#REF!))), IF(ISNUMBER(#REF!),#REF!*G$2/G$40,0) +IF(ISNUMBER(#REF!),#REF!*G$3/G$40,0)+IF(ISNUMBER(#REF!),#REF!*G$4/G$40,0)+IF(ISNUMBER(#REF!),#REF!*G$26/G$40,0), "") ->  | I30: =IF(AND(I$42,OR(ISNUMBER(#REF!),ISNUMBER(#REF!),ISNUMBER(#REF!),ISNUMBER(#REF!))), IF(ISNUMBER(#REF!),#REF!*I$2/I$40,0) +IF(ISNUMBER(#REF!),#REF!*I$3/I$40,0)+IF(ISNUMBER(#REF!),#REF!*I$4/I$40,0)+IF(ISNUMBER(#REF!),#REF!*I$26/I$40,0), "") ->  | K30: =IF(AND(K$42,OR(ISNUMBER(#REF!),ISNUMBER(#REF!),ISNUMBER(#REF!),ISNUMBER(#REF!))), IF(ISNUMBER(#REF!),#REF!*K$2/K$40,0) +IF(ISNUMBER(#REF!),#REF!*K$3/K$40,0)+IF(ISNUMBER(#REF!),#REF!*K$4/K$40,0)+IF(ISNUMBER(#REF!),#REF!*K$26/K$40,0), "") ->  | M30: =IF(AND(M$42,OR(ISNUMBER(#REF!),ISNUMBER(#REF!),ISNUMBER(#REF!),ISNUMBER(#REF!))), IF(ISNUMBER(#REF!),#REF!*M$2/M$40,0) +IF(ISNUMBER(#REF!),#REF!*M$3/M$40,0)+IF(ISNUMBER(#REF!),#REF!*M$4/M$40,0)+IF(ISNUMBER(#REF!),#REF!*M$26/M$40,0), "") ->  | O30: =IF(AND(O$42,OR(ISNUMBER(#REF!),ISNUMBER(#REF!),ISNUMBER(#REF!),ISNUMBER(#REF!))), IF(ISNUMBER(#REF!),#REF!*O$2/O$40,0) +IF(ISNUMBER(#REF!),#REF!*O$3/O$40,0)+IF(ISNUMBER(#REF!),#REF!*O$4/O$40,0)+IF(ISNUMBER(#REF!),#REF!*O$26/O$40,0), "") -> 
B31: Option 4 | C31: =IF(AND(C$42,OR(ISNUMBER(#REF!),ISNUMBER(#REF!),ISNUMBER(#REF!),ISNUMBER(#REF!))), IF(ISNUMBER(#REF!),#REF!*C$2/C$40,0) +IF(ISNUMBER(#REF!),#REF!*C$3/C$40,0)+IF(ISNUMBER(#REF!),#REF!*C$4/C$40,0)+IF(ISNUMBER(#REF!),#REF!*C$26/C$40,0), "") ->  | E31: =IF(AND(E$42,OR(ISNUMBER(#REF!),ISNUMBER(#REF!),ISNUMBER(#REF!),ISNUMBER(#REF!))), IF(ISNUMBER(#REF!),#REF!*E$2/E$40,0) +IF(ISNUMBER(#REF!),#REF!*E$3/E$40,0)+IF(ISNUMBER(#REF!),#REF!*E$4/E$40,0)+IF(ISNUMBER(#REF!),#REF!*E$26/E$40,0), "") ->  | G31: =IF(AND(G$42,OR(ISNUMBER(#REF!),ISNUMBER(#REF!),ISNUMBER(#REF!),ISNUMBER(#REF!))), IF(ISNUMBER(#REF!),#REF!*G$2/G$40,0) +IF(ISNUMBER(#REF!),#REF!*G$3/G$40,0)+IF(ISNUMBER(#REF!),#REF!*G$4/G$40,0)+IF(ISNUMBER(#REF!),#REF!*G$26/G$40,0), "") ->  | I31: =IF(AND(I$42,OR(ISNUMBER(#REF!),ISNUMBER(#REF!),ISNUMBER(#REF!),ISNUMBER(#REF!))), IF(ISNUMBER(#REF!),#REF!*I$2/I$40,0) +IF(ISNUMBER(#REF!),#REF!*I$3/I$40,0)+IF(ISNUMBER(#REF!),#REF!*I$4/I$40,0)+IF(ISNUMBER(#REF!),#REF!*I$26/I$40,0), "") ->  | K31: =IF(AND(K$42,OR(ISNUMBER(#REF!),ISNUMBER(#REF!),ISNUMBER(#REF!),ISNUMBER(#REF!))), IF(ISNUMBER(#REF!),#REF!*K$2/K$40,0) +IF(ISNUMBER(#REF!),#REF!*K$3/K$40,0)+IF(ISNUMBER(#REF!),#REF!*K$4/K$40,0)+IF(ISNUMBER(#REF!),#REF!*K$26/K$40,0), "") ->  | M31: =IF(AND(M$42,OR(ISNUMBER(#REF!),ISNUMBER(#REF!),ISNUMBER(#REF!),ISNUMBER(#REF!))), IF(ISNUMBER(#REF!),#REF!*M$2/M$40,0) +IF(ISNUMBER(#REF!),#REF!*M$3/M$40,0)+IF(ISNUMBER(#REF!),#REF!*M$4/M$40,0)+IF(ISNUMBER(#REF!),#REF!*M$26/M$40,0), "") ->  | O31: =IF(AND(O$42,OR(ISNUMBER(#REF!),ISNUMBER(#REF!),ISNUMBER(#REF!),ISNUMBER(#REF!))), IF(ISNUMBER(#REF!),#REF!*O$2/O$40,0) +IF(ISNUMBER(#REF!),#REF!*O$3/O$40,0)+IF(ISNUMBER(#REF!),#REF!*O$4/O$40,0)+IF(ISNUMBER(#REF!),#REF!*O$26/O$40,0), "") -> 
B32: Option 5 | C32: =IF(AND(C$42,OR(ISNUMBER(#REF!),ISNUMBER(#REF!),ISNUMBER(#REF!),ISNUMBER(#REF!))), IF(ISNUMBER(#REF!),#REF!*C$2/C$40,0) +IF(ISNUMBER(#REF!),#REF!*C$3/C$40,0)+IF(ISNUMBER(#REF!),#REF!*C$4/C$40,0)+IF(ISNUMBER(#REF!),#REF!*C$26/C$40,0), "") ->  | E32: =IF(AND(E$42,OR(ISNUMBER(#REF!),ISNUMBER(#REF!),ISNUMBER(#REF!),ISNUMBER(#REF!))), IF(ISNUMBER(#REF!),#REF!*E$2/E$40,0) +IF(ISNUMBER(#REF!),#REF!*E$3/E$40,0)+IF(ISNUMBER(#REF!),#REF!*E$4/E$40,0)+IF(ISNUMBER(#REF!),#REF!*E$26/E$40,0), "") ->  | G32: =IF(AND(G$42,OR(ISNUMBER(#REF!),ISNUMBER(#REF!),ISNUMBER(#REF!),ISNUMBER(#REF!))), IF(ISNUMBER(#REF!),#REF!*G$2/G$40,0) +IF(ISNUMBER(#REF!),#REF!*G$3/G$40,0)+IF(ISNUMBER(#REF!),#REF!*G$4/G$40,0)+IF(ISNUMBER(#REF!),#REF!*G$26/G$40,0), "") ->  | I32: =IF(AND(I$42,OR(ISNUMBER(#REF!),ISNUMBER(#REF!),ISNUMBER(#REF!),ISNUMBER(#REF!))), IF(ISNUMBER(#REF!),#REF!*I$2/I$40,0) +IF(ISNUMBER(#REF!),#REF!*I$3/I$40,0)+IF(ISNUMBER(#REF!),#REF!*I$4/I$40,0)+IF(ISNUMBER(#REF!),#REF!*I$26/I$40,0), "") ->  | K32: =IF(AND(K$42,OR(ISNUMBER(#REF!),ISNUMBER(#REF!),ISNUMBER(#REF!),ISNUMBER(#REF!))), IF(ISNUMBER(#REF!),#REF!*K$2/K$40,0) +IF(ISNUMBER(#REF!),#REF!*K$3/K$40,0)+IF(ISNUMBER(#REF!),#REF!*K$4/K$40,0)+IF(ISNUMBER(#REF!),#REF!*K$26/K$40,0), "") ->  | M32: =IF(AND(M$42,OR(ISNUMBER(#REF!),ISNUMBER(#REF!),ISNUMBER(#REF!),ISNUMBER(#REF!))), IF(ISNUMBER(#REF!),#REF!*M$2/M$40,0) +IF(ISNUMBER(#REF!),#REF!*M$3/M$40,0)+IF(ISNUMBER(#REF!),#REF!*M$4/M$40,0)+IF(ISNUMBER(#REF!),#REF!*M$26/M$40,0), "") ->  | O32: =IF(AND(O$42,OR(ISNUMBER(#REF!),ISNUMBER(#REF!),ISNUMBER(#REF!),ISNUMBER(#REF!))), IF(ISNUMBER(#REF!),#REF!*O$2/O$40,0) +IF(ISNUMBER(#REF!),#REF!*O$3/O$40,0)+IF(ISNUMBER(#REF!),#REF!*O$4/O$40,0)+IF(ISNUMBER(#REF!),#REF!*O$26/O$40,0), "") -> 
B33: Option 6 | C33: =IF(AND(C$42,OR(ISNUMBER(#REF!),ISNUMBER(#REF!),ISNUMBER(#REF!),ISNUMBER(#REF!))), IF(ISNUMBER(#REF!),#REF!*C$2/C$40,0) +IF(ISNUMBER(#REF!),#REF!*C$3/C$40,0)+IF(ISNUMBER(#REF!),#REF!*C$4/C$40,0)+IF(ISNUMBER(#REF!),#REF!*C$26/C$40,0), "") ->  | E33: =IF(AND(E$42,OR(ISNUMBER(#REF!),ISNUMBER(#REF!),ISNUMBER(#REF!),ISNUMBER(#REF!))), IF(ISNUMBER(#REF!),#REF!*E$2/E$40,0) +IF(ISNUMBER(#REF!),#REF!*E$3/E$40,0)+IF(ISNUMBER(#REF!),#REF!*E$4/E$40,0)+IF(ISNUMBER(#REF!),#REF!*E$26/E$40,0), "") ->  | G33: =IF(AND(G$42,OR(ISNUMBER(#REF!),ISNUMBER(#REF!),ISNUMBER(#REF!),ISNUMBER(#REF!))), IF(ISNUMBER(#REF!),#REF!*G$2/G$40,0) +IF(ISNUMBER(#REF!),#REF!*G$3/G$40,0)+IF(ISNUMBER(#REF!),#REF!*G$4/G$40,0)+IF(ISNUMBER(#REF!),#REF!*G$26/G$40,0), "") ->  | I33: =IF(AND(I$42,OR(ISNUMBER(#REF!),ISNUMBER(#REF!),ISNUMBER(#REF!),ISNUMBER(#REF!))), IF(ISNUMBER(#REF!),#REF!*I$2/I$40,0) +IF(ISNUMBER(#REF!),#REF!*I$3/I$40,0)+IF(ISNUMBER(#REF!),#REF!*I$4/I$40,0)+IF(ISNUMBER(#REF!),#REF!*I$26/I$40,0), "") ->  | K33: =IF(AND(K$42,OR(ISNUMBER(#REF!),ISNUMBER(#REF!),ISNUMBER(#REF!),ISNUMBER(#REF!))), IF(ISNUMBER(#REF!),#REF!*K$2/K$40,0) +IF(ISNUMBER(#REF!),#REF!*K$3/K$40,0)+IF(ISNUMBER(#REF!),#REF!*K$4/K$40,0)+IF(ISNUMBER(#REF!),#REF!*K$26/K$40,0), "") ->  | M33: =IF(AND(M$42,OR(ISNUMBER(#REF!),ISNUMBER(#REF!),ISNUMBER(#REF!),ISNUMBER(#REF!))), IF(ISNUMBER(#REF!),#REF!*M$2/M$40,0) +IF(ISNUMBER(#REF!),#REF!*M$3/M$40,0)+IF(ISNUMBER(#REF!),#REF!*M$4/M$40,0)+IF(ISNUMBER(#REF!),#REF!*M$26/M$40,0), "") ->  | O33: =IF(AND(O$42,OR(ISNUMBER(#REF!),ISNUMBER(#REF!),ISNUMBER(#REF!),ISNUMBER(#REF!))), IF(ISNUMBER(#REF!),#REF!*O$2/O$40,0) +IF(ISNUMBER(#REF!),#REF!*O$3/O$40,0)+IF(ISNUMBER(#REF!),#REF!*O$4/O$40,0)+IF(ISNUMBER(#REF!),#REF!*O$26/O$40,0), "") -> 
B34: Option 7 | C34: =IF(AND(C$42,OR(ISNUMBER(#REF!),ISNUMBER(#REF!),ISNUMBER(#REF!),ISNUMBER(#REF!))), IF(ISNUMBER(#REF!),#REF!*C$2/C$40,0) +IF(ISNUMBER(#REF!),#REF!*C$3/C$40,0)+IF(ISNUMBER(#REF!),#REF!*C$4/C$40,0)+IF(ISNUMBER(#REF!),#REF!*C$26/C$40,0), "") ->  | E34: =IF(AND(E$42,OR(ISNUMBER(#REF!),ISNUMBER(#REF!),ISNUMBER(#REF!),ISNUMBER(#REF!))), IF(ISNUMBER(#REF!),#REF!*E$2/E$40,0) +IF(ISNUMBER(#REF!),#REF!*E$3/E$40,0)+IF(ISNUMBER(#REF!),#REF!*E$4/E$40,0)+IF(ISNUMBER(#REF!),#REF!*E$26/E$40,0), "") ->  | G34: =IF(AND(G$42,OR(ISNUMBER(#REF!),ISNUMBER(#REF!),ISNUMBER(#REF!),ISNUMBER(#REF!))), IF(ISNUMBER(#REF!),#REF!*G$2/G$40,0) +IF(ISNUMBER(#REF!),#REF!*G$3/G$40,0)+IF(ISNUMBER(#REF!),#REF!*G$4/G$40,0)+IF(ISNUMBER(#REF!),#REF!*G$26/G$40,0), "") ->  | I34: =IF(AND(I$42,OR(ISNUMBER(#REF!),ISNUMBER(#REF!),ISNUMBER(#REF!),ISNUMBER(#REF!))), IF(ISNUMBER(#REF!),#REF!*I$2/I$40,0) +IF(ISNUMBER(#REF!),#REF!*I$3/I$40,0)+IF(ISNUMBER(#REF!),#REF!*I$4/I$40,0)+IF(ISNUMBER(#REF!),#REF!*I$26/I$40,0), "") ->  | K34: =IF(AND(K$42,OR(ISNUMBER(#REF!),ISNUMBER(#REF!),ISNUMBER(#REF!),ISNUMBER(#REF!))), IF(ISNUMBER(#REF!),#REF!*K$2/K$40,0) +IF(ISNUMBER(#REF!),#REF!*K$3/K$40,0)+IF(ISNUMBER(#REF!),#REF!*K$4/K$40,0)+IF(ISNUMBER(#REF!),#REF!*K$26/K$40,0), "") ->  | M34: =IF(AND(M$42,OR(ISNUMBER(#REF!),ISNUMBER(#REF!),ISNUMBER(#REF!),ISNUMBER(#REF!))), IF(ISNUMBER(#REF!),#REF!*M$2/M$40,0) +IF(ISNUMBER(#REF!),#REF!*M$3/M$40,0)+IF(ISNUMBER(#REF!),#REF!*M$4/M$40,0)+IF(ISNUMBER(#REF!),#REF!*M$26/M$40,0), "") ->  | O34: =IF(AND(O$42,OR(ISNUMBER(#REF!),ISNUMBER(#REF!),ISNUMBER(#REF!),ISNUMBER(#REF!))), IF(ISNUMBER(#REF!),#REF!*O$2/O$40,0) +IF(ISNUMBER(#REF!),#REF!*O$3/O$40,0)+IF(ISNUMBER(#REF!),#REF!*O$4/O$40,0)+IF(ISNUMBER(#REF!),#REF!*O$26/O$40,0), "") -> 
B35: Option 8 | C35: =IF(AND(C$42,OR(ISNUMBER(#REF!),ISNUMBER(#REF!),ISNUMBER(#REF!),ISNUMBER(#REF!))), IF(ISNUMBER(#REF!),#REF!*C$2/C$40,0) +IF(ISNUMBER(#REF!),#REF!*C$3/C$40,0)+IF(ISNUMBER(#REF!),#REF!*C$4/C$40,0)+IF(ISNUMBER(#REF!),#REF!*C$26/C$40,0), "") ->  | E35: =IF(AND(E$42,OR(ISNUMBER(#REF!),ISNUMBER(#REF!),ISNUMBER(#REF!),ISNUMBER(#REF!))), IF(ISNUMBER(#REF!),#REF!*E$2/E$40,0) +IF(ISNUMBER(#REF!),#REF!*E$3/E$40,0)+IF(ISNUMBER(#REF!),#REF!*E$4/E$40,0)+IF(ISNUMBER(#REF!),#REF!*E$26/E$40,0), "") ->  | G35: =IF(AND(G$42,OR(ISNUMBER(#REF!),ISNUMBER(#REF!),ISNUMBER(#REF!),ISNUMBER(#REF!))), IF(ISNUMBER(#REF!),#REF!*G$2/G$40,0) +IF(ISNUMBER(#REF!),#REF!*G$3/G$40,0)+IF(ISNUMBER(#REF!),#REF!*G$4/G$40,0)+IF(ISNUMBER(#REF!),#REF!*G$26/G$40,0), "") ->  | I35: =IF(AND(I$42,OR(ISNUMBER(#REF!),ISNUMBER(#REF!),ISNUMBER(#REF!),ISNUMBER(#REF!))), IF(ISNUMBER(#REF!),#REF!*I$2/I$40,0) +IF(ISNUMBER(#REF!),#REF!*I$3/I$40,0)+IF(ISNUMBER(#REF!),#REF!*I$4/I$40,0)+IF(ISNUMBER(#REF!),#REF!*I$26/I$40,0), "") ->  | K35: =IF(AND(K$42,OR(ISNUMBER(#REF!),ISNUMBER(#REF!),ISNUMBER(#REF!),ISNUMBER(#REF!))), IF(ISNUMBER(#REF!),#REF!*K$2/K$40,0) +IF(ISNUMBER(#REF!),#REF!*K$3/K$40,0)+IF(ISNUMBER(#REF!),#REF!*K$4/K$40,0)+IF(ISNUMBER(#REF!),#REF!*K$26/K$40,0), "") ->  | M35: =IF(AND(M$42,OR(ISNUMBER(#REF!),ISNUMBER(#REF!),ISNUMBER(#REF!),ISNUMBER(#REF!))), IF(ISNUMBER(#REF!),#REF!*M$2/M$40,0) +IF(ISNUMBER(#REF!),#REF!*M$3/M$40,0)+IF(ISNUMBER(#REF!),#REF!*M$4/M$40,0)+IF(ISNUMBER(#REF!),#REF!*M$26/M$40,0), "") ->  | O35: =IF(AND(O$42,OR(ISNUMBER(#REF!),ISNUMBER(#REF!),ISNUMBER(#REF!),ISNUMBER(#REF!))), IF(ISNUMBER(#REF!),#REF!*O$2/O$40,0) +IF(ISNUMBER(#REF!),#REF!*O$3/O$40,0)+IF(ISNUMBER(#REF!),#REF!*O$4/O$40,0)+IF(ISNUMBER(#REF!),#REF!*O$26/O$40,0), "") -> 
B36: Option 9 | C36: =IF(AND(C$42,OR(ISNUMBER(#REF!),ISNUMBER(#REF!),ISNUMBER(#REF!),ISNUMBER(#REF!))), IF(ISNUMBER(#REF!),#REF!*C$2/C$40,0) +IF(ISNUMBER(#REF!),#REF!*C$3/C$40,0)+IF(ISNUMBER(#REF!),#REF!*C$4/C$40,0)+IF(ISNUMBER(#REF!),#REF!*C$26/C$40,0), "") ->  | E36: =IF(AND(E$42,OR(ISNUMBER(#REF!),ISNUMBER(#REF!),ISNUMBER(#REF!),ISNUMBER(#REF!))), IF(ISNUMBER(#REF!),#REF!*E$2/E$40,0) +IF(ISNUMBER(#REF!),#REF!*E$3/E$40,0)+IF(ISNUMBER(#REF!),#REF!*E$4/E$40,0)+IF(ISNUMBER(#REF!),#REF!*E$26/E$40,0), "") ->  | G36: =IF(AND(G$42,OR(ISNUMBER(#REF!),ISNUMBER(#REF!),ISNUMBER(#REF!),ISNUMBER(#REF!))), IF(ISNUMBER(#REF!),#REF!*G$2/G$40,0) +IF(ISNUMBER(#REF!),#REF!*G$3/G$40,0)+IF(ISNUMBER(#REF!),#REF!*G$4/G$40,0)+IF(ISNUMBER(#REF!),#REF!*G$26/G$40,0), "") ->  | I36: =IF(AND(I$42,OR(ISNUMBER(#REF!),ISNUMBER(#REF!),ISNUMBER(#REF!),ISNUMBER(#REF!))), IF(ISNUMBER(#REF!),#REF!*I$2/I$40,0) +IF(ISNUMBER(#REF!),#REF!*I$3/I$40,0)+IF(ISNUMBER(#REF!),#REF!*I$4/I$40,0)+IF(ISNUMBER(#REF!),#REF!*I$26/I$40,0), "") ->  | K36: =IF(AND(K$42,OR(ISNUMBER(#REF!),ISNUMBER(#REF!),ISNUMBER(#REF!),ISNUMBER(#REF!))), IF(ISNUMBER(#REF!),#REF!*K$2/K$40,0) +IF(ISNUMBER(#REF!),#REF!*K$3/K$40,0)+IF(ISNUMBER(#REF!),#REF!*K$4/K$40,0)+IF(ISNUMBER(#REF!),#REF!*K$26/K$40,0), "") ->  | M36: =IF(AND(M$42,OR(ISNUMBER(#REF!),ISNUMBER(#REF!),ISNUMBER(#REF!),ISNUMBER(#REF!))), IF(ISNUMBER(#REF!),#REF!*M$2/M$40,0) +IF(ISNUMBER(#REF!),#REF!*M$3/M$40,0)+IF(ISNUMBER(#REF!),#REF!*M$4/M$40,0)+IF(ISNUMBER(#REF!),#REF!*M$26/M$40,0), "") ->  | O36: =IF(AND(O$42,OR(ISNUMBER(#REF!),ISNUMBER(#REF!),ISNUMBER(#REF!),ISNUMBER(#REF!))), IF(ISNUMBER(#REF!),#REF!*O$2/O$40,0) +IF(ISNUMBER(#REF!),#REF!*O$3/O$40,0)+IF(ISNUMBER(#REF!),#REF!*O$4/O$40,0)+IF(ISNUMBER(#REF!),#REF!*O$26/O$40,0), "") -> 
B37: Option 10 | C37: =IF(AND(C$42,OR(ISNUMBER(#REF!),ISNUMBER(#REF!),ISNUMBER(#REF!),ISNUMBER(#REF!))), IF(ISNUMBER(#REF!),#REF!*C$2/C$40,0) +IF(ISNUMBER(#REF!),#REF!*C$3/C$40,0)+IF(ISNUMBER(#REF!),#REF!*C$4/C$40,0)+IF(ISNUMBER(#REF!),#REF!*C$26/C$40,0), "") ->  | E37: =IF(AND(E$42,OR(ISNUMBER(#REF!),ISNUMBER(#REF!),ISNUMBER(#REF!),ISNUMBER(#REF!))), IF(ISNUMBER(#REF!),#REF!*E$2/E$40,0) +IF(ISNUMBER(#REF!),#REF!*E$3/E$40,0)+IF(ISNUMBER(#REF!),#REF!*E$4/E$40,0)+IF(ISNUMBER(#REF!),#REF!*E$26/E$40,0), "") ->  | G37: =IF(AND(G$42,OR(ISNUMBER(#REF!),ISNUMBER(#REF!),ISNUMBER(#REF!),ISNUMBER(#REF!))), IF(ISNUMBER(#REF!),#REF!*G$2/G$40,0) +IF(ISNUMBER(#REF!),#REF!*G$3/G$40,0)+IF(ISNUMBER(#REF!),#REF!*G$4/G$40,0)+IF(ISNUMBER(#REF!),#REF!*G$26/G$40,0), "") ->  | I37: =IF(AND(I$42,OR(ISNUMBER(#REF!),ISNUMBER(#REF!),ISNUMBER(#REF!),ISNUMBER(#REF!))), IF(ISNUMBER(#REF!),#REF!*I$2/I$40,0) +IF(ISNUMBER(#REF!),#REF!*I$3/I$40,0)+IF(ISNUMBER(#REF!),#REF!*I$4/I$40,0)+IF(ISNUMBER(#REF!),#REF!*I$26/I$40,0), "") ->  | K37: =IF(AND(K$42,OR(ISNUMBER(#REF!),ISNUMBER(#REF!),ISNUMBER(#REF!),ISNUMBER(#REF!))), IF(ISNUMBER(#REF!),#REF!*K$2/K$40,0) +IF(ISNUMBER(#REF!),#REF!*K$3/K$40,0)+IF(ISNUMBER(#REF!),#REF!*K$4/K$40,0)+IF(ISNUMBER(#REF!),#REF!*K$26/K$40,0), "") ->  | M37: =IF(AND(M$42,OR(ISNUMBER(#REF!),ISNUMBER(#REF!),ISNUMBER(#REF!),ISNUMBER(#REF!))), IF(ISNUMBER(#REF!),#REF!*M$2/M$40,0) +IF(ISNUMBER(#REF!),#REF!*M$3/M$40,0)+IF(ISNUMBER(#REF!),#REF!*M$4/M$40,0)+IF(ISNUMBER(#REF!),#REF!*M$26/M$40,0), "") ->  | O37: =IF(AND(O$42,OR(ISNUMBER(#REF!),ISNUMBER(#REF!),ISNUMBER(#REF!),ISNUMBER(#REF!))), IF(ISNUMBER(#REF!),#REF!*O$2/O$40,0) +IF(ISNUMBER(#REF!),#REF!*O$3/O$40,0)+IF(ISNUMBER(#REF!),#REF!*O$4/O$40,0)+IF(ISNUMBER(#REF!),#REF!*O$26/O$40,0), "") -> 
C39: Sum | E39: Sum | G39: Sum | I39: Sum | K39: Sum | M39: Sum | O39: Sum
C40: =SUM(C2:C26) -> 2500 | E40: =SUM(E2:E26) -> 0 | G40: =SUM(G2:G26) -> 0 | I40: =SUM(I2:I26) -> 0 | K40: =SUM(K2:K26) -> 0 | M40: =SUM(M2:M26) -> 0 | O40: =SUM(O2:O26) -> 0
C41: Is Number | E41: Is Number | G41: Is Number | I41: Is Number | K41: Is Number | M41: Is Number | O41: Is Number
C42: =AND(ISNUMBER(C2), ISNUMBER(C3), ISNUMBER(C4), ISNUMBER(C5), ISNUMBER(C6), ISNUMBER(C7), ISNUMBER(C8), ISNUMBER(C9), ISNUMBER(C10), ISNUMBER(C11), ISNUMBER(C12), ISNUMBER(C13), ISNUMBER(C14), ISNUMBER(C15), ISNUMBER(C16), ISNUMBER(C17), ISNUMBER(C18), ISNUMBER(C19), ISNUMBER(C20), ISNUMBER(C21), ISNUMBER(C22), ISNUMBER(C23), ISNUMBER(C24), ISNUMBER(C25), ISNUMBER(C26)) -> TRUE | E42: =AND(ISNUMBER(E2), ISNUMBER(E3), ISNUMBER(E4), ISNUMBER(E5), ISNUMBER(E6), ISNUMBER(E7), ISNUMBER(E8), ISNUMBER(E9), ISNUMBER(E10), ISNUMBER(E11), ISNUMBER(E12), ISNUMBER(E13), ISNUMBER(E14), ISNUMBER(E15), ISNUMBER(E16), ISNUMBER(E17), ISNUMBER(E18), ISNUMBER(E19), ISNUMBER(E20), ISNUMBER(E21), ISNUMBER(E22), ISNUMBER(E23), ISNUMBER(E24), ISNUMBER(E25), ISNUMBER(E26)) -> FALSE | G42: =AND(ISNUMBER(G2), ISNUMBER(G3), ISNUMBER(G4), ISNUMBER(G5), ISNUMBER(G6), ISNUMBER(G7), ISNUMBER(G8), ISNUMBER(G9), ISNUMBER(G10), ISNUMBER(G11), ISNUMBER(G12), ISNUMBER(G13), ISNUMBER(G14), ISNUMBER(G15), ISNUMBER(G16), ISNUMBER(G17), ISNUMBER(G18), ISNUMBER(G19), ISNUMBER(G20), ISNUMBER(G21), ISNUMBER(G22), ISNUMBER(G23), ISNUMBER(G24), ISNUMBER(G25), ISNUMBER(G26)) -> FALSE | I42: =AND(ISNUMBER(I2), ISNUMBER(I3), ISNUMBER(I4), ISNUMBER(I5), ISNUMBER(I6), ISNUMBER(I7), ISNUMBER(I8), ISNUMBER(I9), ISNUMBER(I10), ISNUMBER(I11), ISNUMBER(I12), ISNUMBER(I13), ISNUMBER(I14), ISNUMBER(I15), ISNUMBER(I16), ISNUMBER(I17), ISNUMBER(I18), ISNUMBER(I19), ISNUMBER(I20), ISNUMBER(I21), ISNUMBER(I22), ISNUMBER(I23), ISNUMBER(I24), ISNUMBER(I25), ISNUMBER(I26)) -> FALSE | K42: =AND(ISNUMBER(K2), ISNUMBER(K3), ISNUMBER(K4), ISNUMBER(K5), ISNUMBER(K6), ISNUMBER(K7), ISNUMBER(K8), ISNUMBER(K9), ISNUMBER(K10), ISNUMBER(K11), ISNUMBER(K12), ISNUMBER(K13), ISNUMBER(K14), ISNUMBER(K15), ISNUMBER(K16), ISNUMBER(K17), ISNUMBER(K18), ISNUMBER(K19), ISNUMBER(K20), ISNUMBER(K21), ISNUMBER(K22), ISNUMBER(K23), ISNUMBER(K24), ISNUMBER(K25), ISNUMBER(K26)) -> FALSE | M42: =AND(ISNUMBER(M2), ISNUMBER(M3), ISNUMBER(M4), ISNUMBER(M5), ISNUMBER(M6), ISNUMBER(M7), ISNUMBER(M8), ISNUMBER(M9), ISNUMBER(M10), ISNUMBER(M11), ISNUMBER(M12), ISNUMBER(M13), ISNUMBER(M14), ISNUMBER(M15), ISNUMBER(M16), ISNUMBER(M17), ISNUMBER(M18), ISNUMBER(M19), ISNUMBER(M20), ISNUMBER(M21), ISNUMBER(M22), ISNUMBER(M23), ISNUMBER(M24), ISNUMBER(M25), ISNUMBER(M26)) -> FALSE | O42: =AND(ISNUMBER(O2), ISNUMBER(O3), ISNUMBER(O4), ISNUMBER(O5), ISNUMBER(O6), ISNUMBER(O7), ISNUMBER(O8), ISNUMBER(O9), ISNUMBER(O10), ISNUMBER(O11), ISNUMBER(O12), ISNUMBER(O13), ISNUMBER(O14), ISNUMBER(O15), ISNUMBER(O16), ISNUMBER(O17), ISNUMBER(O18), ISNUMBER(O19), ISNUMBER(O20), ISNUMBER(O21), ISNUMBER(O22), ISNUMBER(O23), ISNUMBER(O24), ISNUMBER(O25), ISNUMBER(O26)) -> FALSE

Sheet Simulation Output 1
A2: Loss Distribution | B2: Base Case Scenario | C2: ST1 Ignore Future | D2: ST2 Protect Future | E2: ST3 More Growth | F2: ST4 More Fires | G2: Fire Trails | H2: Fire Control Towers | I2: Rezone Land | J2: Prescribed Burning
A3: Mean | B3: 75302528.89 | C3: 47757455.82 | D3: 121502717.1 | E3: 103301948 | F3: 90065977.56 | G3: 52435980.84 | H3: 52017155.62 | I3: 25589023.88 | J3: 12996385.63
A4: Median | B4: 61055766.09 | C4: 35193449.66 | D4: 102115752.3 | E4: 85345084.48 | F4: 75757039.13 | G4: 44891721.7 | H4: 44369761.96 | I4: 23616256.45 | J4: 11149130.86
A5: Standard Deviation | B5: 62489090.15 | C5: 45966158.53 | D5: 90809508.35 | E5: 80371271.29 | F5: 66622284.65 | G5: 37110008.88 | H5: 36876273.99 | I5: 14409394.13 | J5: 10344270.78
A6: 90% of loss | B6: 152129536.8 | C6: 100751424 | D6: 236691255.8 | E6: 204229713.7 | F6: 170037384.9 | G6: 99966077.7 | H6: 99862794 | I6: 44606320.98 | J6: 26836609.57
A7: 95% of loss | B7: 190715051.4 | C7: 133803649.4 | D7: 290855700 | E7: 252388429.6 | F7: 213527195.6 | G7: 123812908 | H7: 122412449.3 | I7: 52005558.94 | J7: 32148475.88
A8: 99% of loss | B8: 286634801.6 | C8: 221317911.5 | D8: 424577110.4 | E8: 375763878.5 | F8: 316703015.5 | G8: 174243849.9 | H8: 169617869.3 | I8: 66825578.95 | J8: 45438635.93
A10: Benefit
A11: Benefit (Mean) | G11: =$B$3 - $G$3 -> 22866548.05 | H11: =$B$3 - $H$3 -> 23285373.27 | I11: =$B$3 - $I$3 -> 49713505 | J11: =$B$3 - $J$3 -> 62306143.26
A12: Benefit (95%) | G12: =$B$7 - $G$7 -> 66902143.31 | H12: =$B$7 - $H$7 -> 68302602.02 | I12: =$B$7 - $I$7 -> 138709492.4 | J12: =$B$7 - $J$7 -> 158566575.5
A13: Costs
A14: Option Cost | G14: 3104056.166 | H14: 13486739.9 | I14: 71622.46633 | J14: 25973479.8
A15: Net Benefit
A16: Net Benefit (Mean) | G16: =$G$11 - $G$14 -> 19762491.88 | H16: =$H$11 - $H$14 -> 9798633.371 | I16: =$I$11 - $I$14 -> 49641882.54 | J16: =$J$11 - $J$14 -> 36332663.46
A17: Net Benefit (95%) | G17: =$G$12 - $G$14 -> 63798087.15 | H17: =$H$12 - $H$14 -> 54815862.12 | I17: =$I$12 - $I$14 -> 138637869.9 | J17: =$J$12 - $J$14 -> 132593095.7
A19: Input parameters
A20: Simulation
A21: Years | B21: 40 | C21: 40 | D21: 40 | E21: 40 | F21: 40 | G21: 40 | H21: 40 | I21: 40 | J21: 40
A22: Discount Rate | B22: 0.06 | C22: 0.1 | D22: 0.03 | E22: 0.06 | F22: 0.06 | G22: 0.06 | H22: 0.06 | I22: 0.06 | J22: 0.06
A23: Growth Rate | B23: 0.02 | C23: 0.02 | D23: 0.02 | E23: 0.04 | F23: 0.02 | G23: 0.02 | H23: 0.02 | I23: 0.02 | J23: 0.02
A24: Change in Frequency | B24: 0 | C24: 0 | D24: 0 | E24: 0 | F24: 0.5
A25: Number of Simulations | B25: 10000 | C25: 10000 | D25: 10000 | E25: 10000 | F25: 10000 | G25: 10000 | H25: 10000 | I25: 10000 | J25: 10000
A26: Frequency
A27: Events per Year | B27: 0.1
A28: Lower Bound | B28: 0.06666667
A29: Upper Bound | B29: 0.14285714
A30: Probability | B30: 0.66666667
A31: Observed No. of Years | B31: 10
A32: Observed No. of Events | B32: 2
A33: Estimated Frequency | B33: 0.1130539336 | C33: 0.1130539336 | D33: 0.1130539336 | E33: 0.1130539336 | F33: 0.1130539336 | G33: 0.1130539336 | H33: 0.1130539336 | I33: 0.1130539336 | J33: 0.05652696678
A34: Frequency Reduction | G34: 0 | H34: 0 | I34: 0 | J34: 0.5
A35: Severity
A36: Median | B36: 20000000 | C36: 20000000 | D36: 20000000 | E36: 20000000 | F36: 20000000 | G36: 16000000 | H36: 16000000 | I36: 10000000 | J36: 10000000
A37: Worst Case (95%) | B37: 100000000 | C37: 100000000 | D37: 100000000 | E37: 100000000 | F37: 100000000 | G37: 60000000 | H37: 60000000 | I37: 20000000 | J37: 20000000
A38: Change in Median | C38: 0 | D38: 0 | E38: 0 | F38: 0 | G38: -0.2 | H38: -0.2 | I38: -0.5 | J38: -0.5
A39: Change in Worst Case | C39: 0 | D39: 0 | E39: 0 | F39: 0 | G39: -0.4 | H39: -0.4 | I39: -0.8 | J39: -0.8
A40: Distribution | B40: Lognormal | C40: Lognormal | D40: Lognormal | E40: Lognormal | F40: Lognormal | G40: Lognormal | H40: Lognormal | I40: Lognormal | J40: Lognormal
A41: Mu | B41: 16.81124283 | C41: 16.81124283 | D41: 16.81124283 | E41: 16.81124283 | F41: 16.81124283 | G41: 16.58809928 | H41: 16.58809928 | I41: 16.11809565 | J41: 16.11809565
A42: Sigma | B42: 0.9784687744 | C42: 0.9784687744 | D42: 0.9784687744 | E42: 0.9784687744 | F42: 0.9784687744 | G42: 0.803570493 | H42: 0.803570493 | I42: 0.4214035639 | J42: 0.4214035639
A43: Costs
A44: Capital | G44: 3000000 | H44: 1000000 | I44: 30000 | J44: 1000000
A45: Maintenance | G45: 5000 | H45: 600000 | I45: 2000 | J45: 1200000

Sheet Simulation Output 1 Graph Data (hidden)
A1: ='Simulation Output 1'!$B$2 -> Base Case Scenario | B1: Loss Distribution | C1: ='Simulation Output 1'!$B$2 -> Base Case Scenario | D1: Cumulative Loss | E1: ='Simulation Output 1'!$C$2 -> ST1 Ignore Future | F1: Loss Distribution | G1: ='Simulation Output 1'!$C$2 -> ST1 Ignore Future | H1: Cumulative Loss | I1: ='Simulation Output 1'!$D$2 -> ST2 Protect Future | J1: Loss Distribution | K1: ='Simulation Output 1'!$D$2 -> ST2 Protect Future | L1: Cumulative Loss | M1: ='Simulation Output 1'!$E$2 -> ST3 More Growth | N1: Loss Distribution | O1: ='Simulation Output 1'!$E$2 -> ST3 More Growth | P1: Cumulative Loss | Q1: ='Simulation Output 1'!$F$2 -> ST4 More Fires | R1: Loss Distribution | S1: ='Simulation Output 1'!$F$2 -> ST4 More Fires | T1: Cumulative Loss | U1: ='Simulation Output 1'!$G$2 -> Fire Trails | V1: Loss Distribution | W1: ='Simulation Output 1'!$G$2 -> Fire Trails | X1: Cumulative Loss | Y1: ='Simulation Output 1'!$H$2 -> Fire Control Towers | Z1: Loss Distribution | AA1: ='Simulation Output 1'!$H$2 -> Fire Control Towers | AB1: Cumulative Loss | AC1: ='Simulation Output 1'!$I$2 -> Rezone Land | AD1: Loss Distribution | AE1: ='Simulation Output 1'!$I$2 -> Rezone Land | AF1: Cumulative Loss | AG1: ='Simulation Output 1'!$J$2 -> Prescribed Burning | AH1: Loss Distribution | AI1: ='Simulation Output 1'!$J$2 -> Prescribed Burning | AJ1: Cumulative Loss
A2: Bins | B2: Frequency | C2: Year | D2: Yearly Loss | E2: Bins | F2: Frequency | G2: Year | H2: Yearly Loss | I2: Bins | J2: Frequency | K2: Year | L2: Yearly Loss | M2: Bins | N2: Frequency | O2: Year | P2: Yearly Loss | Q2: Bins | R2: Frequency | S2: Year | T2: Yearly Loss | U2: Bins | V2: Frequency | W2: Year | X2: Yearly Loss | Y2: Bins | Z2: Frequency | AA2: Year | AB2: Yearly Loss | AC2: Bins | AD2: Frequency | AE2: Year | AF2: Yearly Loss | AG2: Bins | AH2: Frequency | AI2: Year | AJ2: Yearly Loss
A3: 0 | B3: 113 | C3: 1 | D3: 3561776.096 | E3: 0 | F3: 114 | G3: 1 | H3: 3512015.259 | I3: 0 | J3: 109 | K3: 1 | L3: 3701580.231 | M3: 0 | N3: 97 | O3: 1 | P3: 3668957.959 | Q3: 0 | R3: 37 | S3: 1 | T3: 3899488.267 | U3: 0 | V3: 119 | W3: 1 | X3: 5594938.24 | Y3: 0 | Z3: 100 | AA3: 1 | AB3: 4191042.445 | AC3: 0 | AD3: 108 | AE3: 1 | AF3: 1181123.136 | AG3: 0 | AH3: 1059 | AI3: 1 | AJ3: 2858561.532
A4: 12660575.63 | B4: 644 | C4: 2 | D4: 6769844.113 | E4: 5877405.999 | F4: 674 | G4: 2 | H4: 7153037.108 | I4: 9997411.111 | J4: 177 | K4: 2 | L4: 7286325.39 | M4: 11935563.09 | N4: 335 | O4: 2 | P4: 7206708.41 | Q4: 9840292.98 | R4: 232 | S4: 2 | T4: 7495603.971 | U4: 3553674.197 | V4: 86 | W4: 2 | X4: 8028523.19 | Y4: 5320983.725 | Z4: 214 | AA4: 2 | AB4: 7080160.058 | AC4: 986645.5081 | AD4: 2 | AE4: 2 | AF4: 2394935.271 | AG4: 780733.7766 | AH4: 3 | AI4: 2 | AJ4: 4652790.482
A5: 25321151.26 | B5: 1050 | C5: 3 | D5: 10439499.39 | E5: 11754812 | F5: 858 | G5: 3 | H5: 10135101.06 | I5: 19994822.22 | J5: 341 | K5: 3 | L5: 11017423.49 | M5: 23871126.18 | N5: 568 | O5: 3 | P5: 10813662.6 | Q5: 19680585.96 | R5: 467 | S5: 3 | T5: 11271525.83 | U5: 7107348.395 | V5: 222 | W5: 3 | X5: 10310276.1 | Y5: 10641967.45 | Z5: 411 | AA5: 3 | AB5: 9907923.012 | AC5: 1973291.016 | AD5: 43 | AE5: 3 | AF5: 3489213.416 | AG5: 1561467.553 | AH5: 78 | AI5: 3 | AJ5: 6328955.921
A6: 37981726.89 | B6: 1211 | C6: 4 | D6: 13563983.63 | E6: 17632218 | F6: 915 | G6: 4 | H6: 12966689.42 | I6: 29992233.33 | J6: 410 | K6: 4 | L6: 14505049.9 | M6: 35806689.27 | N6: 735 | O6: 4 | P6: 14311598.86 | Q6: 29520878.94 | R6: 630 | S6: 4 | T6: 14575720.1 | U6: 10661022.59 | V6: 300 | W6: 4 | X6: 12463802.89 | Y6: 15962951.17 | Z6: 530 | AA6: 4 | AB6: 12900656.11 | AC6: 2959936.524 | AD6: 69 | AE6: 4 | AF6: 4609025.939 | AG6: 2342201.33 | AH6: 227 | AI6: 4 | AJ6: 7986605.838
A7: 50642302.51 | B7: 1158 | C7: 5 | D7: 16424539.34 | E7: 23509624 | F7: 865 | G7: 5 | H7: 15746962.1 | I7: 39989644.44 | J7: 492 | K7: 5 | L7: 17775860.21 | M7: 47742252.35 | N7: 769 | O7: 5 | P7: 17581425.24 | Q7: 39361171.92 | R7: 718 | S7: 5 | T7: 17955510.18 | U7: 14214696.79 | V7: 385 | W7: 5 | X7: 14625730.56 | Y7: 21283934.9 | Z7: 680 | AA7: 5 | AB7: 15606332.66 | AC7: 3946582.032 | AD7: 108 | AE7: 5 | AF7: 5654460.391 | AG7: 3122935.106 | AH7: 280 | AI7: 5 | AJ7: 9506399.738
A8: 63302878.14 | B8: 975 | C8: 6 | D8: 19313066.52 | E8: 29387029.99 | F8: 819 | G8: 6 | H8: 18472206.84 | I8: 49987055.55 | J8: 533 | K8: 6 | L8: 21190715.32 | M8: 59677815.44 | N8: 785 | O8: 6 | P8: 20944587.26 | Q8: 49201464.9 | R8: 835 | S8: 6 | T8: 21197037.67 | U8: 17768370.99 | V8: 431 | W8: 6 | X8: 16893699.88 | Y8: 26604918.62 | Z8: 694 | AA8: 6 | AB8: 18113648.99 | AC8: 4933227.54 | AD8: 98 | AE8: 6 | AF8: 6619693.349 | AG8: 3903668.883 | AH8: 300 | AI8: 6 | AJ8: 11065794.27
A9: 75963453.77 | B9: 943 | C9: 7 | D9: 22106744.79 | E9: 35264435.99 | F9: 760 | G9: 7 | H9: 20583028.79 | I9: 59984466.66 | J9: 564 | K9: 7 | L9: 24558615.28 | M9: 71613378.53 | N9: 820 | O9: 7 | P9: 24422803.11 | Q9: 59041757.88 | R9: 733 | S9: 7 | T9: 24193487.02 | U9: 21322045.18 | V9: 417 | W9: 7 | X9: 18851134.82 | Y9: 31925902.35 | Z9: 753 | AA9: 7 | AB9: 20442389.66 | AC9: 5919873.048 | AD9: 124 | AE9: 7 | AF9: 7620611.174 | AG9: 4684402.66 | AH9: 328 | AI9: 7 | AJ9: 12512740.16
A10: 88624029.4 | B10: 822 | C10: 8 | D10: 24977286.95 | E10: 41141841.99 | F10: 626 | G10: 8 | H10: 22681337.95 | I10: 69981877.77 | J10: 596 | K10: 8 | L10: 27725927.5 | M10: 83548941.62 | N10: 780 | O10: 8 | P10: 27663084.03 | Q10: 68882050.86 | R10: 830 | S10: 8 | T10: 27131554.54 | U10: 24875719.38 | V10: 443 | W10: 8 | X10: 20855191.41 | Y10: 37246886.07 | Z10: 727 | AA10: 8 | AB10: 22837495.74 | AC10: 6906518.556 | AD10: 152 | AE10: 8 | AF10: 8557063.581 | AG10: 5465136.436 | AH10: 337 | AI10: 8 | AJ10: 13882618.81
A11: 101284605 | B11: 623 | C11: 9 | D11: 27636260.53 | E11: 47019247.99 | F11: 584 | G11: 9 | H11: 24613181.35 | I11: 79979288.88 | J11: 548 | K11: 9 | L11: 31314985.75 | M11: 95484504.71 | N11: 688 | O11: 9 | P11: 30700728.78 | Q11: 78722343.84 | R11: 754 | S11: 9 | T11: 29928382.29 | U11: 28429393.58 | V11: 449 | W11: 9 | X11: 22712416.02 | Y11: 42567869.8 | Z11: 674 | AA11: 9 | AB11: 25064011.5 | AC11: 7893164.065 | AD11: 152 | AE11: 9 | AF11: 9479113.921 | AG11: 6245870.213 | AH11: 330 | AI11: 9 | AJ11: 15227498.86
A12: 113945180.7 | B12: 496 | C12: 10 | D12: 30120019.62 | E12: 52896653.99 | F12: 535 | G12: 10 | H12: 26502928.08 | I12: 89976700 | J12: 572 | K12: 10 | L12: 34409167.85 | M12: 107420067.8 | N12: 654 | O12: 10 | P12: 33825481 | Q12: 88562636.82 | R12: 649 | S12: 10 | T12: 32557332.86 | U12: 31983067.78 | V12: 486 | W12: 10 | X12: 24476403.15 | Y12: 47888853.52 | Z12: 632 | AA12: 10 | AB12: 27227658.68 | AC12: 8879809.573 | AD12: 193 | AE12: 10 | AF12: 10318121.47 | AG12: 7026603.99 | AH12: 348 | AI12: 10 | AJ12: 16532106.97
A13: 126605756.3 | B13: 402 | C13: 11 | D13: 32680081.63 | E13: 58774059.99 | F13: 465 | G13: 11 | H13: 28303763.78 | I13: 99974111.11 | J13: 534 | K13: 11 | L13: 38011894.87 | M13: 119355630.9 | N13: 538 | O13: 11 | P13: 37103571.39 | Q13: 98402929.8 | R13: 610 | S13: 11 | T13: 35160880.15 | U13: 35536741.97 | V13: 450 | W13: 11 | X13: 26198102.24 | Y13: 53209837.25 | Z13: 597 | AA13: 11 | AB13: 29299779.42 | AC13: 9866455.081 | AD13: 197 | AE13: 11 | AF13: 11158619.78 | AG13: 7807337.766 | AH13: 353 | AI13: 11 | AJ13: 17770231.62
A14: 139266331.9 | B14: 326 | C14: 12 | D14: 35101869.36 | E14: 64651465.99 | F14: 388 | G14: 12 | H14: 30032629.61 | I14: 109971522.2 | J14: 541 | K14: 12 | L14: 41158582.52 | M14: 131291194 | N14: 480 | O14: 12 | P14: 40253704 | Q14: 108243222.8 | R14: 512 | S14: 12 | T14: 37926976.75 | U14: 39090416.17 | V14: 448 | W14: 12 | X14: 27902831.61 | Y14: 58530820.97 | Z14: 527 | AA14: 12 | AB14: 31398852.13 | AC14: 10853100.59 | AD14: 214 | AE14: 12 | AF14: 11960708.06 | AG14: 8588071.543 | AH14: 311 | AI14: 12 | AJ14: 18965432.13
A15: 151926907.5 | B15: 231 | C15: 13 | D15: 37628015.62 | E15: 70528871.99 | F15: 328 | G15: 13 | H15: 31448559.37 | I15: 119968933.3 | J15: 483 | K15: 13 | L15: 44467381.18 | M15: 143226757.1 | N15: 422 | O15: 13 | P15: 42961909.02 | Q15: 118083515.8 | R15: 479 | S15: 13 | T15: 40667129.32 | U15: 42644090.37 | V15: 505 | W15: 13 | X15: 29462918.59 | Y15: 63851804.7 | Z15: 464 | AA15: 13 | AB15: 33276624.7 | AC15: 11839746.1 | AD15: 248 | AE15: 13 | AF15: 12721721.95 | AG15: 9368805.319 | AH15: 301 | AI15: 13 | AJ15: 20092617.11
A16: 164587483.2 | B16: 232 | C16: 14 | D16: 39693422.57 | E16: 76406277.99 | F16: 266 | G16: 14 | H16: 33009612.92 | I16: 129966344.4 | J16: 444 | K16: 14 | L16: 47611544.55 | M16: 155162320.1 | N16: 397 | O16: 14 | P16: 45863115.12 | Q16: 127923808.7 | R16: 400 | S16: 14 | T16: 43101651.95 | U16: 46197764.57 | V16: 409 | W16: 14 | X16: 30976989.09 | Y16: 69172788.42 | Z16: 455 | AA16: 14 | AB16: 35163633.04 | AC16: 12826391.6 | AD16: 212 | AE16: 14 | AF16: 13524411.55 | AG16: 10149539.1 | AH16: 323 | AI16: 14 | AJ16: 21180230.42
A17: 177248058.8 | B17: 158 | C17: 15 | D17: 41800350.53 | E17: 82283683.99 | F17: 240 | G17: 15 | H17: 34295497.82 | I17: 139963755.5 | J17: 417 | K17: 15 | L17: 51018221.64 | M17: 167097883.2 | N17: 286 | O17: 15 | P17: 48478629.4 | Q17: 137764101.7 | R17: 332 | S17: 15 | T17: 45576223.71 | U17: 49751438.76 | V17: 394 | W17: 15 | X17: 32481946.7 | Y17: 74493772.15 | Z17: 361 | AA17: 15 | AB17: 37015256.48 | AC17: 13813037.11 | AD17: 271 | AE17: 15 | AF17: 14264756.66 | AG17: 10930272.87 | AH17: 344 | AI17: 15 | AJ17: 22244018.31
A18: 189908634.4 | B18: 100 | C18: 16 | D18: 43906489.11 | E18: 88161089.98 | F18: 212 | G18: 16 | H18: 35514527.97 | I18: 149961166.7 | J18: 351 | K18: 16 | L18: 54055547.86 | M18: 179033446.3 | N18: 251 | O18: 16 | P18: 51036653.1 | Q18: 147604394.7 | R18: 266 | S18: 16 | T18: 47905866.38 | U18: 53305112.96 | V18: 392 | W18: 16 | X18: 33819984.99 | Y18: 79814755.87 | Z18: 317 | AA18: 16 | AB18: 38736227.33 | AC18: 14799682.62 | AD18: 250 | AE18: 16 | AF18: 14959944.67 | AG18: 11711006.65 | AH18: 295 | AI18: 16 | AJ18: 23245426.25
A19: 202569210.1 | B19: 103 | C19: 17 | D19: 45753220.9 | E19: 94038495.98 | F19: 175 | G19: 17 | H19: 36606742.36 | I19: 159958577.8 | J19: 285 | K19: 17 | L19: 57095654.39 | M19: 190969009.4 | N19: 212 | O19: 17 | P19: 53478985.43 | Q19: 157444687.7 | R19: 249 | S19: 17 | T19: 50289331.27 | U19: 56858787.16 | V19: 385 | W19: 17 | X19: 35160849.39 | Y19: 85135739.6 | Z19: 271 | AA19: 17 | AB19: 40464779.03 | AC19: 15786328.13 | AD19: 278 | AE19: 17 | AF19: 15659464.22 | AG19: 12491740.43 | AH19: 304 | AI19: 17 | AJ19: 24241360.78
A20: 215229785.7 | B20: 90 | C20: 18 | D20: 47736050.55 | E20: 99915901.98 | F20: 155 | G20: 18 | H20: 37558278.66 | I20: 169955988.9 | J20: 310 | K20: 18 | L20: 60045560.57 | M20: 202904572.5 | N20: 173 | O20: 18 | P20: 56067601.6 | Q20: 167284980.7 | R20: 218 | S20: 18 | T20: 52541534.17 | U20: 60412461.35 | V20: 310 | W20: 18 | X20: 36441315.48 | Y20: 90456723.32 | Z20: 222 | AA20: 18 | AB20: 42004636.76 | AC20: 16772973.64 | AD20: 282 | AE20: 18 | AF20: 16268839.77 | AG20: 13272474.2 | AH20: 286 | AI20: 18 | AJ20: 25187524.77
A21: 227890361.3 | B21: 55 | C21: 19 | D21: 49562467.12 | E21: 105793308 | F21: 126 | G21: 19 | H21: 38498976.8 | I21: 179953400 | J21: 261 | K21: 19 | L21: 63216088.87 | M21: 214840135.6 | N21: 145 | O21: 19 | P21: 58825972.92 | Q21: 177125273.6 | R21: 149 | S21: 19 | T21: 54766329.59 | U21: 63966135.55 | V21: 303 | W21: 19 | X21: 37681951.55 | Y21: 95777707.05 | Z21: 226 | AA21: 19 | AB21: 43570716.75 | AC21: 17759619.15 | AD21: 269 | AE21: 19 | AF21: 16904729.68 | AG21: 14053207.98 | AH21: 284 | AI21: 19 | AJ21: 26120308.52
A22: 240550936.9 | B22: 52 | C22: 20 | D22: 51298000.54 | E22: 111670714 | F22: 107 | G22: 20 | H22: 39273032.97 | I22: 189950811.1 | J22: 237 | K22: 20 | L22: 66028006.55 | M22: 226775698.7 | N22: 141 | O22: 20 | P22: 61361391.68 | Q22: 186965566.6 | R22: 125 | S22: 20 | T22: 56970346.12 | U22: 67519809.75 | V22: 316 | W22: 20 | X22: 38900881.15 | Y22: 101098690.8 | Z22: 183 | AA22: 20 | AB22: 45087951.5 | AC22: 18746264.65 | AD22: 295 | AE22: 20 | AF22: 17497582.55 | AG22: 14833941.76 | AH22: 280 | AI22: 20 | AJ22: 26980054.55
A23: 253211512.6 | B23: 38 | C23: 21 | D23: 52984382.8 | E23: 117548120 | F23: 96 | G23: 21 | H23: 40068917.71 | I23: 199948222.2 | J23: 215 | K23: 21 | L23: 69122007.9 | M23: 238711261.8 | N23: 113 | O23: 21 | P23: 63923065.24 | Q23: 196805859.6 | R23: 123 | S23: 21 | T23: 59236742.14 | U23: 71073483.95 | V23: 304 | W23: 21 | X23: 40060972.13 | Y23: 106419674.5 | Z23: 148 | AA23: 21 | AB23: 46609919.36 | AC23: 19732910.16 | AD23: 292 | AE23: 21 | AF23: 18054306.24 | AG23: 15614675.53 | AH23: 245 | AI23: 21 | AJ23: 27821363.78
A24: 265872088.2 | B24: 36 | C24: 22 | D24: 54713172.92 | E24: 123425526 | F24: 80 | G24: 22 | H24: 40787017.19 | I24: 209945633.3 | J24: 171 | K24: 22 | L24: 72357060.61 | M24: 250646824.9 | N24: 97 | O24: 22 | P24: 66411502.47 | Q24: 206646152.6 | R24: 80 | S24: 22 | T24: 61374638.02 | U24: 74627158.14 | V24: 239 | W24: 22 | X24: 41212245.12 | Y24: 111740658.2 | Z24: 110 | AA24: 22 | AB24: 48024102.85 | AC24: 20719555.67 | AD24: 286 | AE24: 22 | AF24: 18602432.39 | AG24: 16395409.31 | AH24: 233 | AI24: 22 | AJ24: 28645748.95
A25: 278532663.8 | B25: 27 | C25: 23 | D25: 56299019.93 | E25: 129302932 | F25: 66 | G25: 23 | H25: 41525956.15 | I25: 219943044.4 | J25: 170 | K25: 23 | L25: 75459106.43 | M25: 262582387.9 | N25: 85 | O25: 23 | P25: 68837697.9 | Q25: 216486445.6 | R25: 88 | S25: 23 | T25: 63275032.98 | U25: 78180832.34 | V25: 243 | W25: 23 | X25: 42283291.18 | Y25: 117061641.9 | Z25: 104 | AA25: 23 | AB25: 49360954.85 | AC25: 21706201.18 | AD25: 302 | AE25: 23 | AF25: 19125886.07 | AG25: 17176143.09 | AH25: 224 | AI25: 23 | AJ25: 29398693.2
A26: 291193239.5 | B26: 19 | C26: 24 | D26: 57742107.59 | E26: 135180338 | F26: 53 | G26: 24 | H26: 42177078.55 | I26: 229940455.5 | J26: 141 | K26: 24 | L26: 78293731.36 | M26: 274517951 | N26: 71 | O26: 24 | P26: 71103770.3 | Q26: 226326738.6 | R26: 76 | S26: 24 | T26: 65391603.44 | U26: 81734506.54 | V26: 207 | W26: 24 | X26: 43259951.82 | Y26: 122382625.7 | Z26: 96 | AA26: 24 | AB26: 50612490.48 | AC26: 22692846.69 | AD26: 303 | AE26: 24 | AF26: 19645212.66 | AG26: 17956876.86 | AH26: 219 | AI26: 24 | AJ26: 30143772.43
A27: 303853815.1 | B27: 21 | C27: 25 | D27: 59131622.16 | E27: 141057744 | F27: 52 | G27: 25 | H27: 42745620.38 | I27: 239937866.7 | J27: 142 | K27: 25 | L27: 81030128.96 | M27: 286453514.1 | N27: 57 | O27: 25 | P27: 73359316.74 | Q27: 236167031.5 | R27: 70 | S27: 25 | T27: 67284250.69 | U27: 85288180.74 | V27: 195 | W27: 25 | X27: 44288193.56 | Y27: 127703609.4 | Z27: 82 | AA27: 25 | AB27: 51832087.63 | AC27: 23679492.19 | AD27: 274 | AE27: 25 | AF27: 20148825.22 | AG27: 18737610.64 | AH27: 213 | AI27: 25 | AJ27: 30874174.05
A28: 316514390.7 | B28: 7 | C28: 26 | D28: 60644517.98 | E28: 146935150 | F28: 53 | G28: 26 | H28: 43268724.92 | I28: 249935277.8 | J28: 117 | K28: 26 | L28: 84064099.24 | M28: 298389077.2 | N28: 39 | O28: 26 | P28: 75692545.69 | Q28: 246007324.5 | R28: 46 | S28: 26 | T28: 69077884.02 | U28: 88841854.93 | V28: 157 | W28: 26 | X28: 45207036.5 | Y28: 133024593.1 | Z28: 70 | AA28: 26 | AB28: 53062809.62 | AC28: 24666137.7 | AD28: 256 | AE28: 26 | AF28: 20614579.52 | AG28: 19518344.42 | AH28: 188 | AI28: 26 | AJ28: 31578248.76
A29: 329174966.3 | B29: 6 | C29: 27 | D29: 61966663.52 | E29: 152812556 | F29: 36 | G29: 27 | H29: 43740260.95 | I29: 259932688.9 | J29: 84 | K29: 27 | L29: 86938368.8 | M29: 310324640.3 | N29: 35 | O29: 27 | P29: 77764332.46 | Q29: 255847617.5 | R29: 43 | S29: 27 | T29: 70933432.07 | U29: 92395529.13 | V29: 140 | W29: 27 | X29: 46204842.85 | Y29: 138345576.8 | Z29: 59 | AA29: 27 | AB29: 54183723.53 | AC29: 25652783.21 | AD29: 272 | AE29: 27 | AF29: 21061705.84 | AG29: 20299078.19 | AH29: 216 | AI29: 27 | AJ29: 32253936.29
A30: 341835542 | B30: 16 | C30: 28 | D30: 63203537.4 | E30: 158689962 | F30: 47 | G30: 28 | H30: 44194507.83 | I30: 269930100 | J30: 96 | K30: 28 | L30: 90122209.8 | M30: 322260203.4 | N30: 37 | O30: 28 | P30: 80063227.29 | Q30: 265687910.5 | R30: 34 | S30: 28 | T30: 72701394.16 | U30: 95949203.33 | V30: 142 | W30: 28 | X30: 47051642.41 | Y30: 143666560.6 | Z30: 55 | AA30: 28 | AB30: 55221671.03 | AC30: 26639428.72 | AD30: 236 | AE30: 28 | AF30: 21503400.87 | AG30: 21079811.97 | AH30: 183 | AI30: 28 | AJ30: 32893582.29
A31: 354496117.6 | B31: 9 | C31: 29 | D31: 64440224.5 | E31: 164567368 | F31: 20 | G31: 29 | H31: 44615963.62 | I31: 279927511.1 | J31: 80 | K31: 29 | L31: 92908429.22 | M31: 334195766.5 | N31: 33 | O31: 29 | P31: 82278006.94 | Q31: 275528203.5 | R31: 21 | S31: 29 | T31: 74395158.02 | U31: 99502877.53 | V31: 108 | W31: 29 | X31: 47959048.38 | Y31: 148987544.3 | Z31: 47 | AA31: 29 | AB31: 56267513.14 | AC31: 27626074.23 | AD31: 264 | AE31: 29 | AF31: 21925978.32 | AG31: 21860545.75 | AH31: 156 | AI31: 29 | AJ31: 33504729.06
A32: 367156693.2 | B32: 3 | C32: 30 | D32: 65663383.26 | E32: 170444774 | F32: 37 | G32: 30 | H32: 45038274.56 | I32: 289924922.2 | J32: 72 | K32: 30 | L32: 95597757.76 | M32: 346131329.6 | N32: 20 | O32: 30 | P32: 84386322.49 | Q32: 285368496.4 | R32: 30 | S32: 30 | T32: 76017613.76 | U32: 103056551.7 | V32: 102 | W32: 30 | X32: 48792934.86 | Y32: 154308528 | Z32: 31 | AA32: 30 | AB32: 57322776.35 | AC32: 28612719.73 | AD32: 257 | AE32: 30 | AF32: 22344141.37 | AG32: 22641279.52 | AH32: 125 | AI32: 30 | AJ32: 34105880.54
A33: 379817268.9 | B33: 4 | C33: 31 | D33: 66674201.27 | E33: 176322180 | F33: 27 | G33: 31 | H33: 45403692.79 | I33: 299922333.3 | J33: 70 | K33: 31 | L33: 98444241.69 | M33: 358066892.7 | N33: 13 | O33: 31 | P33: 86768543.94 | Q33: 295208789.4 | R33: 22 | S33: 31 | T33: 77584519.19 | U33: 106610225.9 | V33: 98 | W33: 31 | X33: 49620679.92 | Y33: 159629511.7 | Z33: 25 | AA33: 31 | AB33: 58322767.02 | AC33: 29599365.24 | AD33: 231 | AE33: 31 | AF33: 22741291.68 | AG33: 23422013.3 | AH33: 152 | AI33: 31 | AJ33: 34695047.49
A34: 392477844.5 | B34: 2 | C34: 32 | D34: 67713141.79 | E34: 182199586 | F34: 25 | G34: 32 | H34: 45745279.73 | I34: 309919744.4 | J34: 41 | K34: 32 | L34: 101020360.7 | M34: 370002455.7 | N34: 18 | O34: 32 | P34: 88824336.15 | Q34: 305049082.4 | R34: 20 | S34: 32 | T34: 79083511.69 | U34: 110163900.1 | V34: 82 | W34: 32 | X34: 50369384.53 | Y34: 164950495.5 | Z34: 20 | AA34: 32 | AB34: 59221822.7 | AC34: 30586010.75 | AD34: 235 | AE34: 32 | AF34: 23106556.8 | AG34: 24202747.08 | AH34: 114 | AI34: 32 | AJ34: 35239312.16
A35: 405138420.1 | B35: 5 | C35: 33 | D35: 68831217.86 | E35: 188076992 | F35: 23 | G35: 33 | H35: 46072347.35 | I35: 319917155.5 | J35: 53 | K35: 33 | L35: 103780380.4 | M35: 381938018.8 | N35: 11 | O35: 33 | P35: 90755691.09 | Q35: 314889375.4 | R35: 20 | S35: 33 | T35: 80636866.79 | U35: 113717574.3 | V35: 71 | W35: 33 | X35: 51126145.52 | Y35: 170271479.2 | Z35: 17 | AA35: 33 | AB35: 60140138.75 | AC35: 31572656.26 | AD35: 218 | AE35: 33 | AF35: 23473624.18 | AG35: 24983480.85 | AH35: 126 | AI35: 33 | AJ35: 35781265.75
A36: 417798995.7 | B36: 6 | C36: 34 | D36: 69923050.99 | E36: 193954398 | F36: 14 | G36: 34 | H36: 46359853.21 | I36: 329914566.7 | J36: 45 | K36: 34 | L36: 106237648.5 | M36: 393873581.9 | N36: 11 | O36: 34 | P36: 92699009.57 | Q36: 324729668.4 | R36: 12 | S36: 34 | T36: 82178369.21 | U36: 117271248.5 | V36: 61 | W36: 34 | X36: 51831641.54 | Y36: 175592462.9 | Z36: 12 | AA36: 34 | AB36: 60971424.34 | AC36: 32559301.77 | AD36: 191 | AE36: 34 | AF36: 23831568.27 | AG36: 25764214.63 | AH36: 106 | AI36: 34 | AJ36: 36284658.45
A37: 430459571.4 | B37: 4 | C37: 35 | D37: 70891643.73 | E37: 199831804 | F37: 9 | G37: 35 | H37: 46650754.77 | I37: 339911977.8 | J37: 41 | K37: 35 | L37: 108639002.9 | M37: 405809145 | N37: 14 | O37: 35 | P37: 94680753.52 | Q37: 334569961.3 | R37: 7 | S37: 35 | T37: 83604057.23 | U37: 120824922.7 | V37: 55 | W37: 35 | X37: 52484986.18 | Y37: 180913446.6 | Z37: 14 | AA37: 35 | AB37: 61810404.73 | AC37: 33545947.27 | AD37: 206 | AE37: 35 | AF37: 24163275.28 | AG37: 26544948.4 | AH37: 97 | AI37: 35 | AJ37: 36775300.59
A38: 443120147 | B38: 3 | C38: 36 | D38: 71851761.17 | E38: 205709210 | F38: 18 | G38: 36 | H38: 46890850.57 | I38: 349909388.9 | J38: 16 | K38: 36 | L38: 111171149.3 | M38: 417744708.1 | N38: 11 | O38: 36 | P38: 96401438.99 | Q38: 344410254.3 | R38: 9 | S38: 36 | T38: 85030458.63 | U38: 124378596.9 | V38: 56 | W38: 36 | X38: 53116904.78 | Y38: 186234430.4 | Z38: 9 | AA38: 36 | AB38: 62547862.31 | AC38: 34532592.78 | AD38: 182 | AE38: 36 | AF38: 24505942.48 | AG38: 27325682.18 | AH38: 93 | AI38: 36 | AJ38: 37255275.37
A39: 455780722.6 | B39: 0 | C39: 37 | D39: 72776443.97 | E39: 211586616 | F39: 14 | G39: 37 | H39: 47120961.9 | I39: 359906800 | J39: 34 | K39: 37 | L39: 113709151.7 | M39: 429680271.2 | N39: 6 | O39: 37 | P39: 98109984.32 | Q39: 354250547.3 | R39: 10 | S39: 37 | T39: 86337753.95 | U39: 127932271.1 | V39: 60 | W39: 37 | X39: 53790864.73 | Y39: 191555414.1 | Z39: 5 | AA39: 37 | AB39: 63315616.66 | AC39: 35519238.29 | AD39: 170 | AE39: 37 | AF39: 24825316.4 | AG39: 28106415.96 | AH39: 95 | AI39: 37 | AJ39: 37719382.2
A40: 468441298.3 | B40: 0 | C40: 38 | D40: 73723741.74 | E40: 217464022 | F40: 11 | G40: 38 | H40: 47353100.59 | I40: 369904211.1 | J40: 27 | K40: 38 | L40: 116034760.2 | M40: 441615834.3 | N40: 8 | O40: 38 | P40: 99794978.67 | Q40: 364090840.3 | R40: 8 | S40: 38 | T40: 87623196.38 | U40: 131485945.3 | V40: 53 | W40: 38 | X40: 54436121.01 | Y40: 196876397.8 | Z40: 6 | AA40: 38 | AB40: 64045822.99 | AC40: 36505883.8 | AD40: 173 | AE40: 38 | AF40: 25135057.89 | AG40: 28887149.73 | AH40: 74 | AI40: 38 | AJ40: 38151143.56
A41: 481101873.9 | B41: 0 | C41: 39 | D41: 74548600.51 | E41: 223341428 | F41: 9 | G41: 39 | H41: 47555758.43 | I41: 379901622.2 | J41: 18 | K41: 39 | L41: 118700698.7 | M41: 453551397.4 | N41: 3 | O41: 39 | P41: 101493804.8 | Q41: 373931133.3 | R41: 8 | S41: 39 | T41: 88846372.53 | U41: 135039619.5 | V41: 31 | W41: 39 | X41: 54989058.76 | Y41: 202197381.5 | Z41: 10 | AA41: 39 | AB41: 64760285.52 | AC41: 37492529.31 | AD41: 144 | AE41: 39 | AF41: 25399689.51 | AG41: 29667883.51 | AH41: 79 | AI41: 39 | AJ41: 38570505.67
A42: 493762449.5 | B42: 1 | C42: 40 | D42: 75302528.89 | E42: 229218834 | F42: 7 | G42: 40 | H42: 47757455.82 | I42: 389899033.3 | J42: 14 | K42: 40 | L42: 121502717.1 | M42: 465486960.4 | N42: 6 | O42: 40 | P42: 103301948 | Q42: 383771426.2 | R42: 7 | S42: 40 | T42: 90065977.56 | U42: 138593293.7 | V42: 34 | W42: 40 | X42: 55540037.01 | Y42: 207518365.3 | Z42: 11 | AA42: 40 | AB42: 65503895.52 | AC42: 38479174.81 | AD42: 152 | AE42: 40 | AF42: 25660646.35 | AG42: 30448617.29 | AH42: 63 | AI42: 40 | AJ42: 38969865.43
A43: 506423025.1 | B43: 3 | E43: 235096240 | F43: 10 | I43: 399896444.4 | J43: 14 | M43: 477422523.5 | N43: 3 | Q43: 393611719.2 | R43: 7 | U43: 142146967.9 | V43: 37 | Y43: 212839349 | Z43: 8 | AC43: 39465820.32 | AD43: 129 | AG43: 31229351.06 | AH43: 61
A44: 519083600.8 | B44: 1 | E44: 240973646 | F44: 8 | I44: 409893855.5 | J44: 14 | M44: 489358086.6 | N44: 2 | Q44: 403452012.2 | R44: 2 | U44: 145700642.1 | V44: 31 | Y44: 218160332.7 | Z44: 4 | AC44: 40452465.83 | AD44: 147 | AG44: 32010084.84 | AH44: 57
A45: 531744176.4 | B45: 1 | E45: 246851052 | F45: 5 | I45: 419891266.6 | J45: 14 | M45: 501293649.7 | N45: 1 | Q45: 413292305.2 | R45: 5 | U45: 149254316.3 | V45: 25 | Y45: 223481316.4 | Z45: 5 | AC45: 41439111.34 | AD45: 157 | AG45: 32790818.62 | AH45: 41
A46: 544404752 | B46: 1 | E46: 252728458 | F46: 8 | I46: 429888677.8 | J46: 18 | M46: 513229212.8 | N46: 4 | Q46: 423132598.2 | R46: 4 | U46: 152807990.5 | V46: 22 | Y46: 228802300.2 | Z46: 0 | AC46: 42425756.85 | AD46: 97 | AG46: 33571552.39 | AH46: 43
A47: 557065327.7 | B47: 0 | E47: 258605864 | F47: 5 | I47: 439886088.9 | J47: 9 | M47: 525164775.9 | N47: 0 | Q47: 432972891.1 | R47: 3 | U47: 156361664.7 | V47: 20 | Y47: 234123283.9 | Z47: 1 | AC47: 43412402.35 | AD47: 113 | AG47: 34352286.17 | AH47: 30
A48: 569725903.3 | B48: 0 | E48: 264483270 | F48: 6 | I48: 449883500 | J48: 10 | M48: 537100339 | N48: 6 | Q48: 442813184.1 | R48: 3 | U48: 159915338.9 | V48: 19 | Y48: 239444267.6 | Z48: 2 | AC48: 44399047.86 | AD48: 127 | AG48: 35133019.95 | AH48: 31
A49: 582386478.9 | B49: 1 | E49: 270360676 | F49: 3 | I49: 459880911.1 | J49: 5 | M49: 549035902.1 | N49: 2 | Q49: 452653477.1 | R49: 2 | U49: 163469013.1 | V49: 16 | Y49: 244765251.3 | Z49: 2 | AC49: 45385693.37 | AD49: 81 | AG49: 35913753.72 | AH49: 34
A50: 595047054.5 | B50: 0 | E50: 276238082 | F50: 2 | I50: 469878322.2 | J50: 5 | M50: 560971465.2 | N50: 0 | Q50: 462493770.1 | R50: 1 | U50: 167022687.3 | V50: 13 | Y50: 250086235.1 | Z50: 1 | AC50: 46372338.88 | AD50: 74 | AG50: 36694487.5 | AH50: 28
A51: 607707630.2 | B51: 0 | E51: 282115487.9 | F51: 5 | I51: 479875733.3 | J51: 2 | M51: 572907028.2 | N51: 2 | Q51: 472334063.1 | R51: 2 | U51: 170576361.5 | V51: 10 | Y51: 255407218.8 | Z51: 2 | AC51: 47358984.39 | AD51: 88 | AG51: 37475221.28 | AH51: 23
A52: 620368205.8 | B52: 0 | E52: 287992893.9 | F52: 1 | I52: 489873144.4 | J52: 5 | M52: 584842591.3 | N52: 1 | Q52: 482174356 | R52: 0 | U52: 174130035.7 | V52: 18 | Y52: 260728202.5 | Z52: 0 | AC52: 48345629.9 | AD52: 60 | AG52: 38255955.05 | AH52: 29
A53: 633028781.4 | B53: 0 | E53: 293870299.9 | F53: 2 | I53: 499870555.5 | J53: 2 | M53: 596778154.4 | N53: 0 | Q53: 492014649 | R53: 0 | U53: 177683709.9 | V53: 17 | Y53: 266049186.2 | Z53: 0 | AC53: 49332275.4 | AD53: 68 | AG53: 39036688.83 | AH53: 24
A54: 645689357.1 | B54: 0 | E54: 299747705.9 | F54: 3 | I54: 509867966.6 | J54: 6 | M54: 608713717.5 | N54: 2 | Q54: 501854942 | R54: 0 | U54: 181237384.1 | V54: 10 | Y54: 271370170 | Z54: 1 | AC54: 50318920.91 | AD54: 51 | AG54: 39817422.61 | AH54: 24
A55: 658349932.7 | B55: 0 | E55: 305625111.9 | F55: 6 | I55: 519865377.8 | J55: 2 | M55: 620649280.6 | N55: 1 | Q55: 511695235 | R55: 1 | U55: 184791058.3 | V55: 7 | Y55: 276691153.7 | Z55: 1 | AC55: 51305566.42 | AD55: 50 | AG55: 40598156.38 | AH55: 16
A56: 671010508.3 | B56: 0 | E56: 311502517.9 | F56: 3 | I56: 529862788.9 | J56: 1 | M56: 632584843.7 | N56: 3 | Q56: 521535528 | R56: 0 | U56: 188344732.5 | V56: 6 | Y56: 282012137.4 | Z56: 1 | AC56: 52292211.93 | AD56: 63 | AG56: 41378890.16 | AH56: 21
A57: 683671083.9 | B57: 0 | E57: 317379923.9 | F57: 2 | I57: 539860200 | J57: 3 | M57: 644520406.8 | N57: 0 | Q57: 531375820.9 | R57: 0 | U57: 191898406.7 | V57: 5 | Y57: 287333121.1 | Z57: 0 | AC57: 53278857.44 | AD57: 40 | AG57: 42159623.94 | AH57: 17
A58: 696331659.6 | B58: 0 | E58: 323257329.9 | F58: 2 | I58: 549857611.1 | J58: 0 | M58: 656455969.9 | N58: 0 | Q58: 541216113.9 | R58: 2 | U58: 195452080.9 | V58: 10 | Y58: 292654104.9 | Z58: 0 | AC58: 54265502.94 | AD58: 43 | AG58: 42940357.71 | AH58: 13
A59: 708992235.2 | B59: 0 | E59: 329134735.9 | F59: 4 | I59: 559855022.2 | J59: 4 | M59: 668391532.9 | N59: 0 | Q59: 551056406.9 | R59: 1 | U59: 199005755.1 | V59: 0 | Y59: 297975088.6 | Z59: 0 | AC59: 55252148.45 | AD59: 31 | AG59: 43721091.49 | AH59: 11
A60: 721652810.8 | B60: 0 | E60: 335012141.9 | F60: 1 | I60: 569852433.3 | J60: 5 | M60: 680327096 | N60: 0 | Q60: 560896699.9 | R60: 1 | U60: 202559429.2 | V60: 1 | Y60: 303296072.3 | Z60: 0 | AC60: 56238793.96 | AD60: 41 | AG60: 44501825.27 | AH60: 12
A61: 734313386.5 | B61: 0 | E61: 340889547.9 | F61: 1 | I61: 579849844.4 | J61: 3 | M61: 692262659.1 | N61: 1 | Q61: 570736992.9 | R61: 0 | U61: 206113103.4 | V61: 3 | Y61: 308617056 | Z61: 0 | AC61: 57225439.47 | AD61: 35 | AG61: 45282559.04 | AH61: 10
A62: 746973962.1 | B62: 0 | E62: 346766953.9 | F62: 1 | I62: 589847255.5 | J62: 0 | M62: 704198222.2 | N62: 2 | Q62: 580577285.8 | R62: 2 | U62: 209666777.6 | V62: 3 | Y62: 313938039.8 | Z62: 0 | AC62: 58212084.98 | AD62: 21 | AG62: 46063292.82 | AH62: 13
A63: 759634537.7 | B63: 0 | E63: 352644359.9 | F63: 2 | I63: 599844666.6 | J63: 2 | M63: 716133785.3 | N63: 0 | Q63: 590417578.8 | R63: 0 | U63: 213220451.8 | V63: 4 | Y63: 319259023.5 | Z63: 0 | AC63: 59198730.48 | AD63: 29 | AG63: 46844026.6 | AH63: 9
A64: 772295113.3 | B64: 0 | E64: 358521765.9 | F64: 1 | I64: 609842077.7 | J64: 2 | M64: 728069348.4 | N64: 2 | Q64: 600257871.8 | R64: 1 | U64: 216774126 | V64: 2 | Y64: 324580007.2 | Z64: 0 | AC64: 60185375.99 | AD64: 28 | AG64: 47624760.37 | AH64: 10
A65: 784955689 | B65: 0 | E65: 364399171.9 | F65: 1 | I65: 619839488.9 | J65: 1 | M65: 740004911.5 | N65: 0 | Q65: 610098164.8 | R65: 0 | U65: 220327800.2 | V65: 3 | Y65: 329900990.9 | Z65: 0 | AC65: 61172021.5 | AD65: 23 | AG65: 48405494.15 | AH65: 3
A66: 797616264.6 | B66: 0 | E66: 370276577.9 | F66: 0 | I66: 629836900 | J66: 2 | M66: 751940474.6 | N66: 0 | Q66: 619938457.8 | R66: 0 | U66: 223881474.4 | V66: 2 | Y66: 335221974.7 | Z66: 0 | AC66: 62158667.01 | AD66: 26 | AG66: 49186227.93 | AH66: 9
A67: 810276840.2 | B67: 0 | E67: 376153983.9 | F67: 0 | I67: 639834311.1 | J67: 3 | M67: 763876037.7 | N67: 1 | Q67: 629778750.7 | R67: 0 | U67: 227435148.6 | V67: 4 | Y67: 340542958.4 | Z67: 0 | AC67: 63145312.52 | AD67: 18 | AG67: 49966961.7 | AH67: 1
A68: 822937415.9 | B68: 0 | E68: 382031389.9 | F68: 0 | I68: 649831722.2 | J68: 2 | M68: 775811600.7 | N68: 0 | Q68: 639619043.7 | R68: 0 | U68: 230988822.8 | V68: 3 | Y68: 345863942.1 | Z68: 0 | AC68: 64131958.02 | AD68: 15 | AG68: 50747695.48 | AH68: 5
A69: 835597991.5 | B69: 0 | E69: 387908795.9 | F69: 0 | I69: 659829133.3 | J69: 3 | M69: 787747163.8 | N69: 0 | Q69: 649459336.7 | R69: 0 | U69: 234542497 | V69: 1 | Y69: 351184925.8 | Z69: 0 | AC69: 65118603.53 | AD69: 16 | AG69: 51528429.26 | AH69: 8
A70: 848258567.1 | B70: 0 | E70: 393786201.9 | F70: 0 | I70: 669826544.4 | J70: 2 | M70: 799682726.9 | N70: 0 | Q70: 659299629.7 | R70: 0 | U70: 238096171.2 | V70: 0 | Y70: 356505909.6 | Z70: 0 | AC70: 66105249.04 | AD70: 10 | AG70: 52309163.03 | AH70: 3
A71: 860919142.7 | B71: 0 | E71: 399663607.9 | F71: 0 | I71: 679823955.5 | J71: 0 | M71: 811618290 | N71: 0 | Q71: 669139922.7 | R71: 0 | U71: 241649845.4 | V71: 2 | Y71: 361826893.3 | Z71: 1 | AC71: 67091894.55 | AD71: 12 | AG71: 53089896.81 | AH71: 6
A72: 873579718.4 | B72: 0 | E72: 405541013.9 | F72: 0 | I72: 689821366.6 | J72: 0 | M72: 823553853.1 | N72: 0 | Q72: 678980215.7 | R72: 0 | U72: 245203519.6 | V72: 2 | Y72: 367147877 | Z72: 0 | AC72: 68078540.06 | AD72: 16 | AG72: 53870630.59 | AH72: 1
A73: 886240294 | B73: 0 | E73: 411418419.9 | F73: 2 | I73: 699818777.7 | J73: 1 | M73: 835489416.2 | N73: 0 | Q73: 688820508.6 | R73: 0 | U73: 248757193.8 | V73: 2 | Y73: 372468860.7 | Z73: 0 | AC73: 69065185.56 | AD73: 11 | AG73: 54651364.36 | AH73: 3
A74: 898900869.6 | B74: 0 | E74: 417295825.9 | F74: 1 | I74: 709816188.9 | J74: 0 | M74: 847424979.3 | N74: 0 | Q74: 698660801.6 | R74: 0 | U74: 252310868 | V74: 2 | Y74: 377789844.5 | Z74: 0 | AC74: 70051831.07 | AD74: 7 | AG74: 55432098.14 | AH74: 5
A75: 911561445.3 | B75: 0 | E75: 423173231.9 | F75: 0 | I75: 719813600 | J75: 0 | M75: 859360542.4 | N75: 0 | Q75: 708501094.6 | R75: 0 | U75: 255864542.2 | V75: 1 | Y75: 383110828.2 | Z75: 0 | AC75: 71038476.58 | AD75: 7 | AG75: 56212831.92 | AH75: 2
A76: 924222020.9 | B76: 0 | E76: 429050637.9 | F76: 0 | I76: 729811011.1 | J76: 0 | M76: 871296105.5 | N76: 0 | Q76: 718341387.6 | R76: 0 | U76: 259418216.4 | V76: 2 | Y76: 388431811.9 | Z76: 0 | AC76: 72025122.09 | AD76: 3 | AG76: 56993565.69 | AH76: 2
A77: 936882596.5 | B77: 0 | E77: 434928043.9 | F77: 2 | I77: 739808422.2 | J77: 2 | M77: 883231668.5 | N77: 0 | Q77: 728181680.6 | R77: 0 | U77: 262971890.6 | V77: 0 | Y77: 393752795.6 | Z77: 0 | AC77: 73011767.6 | AD77: 3 | AG77: 57774299.47 | AH77: 5
A78: 949543172.1 | B78: 0 | E78: 440805449.9 | F78: 0 | I78: 749805833.3 | J78: 0 | M78: 895167231.6 | N78: 0 | Q78: 738021973.5 | R78: 0 | U78: 266525564.8 | V78: 0 | Y78: 399073779.4 | Z78: 0 | AC78: 73998413.1 | AD78: 6 | AG78: 58555033.25 | AH78: 3
A79: 962203747.8 | B79: 0 | E79: 446682855.9 | F79: 0 | I79: 759803244.4 | J79: 0 | M79: 907102794.7 | N79: 1 | Q79: 747862266.5 | R79: 0 | U79: 270079239 | V79: 0 | Y79: 404394763.1 | Z79: 0 | AC79: 74985058.61 | AD79: 3 | AG79: 59335767.02 | AH79: 2
A80: 974864323.4 | B80: 0 | E80: 452560261.9 | F80: 0 | I80: 769800655.5 | J80: 0 | M80: 919038357.8 | N80: 0 | Q80: 757702559.5 | R80: 0 | U80: 273632913.2 | V80: 2 | Y80: 409715746.8 | Z80: 0 | AC80: 75971704.12 | AD80: 3 | AG80: 60116500.8 | AH80: 4
A81: 987524899 | B81: 0 | E81: 458437667.9 | F81: 0 | I81: 779798066.6 | J81: 0 | M81: 930973920.9 | N81: 0 | Q81: 767542852.5 | R81: 0 | U81: 277186587.4 | V81: 0 | Y81: 415036730.5 | Z81: 0 | AC81: 76958349.63 | AD81: 4 | AG81: 60897234.58 | AH81: 0
A82: 1000185475 | B82: 0 | E82: 464315073.9 | F82: 0 | I82: 789795477.7 | J82: 0 | M82: 942909484 | N82: 0 | Q82: 777383145.5 | R82: 1 | U82: 280740261.6 | V82: 2 | Y82: 420357714.3 | Z82: 0 | AC82: 77944995.14 | AD82: 4 | AG82: 61677968.35 | AH82: 0
A83: 1012846050 | B83: 0 | E83: 470192479.9 | F83: 0 | I83: 799792888.8 | J83: 1 | M83: 954845047.1 | N83: 0 | Q83: 787223438.4 | R83: 1 | U83: 284293935.8 | V83: 0 | Y83: 425678698 | Z83: 0 | AC83: 78931640.65 | AD83: 2 | AG83: 62458702.13 | AH83: 0
A84: 1025506626 | B84: 0 | E84: 476069885.9 | F84: 2 | I84: 809790300 | J84: 0 | M84: 966780610.2 | N84: 1 | Q84: 797063731.4 | R84: 0 | U84: 287847610 | V84: 0 | Y84: 430999681.7 | Z84: 0 | AC84: 79918286.15 | AD84: 2 | AG84: 63239435.91 | AH84: 1
A85: 1038167202 | B85: 0 | E85: 481947291.9 | F85: 0 | I85: 819787711.1 | J85: 0 | M85: 978716173.2 | N85: 0 | Q85: 806904024.4 | R85: 0 | U85: 291401284.2 | V85: 1 | Y85: 436320665.4 | Z85: 0 | AC85: 80904931.66 | AD85: 4 | AG85: 64020169.68 | AH85: 1
A86: 1050827777 | B86: 0 | E86: 487824697.9 | F86: 0 | I86: 829785122.2 | J86: 1 | M86: 990651736.3 | N86: 0 | Q86: 816744317.4 | R86: 0 | U86: 294954958.4 | V86: 0 | Y86: 441641649.2 | Z86: 1 | AC86: 81891577.17 | AD86: 1 | AG86: 64800903.46 | AH86: 1
A87: 1063488353 | B87: 0 | E87: 493702103.9 | F87: 0 | I87: 839782533.3 | J87: 0 | M87: 1002587299 | N87: 0 | Q87: 826584610.4 | R87: 1 | U87: 298508632.6 | V87: 1 | Y87: 446962632.9 | Z87: 0 | AC87: 82878222.68 | AD87: 7 | AG87: 65581637.24 | AH87: 1
A88: 1076148928 | B88: 0 | E88: 499579509.9 | F88: 0 | I88: 849779944.4 | J88: 1 | M88: 1014522863 | N88: 0 | Q88: 836424903.3 | R88: 0 | U88: 302062306.8 | V88: 2 | Y88: 452283616.6 | Z88: 0 | AC88: 83864868.19 | AD88: 3 | AG88: 66362371.01 | AH88: 1
A89: 1088809504 | B89: 0 | E89: 505456915.9 | F89: 0 | I89: 859777355.5 | J89: 0 | M89: 1026458426 | N89: 0 | Q89: 846265196.3 | R89: 0 | U89: 305615981 | V89: 0 | Y89: 457604600.3 | Z89: 0 | AC89: 84851513.69 | AD89: 4 | AG89: 67143104.79 | AH89: 0
A90: 1101470080 | B90: 0 | E90: 511334321.9 | F90: 0 | I90: 869774766.6 | J90: 0 | M90: 1038393989 | N90: 0 | Q90: 856105489.3 | R90: 0 | U90: 309169655.2 | V90: 0 | Y90: 462925584.1 | Z90: 0 | AC90: 85838159.2 | AD90: 1 | AG90: 67923838.57 | AH90: 0
A91: 1114130655 | B91: 0 | E91: 517211727.9 | F91: 0 | I91: 879772177.7 | J91: 0 | M91: 1050329552 | N91: 0 | Q91: 865945782.3 | R91: 0 | U91: 312723329.4 | V91: 0 | Y91: 468246567.8 | Z91: 0 | AC91: 86824804.71 | AD91: 2 | AG91: 68704572.34 | AH91: 0
A92: 1126791231 | B92: 1 | E92: 523089133.9 | F92: 0 | I92: 889769588.8 | J92: 0 | M92: 1062265115 | N92: 0 | Q92: 875786075.3 | R92: 0 | U92: 316277003.6 | V92: 0 | Y92: 473567551.5 | Z92: 0 | AC92: 87811450.22 | AD92: 0 | AG92: 69485306.12 | AH92: 0
A93: 1139451807 | B93: 0 | E93: 528966539.9 | F93: 0 | I93: 899767000 | J93: 1 | M93: 1074200678 | N93: 0 | Q93: 885626368.2 | R93: 0 | U93: 319830677.8 | V93: 0 | Y93: 478888535.2 | Z93: 0 | AC93: 88798095.73 | AD93: 1 | AG93: 70266039.9 | AH93: 0
A94: 1152112382 | B94: 0 | E94: 534843945.9 | F94: 1 | I94: 909764411.1 | J94: 1 | M94: 1086136241 | N94: 0 | Q94: 895466661.2 | R94: 0 | U94: 323384352 | V94: 0 | Y94: 484209518.9 | Z94: 0 | AC94: 89784741.23 | AD94: 2 | AG94: 71046773.67 | AH94: 1
A95: 1164772958 | B95: 0 | E95: 540721351.9 | F95: 0 | I95: 919761822.2 | J95: 0 | M95: 1098071804 | N95: 0 | Q95: 905306954.2 | R95: 0 | U95: 326938026.2 | V95: 0 | Y95: 489530502.7 | Z95: 0 | AC95: 90771386.74 | AD95: 0 | AG95: 71827507.45 | AH95: 0
A96: 1177433533 | B96: 0 | E96: 546598757.9 | F96: 0 | I96: 929759233.3 | J96: 0 | M96: 1110007367 | N96: 0 | Q96: 915147247.2 | R96: 0 | U96: 330491700.4 | V96: 0 | Y96: 494851486.4 | Z96: 0 | AC96: 91758032.25 | AD96: 0 | AG96: 72608241.23 | AH96: 0
A97: 1190094109 | B97: 0 | E97: 552476163.9 | F97: 0 | I97: 939756644.4 | J97: 0 | M97: 1121942930 | N97: 0 | Q97: 924987540.2 | R97: 0 | U97: 334045374.6 | V97: 0 | Y97: 500172470.1 | Z97: 0 | AC97: 92744677.76 | AD97: 0 | AG97: 73388975 | AH97: 1
A98: 1202754685 | B98: 0 | E98: 558353569.9 | F98: 0 | I98: 949754055.5 | J98: 0 | M98: 1133878493 | N98: 0 | Q98: 934827833.1 | R98: 0 | U98: 337599048.7 | V98: 0 | Y98: 505493453.8 | Z98: 0 | AC98: 93731323.27 | AD98: 0 | AG98: 74169708.78 | AH98: 1
A99: 1215415260 | B99: 0 | E99: 564230975.9 | F99: 0 | I99: 959751466.6 | J99: 0 | M99: 1145814056 | N99: 0 | Q99: 944668126.1 | R99: 0 | U99: 341152722.9 | V99: 0 | Y99: 510814437.6 | Z99: 0 | AC99: 94717968.77 | AD99: 0 | AG99: 74950442.56 | AH99: 0
A100: 1228075836 | B100: 0 | E100: 570108381.9 | F100: 0 | I100: 969748877.7 | J100: 0 | M100: 1157749620 | N100: 0 | Q100: 954508419.1 | R100: 0 | U100: 344706397.1 | V100: 0 | Y100: 516135421.3 | Z100: 0 | AC100: 95704614.28 | AD100: 0 | AG100: 75731176.33 | AH100: 0
A101: 1240736412 | B101: 0 | E101: 575985787.9 | F101: 0 | I101: 979746288.8 | J101: 0 | M101: 1169685183 | N101: 0 | Q101: 964348712.1 | R101: 0 | U101: 348260071.3 | V101: 0 | Y101: 521456405 | Z101: 0 | AC101: 96691259.79 | AD101: 0 | AG101: 76511910.11 | AH101: 0
A102: 1253396987 | B102: 1 | E102: 581863193.9 | F102: 1 | I102: 989743700 | J102: 1 | M102: 1181620746 | N102: 1 | Q102: 974189005.1 | R102: 1 | U102: 351813745.5 | V102: 1 | Y102: 526777388.7 | Z102: 1 | AC102: 97677905.3 | AD102: 2 | AG102: 77292643.88 | AH102: 1

Sheet Simulation Output 2
A2: Loss Distribution | B2: Base Case Scenario | C2: ST1 Ignore Future | D2: ST2 Protect Future | E2: ST3 More Growth | F2: ST4 More Fires | G2: Fire Trail | H2: Fire Control Tower | I2: Rezone Land | J2: Prescribed Burning
A3: Mean | B3: 75559826.1 | C3: 47668002.88 | D3: 120411753.5 | E3: 103637781.3 | F3: 89448358.8 | G3: 51590905.25 | H3: 51908492.43 | I3: 25958105.44 | J3: 12684067.58
A4: Median | B4: 61254661.92 | C4: 34740851.08 | D4: 99636505.47 | E4: 86050689.09 | F4: 74842849.43 | G4: 44286972.01 | H4: 44687810.11 | I4: 23899330.34 | J4: 10869311.45
A5: Standard Deviation | B5: 61584777.12 | C5: 47340847.09 | D5: 91887684.62 | E5: 83366435.9 | F5: 66674199.75 | G5: 36289635.07 | H5: 36297314.63 | I5: 14585905.1 | J5: 10119169.02
A6: 90% of loss | B6: 153860186.7 | C6: 101545433.8 | D6: 237699092 | E6: 201876314.1 | F6: 170324698.4 | G6: 98470416.67 | H6: 98835146.63 | I6: 45456212.58 | J6: 26403765.21
A7: 95% of loss | B7: 192775740.8 | C7: 132466407 | D7: 293803766.6 | E7: 252099939.4 | F7: 214883818.7 | G7: 120945507 | H7: 119681609.7 | I7: 53050721.33 | J7: 32102202.82
A8: 99% of loss | B8: 293292705.4 | C8: 219803376.8 | D8: 424399099.1 | E8: 377849401.1 | F8: 319977268.5 | G8: 170133999.8 | H8: 172362546.4 | I8: 67153972.49 | J8: 43265296.92
A10: Benefit
A11: Benefit (Mean) | G11: =$B$3 - $G$3 -> 23968920.84 | H11: =$B$3 - $H$3 -> 23651333.67 | I11: =$B$3 - $I$3 -> 49601720.66 | J11: =$B$3 - $J$3 -> 62875758.52
A12: Benefit (95%) | G12: =$B$7 - $G$7 -> 71830233.85 | H12: =$B$7 - $H$7 -> 73094131.18 | I12: =$B$7 - $I$7 -> 139725019.5 | J12: =$B$7 - $J$7 -> 160673538
A13: Costs
A14: Option Cost | G14: 3104056.166 | H14: 13486739.9 | I14: 71622.46633 | J14: 25973479.8
A15: Net Benefit
A16: Net Benefit (Mean) | G16: =$G$11 - $G$14 -> 20864864.68 | H16: =$H$11 - $H$14 -> 10164593.77 | I16: =$I$11 - $I$14 -> 49530098.19 | J16: =$J$11 - $J$14 -> 36902278.72
A17: Net Benefit (95%) | G17: =$G$12 - $G$14 -> 68726177.68 | H17: =$H$12 - $H$14 -> 59607391.28 | I17: =$I$12 - $I$14 -> 139653397 | J17: =$J$12 - $J$14 -> 134700058.2
A19: Input parameters
A20: Simulation
A21: Years | B21: 40 | C21: 40 | D21: 40 | E21: 40 | F21: 40 | G21: 40 | H21: 40 | I21: 40 | J21: 40
A22: Discount Rate | B22: 0.06 | C22: 0.1 | D22: 0.03 | E22: 0.06 | F22: 0.06 | G22: 0.06 | H22: 0.06 | I22: 0.06 | J22: 0.06
A23: Growth Rate | B23: 0.02 | C23: 0.02 | D23: 0.02 | E23: 0.04 | F23: 0.02 | G23: 0.02 | H23: 0.02 | I23: 0.02 | J23: 0.02
A24: Change in Frequency | B24: 0 | C24: 0 | D24: 0 | E24: 0 | F24: 0.5
A25: Number of Simulations | B25: 10000 | C25: 10000 | D25: 10000 | E25: 10000 | F25: 10000 | G25: 10000 | H25: 10000 | I25: 10000 | J25: 10000
A26: Frequency
A27: Events per Year | B27: 0.1
A28: Lower Bound | B28: 0.06666667
A29: Upper Bound | B29: 0.14285714
A30: Probability | B30: 0.66666667
A31: Observed No. of Years | B31: 10
A32: Observed No. of Events | B32: 2
A33: Estimated Frequency | B33: 0.1130539336 | C33: 0.1130539336 | D33: 0.1130539336 | E33: 0.1130539336 | F33: 0.1130539336 | G33: 0.1130539336 | H33: 0.1130539336 | I33: 0.1130539336 | J33: 0.05652696678
A34: Frequency Reduction | G34: 0 | H34: 0 | I34: 0 | J34: 0.5
A35: Severity
A36: Median | B36: 20000000 | C36: 20000000 | D36: 20000000 | E36: 20000000 | F36: 20000000 | G36: 16000000 | H36: 16000000 | I36: 10000000 | J36: 10000000
A37: Worst Case (95%) | B37: 100000000 | C37: 100000000 | D37: 100000000 | E37: 100000000 | F37: 100000000 | G37: 60000000 | H37: 60000000 | I37: 20000000 | J37: 20000000
A38: Change in Median | C38: 0 | D38: 0 | E38: 0 | F38: 0 | G38: -0.2 | H38: -0.2 | I38: -0.5 | J38: -0.5
A39: Change in Worst Case | C39: 0 | D39: 0 | E39: 0 | F39: 0 | G39: -0.4 | H39: -0.4 | I39: -0.8 | J39: -0.8
A40: Distribution | B40: Lognormal | C40: Lognormal | D40: Lognormal | E40: Lognormal | F40: Lognormal | G40: Lognormal | H40: Lognormal | I40: Lognormal | J40: Lognormal
A41: Mu | B41: 16.81124283 | C41: 16.81124283 | D41: 16.81124283 | E41: 16.81124283 | F41: 16.81124283 | G41: 16.58809928 | H41: 16.58809928 | I41: 16.11809565 | J41: 16.11809565
A42: Sigma | B42: 0.9784687744 | C42: 0.9784687744 | D42: 0.9784687744 | E42: 0.9784687744 | F42: 0.9784687744 | G42: 0.803570493 | H42: 0.803570493 | I42: 0.4214035639 | J42: 0.4214035639
A43: Costs
A44: Capital | G44: 3000000 | H44: 1000000 | I44: 30000 | J44: 1000000
A45: Maintenance | G45: 5000 | H45: 600000 | I45: 2000 | J45: 1200000

Sheet Simulation Output 2 Graph Data (hidden)
A1: ='Simulation Output 2'!$B$2 -> Base Case Scenario | B1: Loss Distribution | C1: ='Simulation Output 2'!$B$2 -> Base Case Scenario | D1: Cumulative Loss | E1: ='Simulation Output 2'!$C$2 -> ST1 Ignore Future | F1: Loss Distribution | G1: ='Simulation Output 2'!$C$2 -> ST1 Ignore Future | H1: Cumulative Loss | I1: ='Simulation Output 2'!$D$2 -> ST2 Protect Future | J1: Loss Distribution | K1: ='Simulation Output 2'!$D$2 -> ST2 Protect Future | L1: Cumulative Loss | M1: ='Simulation Output 2'!$E$2 -> ST3 More Growth | N1: Loss Distribution | O1: ='Simulation Output 2'!$E$2 -> ST3 More Growth | P1: Cumulative Loss | Q1: ='Simulation Output 2'!$F$2 -> ST4 More Fires | R1: Loss Distribution | S1: ='Simulation Output 2'!$F$2 -> ST4 More Fires | T1: Cumulative Loss | U1: ='Simulation Output 2'!$G$2 -> Fire Trail | V1: Loss Distribution | W1: ='Simulation Output 2'!$G$2 -> Fire Trail | X1: Cumulative Loss | Y1: ='Simulation Output 2'!$H$2 -> Fire Control Tower | Z1: Loss Distribution | AA1: ='Simulation Output 2'!$H$2 -> Fire Control Tower | AB1: Cumulative Loss | AC1: ='Simulation Output 2'!$I$2 -> Rezone Land | AD1: Loss Distribution | AE1: ='Simulation Output 2'!$I$2 -> Rezone Land | AF1: Cumulative Loss | AG1: ='Simulation Output 2'!$J$2 -> Prescribed Burning | AH1: Loss Distribution | AI1: ='Simulation Output 2'!$J$2 -> Prescribed Burning | AJ1: Cumulative Loss
A2: Bins | B2: Frequency | C2: Year | D2: Yearly Loss | E2: Bins | F2: Frequency | G2: Year | H2: Yearly Loss | I2: Bins | J2: Frequency | K2: Year | L2: Yearly Loss | M2: Bins | N2: Frequency | O2: Year | P2: Yearly Loss | Q2: Bins | R2: Frequency | S2: Year | T2: Yearly Loss | U2: Bins | V2: Frequency | W2: Year | X2: Yearly Loss | Y2: Bins | Z2: Frequency | AA2: Year | AB2: Yearly Loss | AC2: Bins | AD2: Frequency | AE2: Year | AF2: Yearly Loss | AG2: Bins | AH2: Frequency | AI2: Year | AJ2: Yearly Loss
A3: 0 | B3: 117 | C3: 1 | D3: 3774420.212 | E3: 0 | F3: 89 | G3: 1 | H3: 3728256.65 | I3: 0 | J3: 122 | K3: 1 | L3: 3632330.12 | M3: 0 | N3: 102 | O3: 1 | P3: 3639845.589 | Q3: 0 | R3: 27 | S3: 1 | T3: 3582563.902 | U3: 0 | V3: 124 | W3: 1 | X3: 5364091.875 | Y3: 0 | Z3: 103 | AA3: 1 | AB3: 4183528.687 | AC3: 0 | AD3: 112 | AE3: 1 | AF3: 1250254.077 | AG3: 0 | AH3: 1019 | AI3: 1 | AJ3: 2872413.228
A4: 8021807.99 | B4: 344 | C4: 2 | D4: 7075237.28 | E4: 8021807.99 | F4: 998 | G4: 2 | H4: 7041833.762 | I4: 8021807.99 | J4: 132 | K4: 2 | L4: 7169853.741 | M4: 8021807.99 | N4: 193 | O4: 2 | P4: 7166555.76 | Q4: 8021807.99 | R4: 149 | S4: 2 | T4: 7102041.962 | U4: 8021807.99 | V4: 411 | W4: 2 | X4: 7737882.903 | Y4: 8021807.99 | Z4: 409 | AA4: 2 | AB4: 7023422.337 | AC4: 8021807.99 | AD4: 742 | AE4: 2 | AF4: 2492212 | AG4: 8021807.99 | AH4: 2828 | AI4: 2 | AJ4: 4582103.832
A5: 16043615.98 | B5: 565 | C5: 3 | D5: 10432033.56 | E5: 16043615.98 | F5: 1235 | G5: 3 | H5: 10186798.84 | I5: 16043615.98 | J5: 269 | K5: 3 | L5: 10635173.24 | M5: 16043615.98 | N5: 339 | O5: 3 | P5: 10717579.23 | Q5: 16043615.98 | R5: 342 | S5: 3 | T5: 10437574.44 | U5: 16043615.98 | V5: 762 | W5: 3 | X5: 10054078.6 | Y5: 16043615.98 | Z5: 788 | AA5: 3 | AB5: 10011795.32 | AC5: 16043615.98 | AD5: 1861 | AE5: 3 | AF5: 3611792.56 | AG5: 16043615.98 | AH5: 3029 | AI5: 3 | AJ5: 6265007.174
A6: 24065423.97 | B6: 680 | C6: 4 | D6: 13762561.1 | E6: 24065423.97 | F6: 1255 | G6: 4 | H6: 13327069.97 | I6: 24065423.97 | J6: 295 | K6: 4 | L6: 13985288.9 | M6: 24065423.97 | N6: 395 | O6: 4 | P6: 13925444.23 | Q6: 24065423.97 | R6: 486 | S6: 4 | T6: 13890026.5 | U6: 24065423.97 | V6: 988 | W6: 4 | X6: 12169453.51 | Y6: 24065423.97 | Z6: 1024 | AA6: 4 | AB6: 12886732.98 | AC6: 24065423.97 | AD6: 2325 | AE6: 4 | AF6: 4738110.136 | AG6: 24065423.97 | AH6: 1810 | AI6: 4 | AJ6: 7879726.535
A7: 32087231.96 | B7: 697 | C7: 5 | D7: 17165869.13 | E7: 32087231.96 | F7: 1121 | G7: 5 | H7: 15918771.23 | I7: 32087231.96 | J7: 394 | K7: 5 | L7: 17682597 | M7: 32087231.96 | N7: 456 | O7: 5 | P7: 17462400.58 | Q7: 32087231.96 | R7: 568 | S7: 5 | T7: 16841057.14 | U7: 32087231.96 | V7: 1091 | W7: 5 | X7: 14309982.15 | Y7: 32087231.96 | Z7: 1057 | AA7: 5 | AB7: 15533884.86 | AC7: 32087231.96 | AD7: 1941 | AE7: 5 | AF7: 5818247.067 | AG7: 32087231.96 | AH7: 812 | AI7: 5 | AJ7: 9428590.159
A8: 40109039.95 | B8: 759 | C8: 6 | D8: 20273329.4 | E8: 40109039.95 | F8: 860 | G8: 6 | H8: 18468897.23 | I8: 40109039.95 | J8: 396 | K8: 6 | L8: 20817155.7 | M8: 40109039.95 | N8: 536 | O8: 6 | P8: 20757228.54 | Q8: 40109039.95 | R8: 628 | S8: 6 | T8: 19705699.97 | U8: 40109039.95 | V8: 1080 | W8: 6 | X8: 16501416.95 | Y8: 40109039.95 | Z8: 1057 | AA8: 6 | AB8: 18215876.34 | AC8: 40109039.95 | AD8: 1388 | AE8: 6 | AF8: 6856792.463 | AG8: 40109039.95 | AH8: 347 | AI8: 6 | AJ8: 10913718.5
A9: 48130847.94 | B9: 738 | C9: 7 | D9: 23145363.52 | E9: 48130847.94 | F9: 793 | G9: 7 | H9: 20707270.82 | I9: 48130847.94 | J9: 440 | K9: 7 | L9: 24255559.07 | M9: 48130847.94 | N9: 508 | O9: 7 | P9: 24282850.06 | Q9: 48130847.94 | R9: 618 | S9: 7 | T9: 22686714.06 | U9: 48130847.94 | V9: 970 | W9: 7 | X9: 18460508.57 | Y9: 48130847.94 | Z9: 963 | AA9: 7 | AB9: 20652695.74 | AC9: 48130847.94 | AD9: 841 | AE9: 7 | AF9: 7870420.022 | AG9: 48130847.94 | AH9: 107 | AI9: 7 | AJ9: 12337262.86
A10: 56152655.93 | B10: 711 | C10: 8 | D10: 25788411.7 | E10: 56152655.93 | F10: 645 | G10: 8 | H10: 22833130.49 | I10: 56152655.93 | J10: 459 | K10: 8 | L10: 27562570.8 | M10: 56152655.93 | N10: 581 | O10: 8 | P10: 27593362.75 | Q10: 56152655.93 | R10: 633 | S10: 8 | T10: 25731810.49 | U10: 56152655.93 | V10: 893 | W10: 8 | X10: 20334362.4 | Y10: 56152655.93 | Z10: 863 | AA10: 8 | AB10: 23087033.96 | AC10: 56152655.93 | AD10: 426 | AE10: 8 | AF10: 8774934.379 | AG10: 56152655.93 | AH10: 32 | AI10: 8 | AJ10: 13689011.22
A11: 64174463.92 | B11: 611 | C11: 9 | D11: 28463779.47 | E11: 64174463.92 | F11: 520 | G11: 9 | H11: 24732660.37 | I11: 64174463.92 | J11: 469 | K11: 9 | L11: 30890796.65 | M11: 64174463.92 | N11: 497 | O11: 9 | P11: 30865874.64 | Q11: 64174463.92 | R11: 685 | S11: 9 | T11: 28807661.79 | U11: 64174463.92 | V11: 803 | W11: 9 | X11: 22159263.05 | Y11: 64174463.92 | Z11: 754 | AA11: 9 | AB11: 25284982.04 | AC11: 64174463.92 | AD11: 218 | AE11: 9 | AF11: 9672209.657 | AG11: 64174463.92 | AH11: 8 | AI11: 9 | AJ11: 15016120.27
A12: 72196271.91 | B12: 644 | C12: 10 | D12: 30935695.89 | E12: 72196271.91 | F12: 493 | G12: 10 | H12: 26513441.24 | I12: 72196271.91 | J12: 474 | K12: 10 | L12: 34367969.28 | M12: 72196271.91 | N12: 528 | O12: 10 | P12: 33890720.04 | Q12: 72196271.91 | R12: 670 | S12: 10 | T12: 31979781.58 | U12: 72196271.91 | V12: 629 | W12: 10 | X12: 24056108.99 | Y12: 72196271.91 | Z12: 608 | AA12: 10 | AB12: 27414173.6 | AC12: 72196271.91 | AD12: 95 | AE12: 10 | AF12: 10530078.68 | AG12: 72196271.91 | AH12: 5 | AI12: 10 | AJ12: 16282226.41
A13: 80218079.9 | B13: 510 | C13: 11 | D13: 33525827.42 | E13: 80218079.9 | F13: 332 | G13: 11 | H13: 28243630.36 | I13: 80218079.9 | J13: 463 | K13: 11 | L13: 37641992.23 | M13: 80218079.9 | N13: 498 | O13: 11 | P13: 36833177.62 | Q13: 80218079.9 | R13: 599 | S13: 11 | T13: 34826672.64 | U13: 80218079.9 | V13: 504 | W13: 11 | X13: 25777852.77 | Y13: 80218079.9 | Z13: 532 | AA13: 11 | AB13: 29486347.15 | AC13: 80218079.9 | AD13: 35 | AE13: 11 | AF13: 11393745.65 | AG13: 80218079.9 | AH13: 3 | AI13: 11 | AJ13: 17500307.1
A14: 88239887.89 | B14: 504 | C14: 12 | D14: 35783610.79 | E14: 88239887.89 | F14: 261 | G14: 12 | H14: 29798784.44 | I14: 88239887.89 | J14: 482 | K14: 12 | L14: 40635437.55 | M14: 88239887.89 | N14: 505 | O14: 12 | P14: 39497232.36 | Q14: 88239887.89 | R14: 544 | S14: 12 | T14: 37610378.04 | U14: 88239887.89 | V14: 363 | W14: 12 | X14: 27463974.99 | Y14: 88239887.89 | Z14: 448 | AA14: 12 | AB14: 31442631.85 | AC14: 88239887.89 | AD14: 12 | AE14: 12 | AF14: 12215551.62 | AG14: 88239887.89 | AH14: 0 | AI14: 12 | AJ14: 18686948.25
A15: 96261695.88 | B15: 435 | C15: 13 | D15: 38138593.45 | E15: 96261695.88 | F15: 255 | G15: 13 | H15: 31256258.35 | I15: 96261695.88 | J15: 429 | K15: 13 | L15: 43866650.32 | M15: 96261695.88 | N15: 465 | O15: 13 | P15: 42289545.01 | Q15: 96261695.88 | R15: 528 | S15: 13 | T15: 40238093.84 | U15: 96261695.88 | V15: 316 | W15: 13 | X15: 28982263.12 | Y15: 96261695.88 | Z15: 310 | AA15: 13 | AB15: 33384885.76 | AC15: 96261695.88 | AD15: 2 | AE15: 13 | AF15: 13026383.41 | AG15: 96261695.88 | AH15: 0 | AI15: 13 | AJ15: 19812807.85
A16: 104283503.9 | B16: 353 | C16: 14 | D16: 40323767.03 | E16: 104283503.9 | F16: 217 | G16: 14 | H16: 32677525.5 | I16: 104283503.9 | J16: 414 | K16: 14 | L16: 46955080.57 | M16: 104283503.9 | N16: 409 | O16: 14 | P16: 44825856.27 | Q16: 104283503.9 | R16: 447 | S16: 14 | T16: 42857980.75 | U16: 104283503.9 | V16: 241 | W16: 14 | X16: 30548641.92 | Y16: 104283503.9 | Z16: 249 | AA16: 14 | AB16: 35312058.25 | AC16: 104283503.9 | AD16: 1 | AE16: 14 | AF16: 13822279.65 | AG16: 104283503.9 | AH16: 0 | AI16: 14 | AJ16: 20918424.55
A17: 112305311.9 | B17: 326 | C17: 15 | D17: 42369019 | E17: 112305311.9 | F17: 166 | G17: 15 | H17: 33896284.64 | I17: 112305311.9 | J17: 410 | K17: 15 | L17: 50188722 | M17: 112305311.9 | N17: 382 | O17: 15 | P17: 47916611.17 | Q17: 112305311.9 | R17: 376 | S17: 15 | T17: 45259519.56 | U17: 112305311.9 | V17: 184 | W17: 15 | X17: 32027270.95 | Y17: 112305311.9 | Z17: 199 | AA17: 15 | AB17: 36982480.42 | AC17: 112305311.9 | AD17: 1 | AE17: 15 | AF17: 14564139.32 | AG17: 112305311.9 | AH17: 0 | AI17: 15 | AJ17: 21985949.53
A18: 120327119.8 | B18: 260 | C18: 16 | D18: 44369931.95 | E18: 120327119.8 | F18: 110 | G18: 16 | H18: 35102420.85 | I18: 120327119.8 | J18: 377 | K18: 16 | L18: 53534211.32 | M18: 120327119.8 | N18: 401 | O18: 16 | P18: 50567037.52 | Q18: 120327119.8 | R18: 322 | S18: 16 | T18: 47669830.51 | U18: 120327119.8 | V18: 132 | W18: 16 | X18: 33456908.21 | Y18: 120327119.8 | Z18: 148 | AA18: 16 | AB18: 38702187.13 | AC18: 120327119.8 | AD18: 0 | AE18: 16 | AF18: 15232107 | AG18: 120327119.8 | AH18: 0 | AI18: 16 | AJ18: 22984808.31
A19: 128348927.8 | B19: 208 | C19: 17 | D19: 46318259.46 | E19: 128348927.8 | F19: 102 | G19: 17 | H19: 36195553.82 | I19: 128348927.8 | J19: 335 | K19: 17 | L19: 56604971.51 | M19: 128348927.8 | N19: 345 | O19: 17 | P19: 53101197.2 | Q19: 128348927.8 | R19: 320 | S19: 17 | T19: 50072810.4 | U19: 128348927.8 | V19: 118 | W19: 17 | X19: 34827197.54 | Y19: 128348927.8 | Z19: 106 | AA19: 17 | AB19: 40400967.18 | AC19: 128348927.8 | AD19: 0 | AE19: 17 | AF19: 15894995.85 | AG19: 128348927.8 | AH19: 0 | AI19: 17 | AJ19: 23967507.93
A20: 136370735.8 | B20: 191 | C20: 18 | D20: 48113222.53 | E20: 136370735.8 | F20: 86 | G20: 18 | H20: 37281568.95 | I20: 136370735.8 | J20: 294 | K20: 18 | L20: 59779077.34 | M20: 136370735.8 | N20: 308 | O20: 18 | P20: 55784754.95 | Q20: 136370735.8 | R20: 264 | S20: 18 | T20: 52432226.97 | U20: 136370735.8 | V20: 88 | W20: 18 | X20: 36083119.81 | Y20: 136370735.8 | Z20: 80 | AA20: 18 | AB20: 42002115.01 | AC20: 136370735.8 | AD20: 0 | AE20: 18 | AF20: 16511873.45 | AG20: 136370735.8 | AH20: 0 | AI20: 18 | AJ20: 24906884.91
A21: 144392543.8 | B21: 173 | C21: 19 | D21: 49895847.1 | E21: 144392543.8 | F21: 80 | G21: 19 | H21: 38180566.76 | I21: 144392543.8 | J21: 298 | K21: 19 | L21: 63005102.58 | M21: 144392543.8 | N21: 278 | O21: 19 | P21: 58420087.91 | Q21: 144392543.8 | R21: 252 | S21: 19 | T21: 54787619.77 | U21: 144392543.8 | V21: 54 | W21: 19 | X21: 37323268.34 | Y21: 144392543.8 | Z21: 55 | AA21: 19 | AB21: 43557080.16 | AC21: 144392543.8 | AD21: 0 | AE21: 19 | AF21: 17159629.49 | AG21: 144392543.8 | AH21: 0 | AI21: 19 | AJ21: 25809560.91
A22: 152414351.8 | B22: 152 | C22: 20 | D22: 51690342.69 | E22: 152414351.8 | F22: 73 | G22: 20 | H22: 39028641.75 | I22: 152414351.8 | J22: 265 | K22: 20 | L22: 66095423.56 | M22: 152414351.8 | N22: 240 | O22: 20 | P22: 61028261.11 | Q22: 152414351.8 | R22: 205 | S22: 20 | T22: 56898769.18 | U22: 152414351.8 | V22: 60 | W22: 20 | X22: 38479075.23 | Y22: 152414351.8 | Z22: 51 | AA22: 20 | AB22: 45005675.38 | AC22: 152414351.8 | AD22: 0 | AE22: 20 | AF22: 17761858.86 | AG22: 152414351.8 | AH22: 0 | AI22: 20 | AJ22: 26678600.87
A23: 160436159.8 | B23: 147 | C23: 21 | D23: 53248423.36 | E23: 160436159.8 | F23: 45 | G23: 21 | H23: 39804114.82 | I23: 160436159.8 | J23: 254 | K23: 21 | L23: 68958325.28 | M23: 160436159.8 | N23: 230 | O23: 21 | P23: 63528861.66 | Q23: 160436159.8 | R23: 166 | S23: 21 | T23: 59044224.58 | U23: 160436159.8 | V23: 46 | W23: 21 | X23: 39698013.98 | Y23: 160436159.8 | Z23: 50 | AA23: 21 | AB23: 46388059.93 | AC23: 160436159.8 | AD23: 0 | AE23: 21 | AF23: 18336217.69 | AG23: 160436159.8 | AH23: 0 | AI23: 21 | AJ23: 27511748.5
A24: 168457967.8 | B24: 120 | C24: 22 | D24: 54867118.61 | E24: 168457967.8 | F24: 38 | G24: 22 | H24: 40617124.48 | I24: 168457967.8 | J24: 253 | K24: 22 | L24: 72025484.59 | M24: 168457967.8 | N24: 183 | O24: 22 | P24: 66213138.5 | Q24: 168457967.8 | R24: 148 | S24: 22 | T24: 61095367.18 | U24: 168457967.8 | V24: 32 | W24: 22 | X24: 40812012.78 | Y24: 168457967.8 | Z24: 31 | AA24: 22 | AB24: 47738437.2 | AC24: 168457967.8 | AD24: 0 | AE24: 22 | AF24: 18876546.36 | AG24: 168457967.8 | AH24: 0 | AI24: 22 | AJ24: 28318299.73
A25: 176479775.8 | B25: 113 | C25: 23 | D25: 56459020.96 | E25: 176479775.8 | F25: 38 | G25: 23 | H25: 41283877.25 | I25: 176479775.8 | J25: 194 | K25: 23 | L25: 74695276.24 | M25: 176479775.8 | N25: 187 | O25: 23 | P25: 68638775.11 | Q25: 176479775.8 | R25: 110 | S25: 23 | T25: 63023339.63 | U25: 176479775.8 | V25: 29 | W25: 23 | X25: 41968564.79 | Y25: 176479775.8 | Z25: 30 | AA25: 23 | AB25: 49081204.73 | AC25: 176479775.8 | AD25: 0 | AE25: 23 | AF25: 19409874.72 | AG25: 176479775.8 | AH25: 0 | AI25: 23 | AJ25: 29092033.19
A26: 184501583.8 | B26: 76 | C26: 24 | D26: 57748857.25 | E26: 184501583.8 | F26: 25 | G26: 24 | H26: 41906517.26 | I26: 184501583.8 | J26: 182 | K26: 24 | L26: 78005737.95 | M26: 184501583.8 | N26: 168 | O26: 24 | P26: 71002205.58 | Q26: 184501583.8 | R26: 109 | S26: 24 | T26: 65015123.79 | U26: 184501583.8 | V26: 17 | W26: 24 | X26: 42898440.27 | Y26: 184501583.8 | Z26: 20 | AA26: 24 | AB26: 50274743.63 | AC26: 184501583.8 | AD26: 0 | AE26: 24 | AF26: 19905877.33 | AG26: 184501583.8 | AH26: 0 | AI26: 24 | AJ26: 29842881.15
A27: 192523391.8 | B27: 63 | C27: 25 | D27: 59177563.64 | E27: 192523391.8 | F27: 20 | G27: 25 | H27: 42525181.39 | I27: 192523391.8 | J27: 167 | K27: 25 | L27: 80810827.64 | M27: 192523391.8 | N27: 134 | O27: 25 | P27: 73448905.12 | Q27: 192523391.8 | R27: 79 | S27: 25 | T27: 66896451.37 | U27: 192523391.8 | V27: 17 | W27: 25 | X27: 43844495.28 | Y27: 192523391.8 | Z27: 20 | AA27: 25 | AB27: 51529283.7 | AC27: 192523391.8 | AD27: 0 | AE27: 25 | AF27: 20407140.16 | AG27: 192523391.8 | AH27: 0 | AI27: 25 | AJ27: 30560763.04
A28: 200545199.7 | B28: 66 | C28: 26 | D28: 60726217.03 | E28: 200545199.7 | F28: 12 | G28: 26 | H28: 43058590.19 | I28: 200545199.7 | J28: 164 | K28: 26 | L28: 83805840.48 | M28: 200545199.7 | N28: 107 | O28: 26 | P28: 75692326.14 | Q28: 200545199.7 | R28: 89 | S28: 26 | T28: 68717599.19 | U28: 200545199.7 | V28: 6 | W28: 26 | X28: 44806885.84 | Y28: 200545199.7 | Z28: 13 | AA28: 26 | AB28: 52729228.34 | AC28: 200545199.7 | AD28: 0 | AE28: 26 | AF28: 20900302.5 | AG28: 200545199.7 | AH28: 0 | AI28: 26 | AJ28: 31265584.48
A29: 208567007.7 | B29: 49 | C29: 27 | D29: 62063497.43 | E29: 208567007.7 | F29: 19 | G29: 27 | H29: 43548649.73 | I29: 208567007.7 | J29: 129 | K29: 27 | L29: 86618989.95 | M29: 208567007.7 | N29: 124 | O29: 27 | P29: 77909037.67 | Q29: 208567007.7 | R29: 79 | S29: 27 | T29: 70578245.72 | U29: 208567007.7 | V29: 9 | W29: 27 | X29: 45694059.87 | Y29: 208567007.7 | Z29: 8 | AA29: 27 | AB29: 53881115.74 | AC29: 208567007.7 | AD29: 0 | AE29: 27 | AF29: 21381138.62 | AG29: 208567007.7 | AH29: 0 | AI29: 27 | AJ29: 31936090.03
A30: 216588815.7 | B30: 57 | C30: 28 | D30: 63357826.14 | E30: 216588815.7 | F30: 8 | G30: 28 | H30: 44063085.28 | I30: 216588815.7 | J30: 133 | K30: 28 | L30: 89489945.12 | M30: 216588815.7 | N30: 82 | O30: 28 | P30: 80271382.29 | Q30: 216588815.7 | R30: 69 | S30: 28 | T30: 72535232.14 | U30: 216588815.7 | V30: 8 | W30: 28 | X30: 46558689.84 | Y30: 216588815.7 | Z30: 5 | AA30: 28 | AB30: 54946101.43 | AC30: 216588815.7 | AD30: 0 | AE30: 28 | AF30: 21816668.35 | AG30: 216588815.7 | AH30: 0 | AI30: 28 | AJ30: 32568415.78
A31: 224610623.7 | B31: 37 | C31: 29 | D31: 64613438.56 | E31: 224610623.7 | F31: 8 | G31: 29 | H31: 44490901.56 | I31: 224610623.7 | J31: 124 | K31: 29 | L31: 92019210.1 | M31: 224610623.7 | N31: 92 | O31: 29 | P31: 82435244.81 | Q31: 224610623.7 | R31: 64 | S31: 29 | T31: 74309685.57 | U31: 224610623.7 | V31: 3 | W31: 29 | X31: 47418723.9 | Y31: 224610623.7 | Z31: 2 | AA31: 29 | AB31: 56012504.94 | AC31: 224610623.7 | AD31: 0 | AE31: 29 | AF31: 22241103.28 | AG31: 224610623.7 | AH31: 0 | AI31: 29 | AJ31: 33182959.8
A32: 232632431.7 | B32: 41 | C32: 30 | D32: 65854857.6 | E32: 232632431.7 | F32: 10 | G32: 30 | H32: 44926117.51 | I32: 232632431.7 | J32: 110 | K32: 30 | L32: 94772486.56 | M32: 232632431.7 | N32: 89 | O32: 30 | P32: 84500550.93 | Q32: 232632431.7 | R32: 61 | S32: 30 | T32: 75725387.83 | U32: 232632431.7 | V32: 7 | W32: 30 | X32: 48208643.91 | Y32: 232632431.7 | Z32: 2 | AA32: 30 | AB32: 57043744.96 | AC32: 232632431.7 | AD32: 0 | AE32: 30 | AF32: 22654790.83 | AG32: 232632431.7 | AH32: 0 | AI32: 30 | AJ32: 33780226.21
A33: 240654239.7 | B33: 33 | C33: 31 | D33: 67030501.74 | E33: 240654239.7 | F33: 9 | G33: 31 | H33: 45300660.07 | I33: 240654239.7 | J33: 117 | K33: 31 | L33: 97376978.65 | M33: 240654239.7 | N33: 60 | O33: 31 | P33: 86480996.07 | Q33: 240654239.7 | R33: 46 | S33: 31 | T33: 77280987.81 | U33: 240654239.7 | V33: 3 | W33: 31 | X33: 48981901.27 | Y33: 240654239.7 | Z33: 4 | AA33: 31 | AB33: 58044789.57 | AC33: 240654239.7 | AD33: 0 | AE33: 31 | AF33: 23073420.84 | AG33: 240654239.7 | AH33: 0 | AI33: 31 | AJ33: 34363682.3
A34: 248676047.7 | B34: 34 | C34: 32 | D34: 68200732.5 | E34: 248676047.7 | F34: 7 | G34: 32 | H34: 45646342.88 | I34: 248676047.7 | J34: 80 | K34: 32 | L34: 100077752 | M34: 248676047.7 | N34: 53 | O34: 32 | P34: 88560915.25 | Q34: 248676047.7 | R34: 34 | S34: 32 | T34: 78847358.03 | U34: 248676047.7 | V34: 3 | W34: 32 | X34: 49725844.41 | Y34: 248676047.7 | Z34: 1 | AA34: 32 | AB34: 58922175.1 | AC34: 248676047.7 | AD34: 0 | AE34: 32 | AF34: 23459855.5 | AG34: 248676047.7 | AH34: 0 | AI34: 32 | AJ34: 34919389.98
A35: 256697855.7 | B35: 17 | C35: 33 | D35: 69265088.23 | E35: 256697855.7 | F35: 6 | G35: 33 | H35: 45961735.83 | I35: 256697855.7 | J35: 94 | K35: 33 | L35: 102715135.1 | M35: 256697855.7 | N35: 58 | O35: 33 | P35: 90601568.82 | Q35: 256697855.7 | R35: 28 | S35: 33 | T35: 80441167.15 | U35: 256697855.7 | V35: 2 | W35: 33 | X35: 50414464.8 | Y35: 256697855.7 | Z35: 2 | AA35: 33 | AB35: 59861587 | AC35: 256697855.7 | AD35: 0 | AE35: 33 | AF35: 23848933.3 | AG35: 256697855.7 | AH35: 0 | AI35: 33 | AJ35: 35450395.88
A36: 264719663.7 | B36: 24 | C36: 34 | D36: 70238269.44 | E36: 264719663.7 | F36: 6 | G36: 34 | H36: 46242080.53 | I36: 264719663.7 | J36: 70 | K36: 34 | L36: 105261329.5 | M36: 264719663.7 | N36: 44 | O36: 34 | P36: 92614174.58 | Q36: 264719663.7 | R36: 39 | S36: 34 | T36: 81853596.18 | U36: 264719663.7 | V36: 1 | W36: 34 | X36: 51102155.82 | Y36: 264719663.7 | Z36: 0 | AA36: 34 | AB36: 60754514.3 | AC36: 264719663.7 | AD36: 0 | AE36: 34 | AF36: 24196957.26 | AG36: 264719663.7 | AH36: 0 | AI36: 34 | AJ36: 35979180.23
A37: 272741471.7 | B37: 17 | C37: 35 | D37: 71159043.22 | E37: 272741471.7 | F37: 6 | G37: 35 | H37: 46528198.41 | I37: 272741471.7 | J37: 69 | K37: 35 | L37: 107740255.9 | M37: 272741471.7 | N37: 36 | O37: 35 | P37: 94489676.11 | Q37: 272741471.7 | R37: 23 | S37: 35 | T37: 83285035.28 | U37: 272741471.7 | V37: 1 | W37: 35 | X37: 51749968.49 | Y37: 272741471.7 | Z37: 1 | AA37: 35 | AB37: 61562704.41 | AC37: 272741471.7 | AD37: 0 | AE37: 35 | AF37: 24536728.06 | AG37: 272741471.7 | AH37: 0 | AI37: 35 | AJ37: 36474116.75
A38: 280763279.6 | B38: 10 | C38: 36 | D38: 72047777.02 | E38: 280763279.6 | F38: 8 | G38: 36 | H38: 46789378.36 | I38: 280763279.6 | J38: 45 | K38: 36 | L38: 110382467.1 | M38: 280763279.6 | N38: 36 | O38: 36 | P38: 96355289.51 | Q38: 280763279.6 | R38: 20 | S38: 36 | T38: 84628249.36 | U38: 280763279.6 | V38: 1 | W38: 36 | X38: 52365341.79 | Y38: 280763279.6 | Z38: 2 | AA38: 36 | AB38: 62411617.1 | AC38: 280763279.6 | AD38: 0 | AE38: 36 | AF38: 24842497.2 | AG38: 280763279.6 | AH38: 0 | AI38: 36 | AJ38: 36949090.45
A39: 288785087.6 | B39: 12 | C39: 37 | D39: 73056575.32 | E39: 288785087.6 | F39: 3 | G39: 37 | H39: 47046412.15 | I39: 288785087.6 | J39: 57 | K39: 37 | L39: 112697796.7 | M39: 288785087.6 | N39: 27 | O39: 37 | P39: 98341579.28 | Q39: 288785087.6 | R39: 14 | S39: 37 | T39: 85870480.05 | U39: 288785087.6 | V39: 0 | W39: 37 | X39: 52986380.88 | Y39: 288785087.6 | Z39: 1 | AA39: 37 | AB39: 63196630.73 | AC39: 288785087.6 | AD39: 0 | AE39: 37 | AF39: 25147887.81 | AG39: 288785087.6 | AH39: 0 | AI39: 37 | AJ39: 37411243.96
A40: 296806895.6 | B40: 14 | C40: 38 | D40: 73930979.29 | E40: 296806895.6 | F40: 6 | G40: 38 | H40: 47263196.33 | I40: 296806895.6 | J40: 53 | K40: 38 | L40: 115290938.7 | M40: 296806895.6 | N40: 35 | O40: 38 | P40: 100134391.1 | Q40: 296806895.6 | R40: 17 | S40: 38 | T40: 87089197.32 | U40: 296806895.6 | V40: 0 | W40: 38 | X40: 53587426.59 | Y40: 296806895.6 | Z40: 1 | AA40: 38 | AB40: 63953685.58 | AC40: 296806895.6 | AD40: 0 | AE40: 38 | AF40: 25461600.11 | AG40: 296806895.6 | AH40: 0 | AI40: 38 | AJ40: 37846751.01
A41: 304828703.6 | B41: 9 | C41: 39 | D41: 74788488.06 | E41: 304828703.6 | F41: 0 | G41: 39 | H41: 47470968.42 | I41: 304828703.6 | J41: 43 | K41: 39 | L41: 117779516.4 | M41: 304828703.6 | N41: 30 | O41: 39 | P41: 101907699 | Q41: 304828703.6 | R41: 12 | S41: 39 | T41: 88285423.73 | U41: 304828703.6 | V41: 1 | W41: 39 | X41: 54138943.39 | Y41: 304828703.6 | Z41: 1 | AA41: 39 | AB41: 64672405.88 | AC41: 304828703.6 | AD41: 0 | AE41: 39 | AF41: 25739351.31 | AG41: 304828703.6 | AH41: 0 | AI41: 39 | AJ41: 38263903.02
A42: 312850511.6 | B42: 8 | C42: 40 | D42: 75559826.1 | E42: 312850511.6 | F42: 4 | G42: 40 | H42: 47668002.88 | I42: 312850511.6 | J42: 48 | K42: 40 | L42: 120411753.5 | M42: 312850511.6 | N42: 27 | O42: 40 | P42: 103637781.3 | Q42: 312850511.6 | R42: 14 | S42: 40 | T42: 89448358.8 | U42: 312850511.6 | V42: 1 | W42: 40 | X42: 54694961.42 | Y42: 312850511.6 | Z42: 2 | AA42: 40 | AB42: 65395232.33 | AC42: 312850511.6 | AD42: 0 | AE42: 40 | AF42: 26029727.91 | AG42: 312850511.6 | AH42: 0 | AI42: 40 | AJ42: 38657547.37
A43: 320872319.6 | B43: 9 | E43: 320872319.6 | F43: 2 | I43: 320872319.6 | J43: 30 | M43: 320872319.6 | N43: 29 | Q43: 320872319.6 | R43: 17 | U43: 320872319.6 | V43: 0 | Y43: 320872319.6 | Z43: 0 | AC43: 320872319.6 | AD43: 0 | AG43: 320872319.6 | AH43: 0
A44: 328894127.6 | B44: 7 | E44: 328894127.6 | F44: 3 | I44: 328894127.6 | J44: 33 | M44: 328894127.6 | N44: 18 | Q44: 328894127.6 | R44: 10 | U44: 328894127.6 | V44: 1 | Y44: 328894127.6 | Z44: 0 | AC44: 328894127.6 | AD44: 0 | AG44: 328894127.6 | AH44: 0
A45: 336915935.6 | B45: 4 | E45: 336915935.6 | F45: 1 | I45: 336915935.6 | J45: 32 | M45: 336915935.6 | N45: 12 | Q45: 336915935.6 | R45: 10 | U45: 336915935.6 | V45: 0 | Y45: 336915935.6 | Z45: 0 | AC45: 336915935.6 | AD45: 0 | AG45: 336915935.6 | AH45: 0
A46: 344937743.6 | B46: 13 | E46: 344937743.6 | F46: 2 | I46: 344937743.6 | J46: 20 | M46: 344937743.6 | N46: 16 | Q46: 344937743.6 | R46: 9 | U46: 344937743.6 | V46: 1 | Y46: 344937743.6 | Z46: 0 | AC46: 344937743.6 | AD46: 0 | AG46: 344937743.6 | AH46: 0
A47: 352959551.5 | B47: 5 | E47: 352959551.5 | F47: 3 | I47: 352959551.5 | J47: 33 | M47: 352959551.5 | N47: 23 | Q47: 352959551.5 | R47: 3 | U47: 352959551.5 | V47: 0 | Y47: 352959551.5 | Z47: 0 | AC47: 352959551.5 | AD47: 0 | AG47: 352959551.5 | AH47: 0
A48: 360981359.5 | B48: 0 | E48: 360981359.5 | F48: 1 | I48: 360981359.5 | J48: 28 | M48: 360981359.5 | N48: 14 | Q48: 360981359.5 | R48: 5 | U48: 360981359.5 | V48: 0 | Y48: 360981359.5 | Z48: 0 | AC48: 360981359.5 | AD48: 0 | AG48: 360981359.5 | AH48: 0
A49: 369003167.5 | B49: 3 | E49: 369003167.5 | F49: 3 | I49: 369003167.5 | J49: 22 | M49: 369003167.5 | N49: 10 | Q49: 369003167.5 | R49: 10 | U49: 369003167.5 | V49: 0 | Y49: 369003167.5 | Z49: 0 | AC49: 369003167.5 | AD49: 0 | AG49: 369003167.5 | AH49: 0
A50: 377024975.5 | B50: 5 | E50: 377024975.5 | F50: 1 | I50: 377024975.5 | J50: 15 | M50: 377024975.5 | N50: 7 | Q50: 377024975.5 | R50: 3 | U50: 377024975.5 | V50: 0 | Y50: 377024975.5 | Z50: 0 | AC50: 377024975.5 | AD50: 0 | AG50: 377024975.5 | AH50: 0
A51: 385046783.5 | B51: 3 | E51: 385046783.5 | F51: 2 | I51: 385046783.5 | J51: 16 | M51: 385046783.5 | N51: 11 | Q51: 385046783.5 | R51: 8 | U51: 385046783.5 | V51: 0 | Y51: 385046783.5 | Z51: 0 | AC51: 385046783.5 | AD51: 0 | AG51: 385046783.5 | AH51: 0
A52: 393068591.5 | B52: 2 | E52: 393068591.5 | F52: 0 | I52: 393068591.5 | J52: 13 | M52: 393068591.5 | N52: 6 | Q52: 393068591.5 | R52: 5 | U52: 393068591.5 | V52: 0 | Y52: 393068591.5 | Z52: 0 | AC52: 393068591.5 | AD52: 0 | AG52: 393068591.5 | AH52: 0
A53: 401090399.5 | B53: 3 | E53: 401090399.5 | F53: 1 | I53: 401090399.5 | J53: 7 | M53: 401090399.5 | N53: 4 | Q53: 401090399.5 | R53: 3 | U53: 401090399.5 | V53: 0 | Y53: 401090399.5 | Z53: 0 | AC53: 401090399.5 | AD53: 0 | AG53: 401090399.5 | AH53: 0
A54: 409112207.5 | B54: 3 | E54: 409112207.5 | F54: 2 | I54: 409112207.5 | J54: 24 | M54: 409112207.5 | N54: 5 | Q54: 409112207.5 | R54: 4 | U54: 409112207.5 | V54: 0 | Y54: 409112207.5 | Z54: 0 | AC54: 409112207.5 | AD54: 0 | AG54: 409112207.5 | AH54: 0
A55: 417134015.5 | B55: 2 | E55: 417134015.5 | F55: 0 | I55: 417134015.5 | J55: 13 | M55: 417134015.5 | N55: 5 | Q55: 417134015.5 | R55: 2 | U55: 417134015.5 | V55: 0 | Y55: 417134015.5 | Z55: 0 | AC55: 417134015.5 | AD55: 0 | AG55: 417134015.5 | AH55: 0
A56: 425155823.5 | B56: 2 | E56: 425155823.5 | F56: 1 | I56: 425155823.5 | J56: 12 | M56: 425155823.5 | N56: 9 | Q56: 425155823.5 | R56: 2 | U56: 425155823.5 | V56: 0 | Y56: 425155823.5 | Z56: 0 | AC56: 425155823.5 | AD56: 0 | AG56: 425155823.5 | AH56: 0
A57: 433177631.4 | B57: 2 | E57: 433177631.4 | F57: 0 | I57: 433177631.4 | J57: 2 | M57: 433177631.4 | N57: 5 | Q57: 433177631.4 | R57: 2 | U57: 433177631.4 | V57: 0 | Y57: 433177631.4 | Z57: 0 | AC57: 433177631.4 | AD57: 0 | AG57: 433177631.4 | AH57: 0
A58: 441199439.4 | B58: 0 | E58: 441199439.4 | F58: 1 | I58: 441199439.4 | J58: 7 | M58: 441199439.4 | N58: 2 | Q58: 441199439.4 | R58: 3 | U58: 441199439.4 | V58: 0 | Y58: 441199439.4 | Z58: 0 | AC58: 441199439.4 | AD58: 0 | AG58: 441199439.4 | AH58: 0
A59: 449221247.4 | B59: 2 | E59: 449221247.4 | F59: 2 | I59: 449221247.4 | J59: 6 | M59: 449221247.4 | N59: 4 | Q59: 449221247.4 | R59: 2 | U59: 449221247.4 | V59: 0 | Y59: 449221247.4 | Z59: 0 | AC59: 449221247.4 | AD59: 0 | AG59: 449221247.4 | AH59: 0
A60: 457243055.4 | B60: 1 | E60: 457243055.4 | F60: 1 | I60: 457243055.4 | J60: 13 | M60: 457243055.4 | N60: 4 | Q60: 457243055.4 | R60: 0 | U60: 457243055.4 | V60: 0 | Y60: 457243055.4 | Z60: 0 | AC60: 457243055.4 | AD60: 0 | AG60: 457243055.4 | AH60: 0
A61: 465264863.4 | B61: 1 | E61: 465264863.4 | F61: 0 | I61: 465264863.4 | J61: 4 | M61: 465264863.4 | N61: 3 | Q61: 465264863.4 | R61: 1 | U61: 465264863.4 | V61: 0 | Y61: 465264863.4 | Z61: 0 | AC61: 465264863.4 | AD61: 0 | AG61: 465264863.4 | AH61: 0
A62: 473286671.4 | B62: 0 | E62: 473286671.4 | F62: 0 | I62: 473286671.4 | J62: 7 | M62: 473286671.4 | N62: 5 | Q62: 473286671.4 | R62: 2 | U62: 473286671.4 | V62: 0 | Y62: 473286671.4 | Z62: 0 | AC62: 473286671.4 | AD62: 0 | AG62: 473286671.4 | AH62: 0
A63: 481308479.4 | B63: 0 | E63: 481308479.4 | F63: 0 | I63: 481308479.4 | J63: 3 | M63: 481308479.4 | N63: 6 | Q63: 481308479.4 | R63: 0 | U63: 481308479.4 | V63: 0 | Y63: 481308479.4 | Z63: 0 | AC63: 481308479.4 | AD63: 0 | AG63: 481308479.4 | AH63: 0
A64: 489330287.4 | B64: 0 | E64: 489330287.4 | F64: 2 | I64: 489330287.4 | J64: 4 | M64: 489330287.4 | N64: 1 | Q64: 489330287.4 | R64: 2 | U64: 489330287.4 | V64: 0 | Y64: 489330287.4 | Z64: 0 | AC64: 489330287.4 | AD64: 0 | AG64: 489330287.4 | AH64: 0
A65: 497352095.4 | B65: 0 | E65: 497352095.4 | F65: 0 | I65: 497352095.4 | J65: 4 | M65: 497352095.4 | N65: 1 | Q65: 497352095.4 | R65: 2 | U65: 497352095.4 | V65: 0 | Y65: 497352095.4 | Z65: 0 | AC65: 497352095.4 | AD65: 0 | AG65: 497352095.4 | AH65: 0
A66: 505373903.4 | B66: 0 | E66: 505373903.4 | F66: 1 | I66: 505373903.4 | J66: 3 | M66: 505373903.4 | N66: 1 | Q66: 505373903.4 | R66: 0 | U66: 505373903.4 | V66: 0 | Y66: 505373903.4 | Z66: 0 | AC66: 505373903.4 | AD66: 0 | AG66: 505373903.4 | AH66: 0
A67: 513395711.3 | B67: 1 | E67: 513395711.3 | F67: 0 | I67: 513395711.3 | J67: 2 | M67: 513395711.3 | N67: 2 | Q67: 513395711.3 | R67: 1 | U67: 513395711.3 | V67: 0 | Y67: 513395711.3 | Z67: 0 | AC67: 513395711.3 | AD67: 0 | AG67: 513395711.3 | AH67: 0
A68: 521417519.3 | B68: 0 | E68: 521417519.3 | F68: 1 | I68: 521417519.3 | J68: 3 | M68: 521417519.3 | N68: 2 | Q68: 521417519.3 | R68: 0 | U68: 521417519.3 | V68: 0 | Y68: 521417519.3 | Z68: 0 | AC68: 521417519.3 | AD68: 0 | AG68: 521417519.3 | AH68: 0
A69: 529439327.3 | B69: 0 | E69: 529439327.3 | F69: 0 | I69: 529439327.3 | J69: 3 | M69: 529439327.3 | N69: 2 | Q69: 529439327.3 | R69: 1 | U69: 529439327.3 | V69: 0 | Y69: 529439327.3 | Z69: 0 | AC69: 529439327.3 | AD69: 0 | AG69: 529439327.3 | AH69: 0
A70: 537461135.3 | B70: 1 | E70: 537461135.3 | F70: 0 | I70: 537461135.3 | J70: 4 | M70: 537461135.3 | N70: 2 | Q70: 537461135.3 | R70: 1 | U70: 537461135.3 | V70: 0 | Y70: 537461135.3 | Z70: 0 | AC70: 537461135.3 | AD70: 0 | AG70: 537461135.3 | AH70: 0
A71: 545482943.3 | B71: 0 | E71: 545482943.3 | F71: 0 | I71: 545482943.3 | J71: 3 | M71: 545482943.3 | N71: 2 | Q71: 545482943.3 | R71: 1 | U71: 545482943.3 | V71: 0 | Y71: 545482943.3 | Z71: 0 | AC71: 545482943.3 | AD71: 0 | AG71: 545482943.3 | AH71: 0
A72: 553504751.3 | B72: 0 | E72: 553504751.3 | F72: 0 | I72: 553504751.3 | J72: 0 | M72: 553504751.3 | N72: 1 | Q72: 553504751.3 | R72: 0 | U72: 553504751.3 | V72: 0 | Y72: 553504751.3 | Z72: 0 | AC72: 553504751.3 | AD72: 0 | AG72: 553504751.3 | AH72: 0
A73: 561526559.3 | B73: 1 | E73: 561526559.3 | F73: 0 | I73: 561526559.3 | J73: 0 | M73: 561526559.3 | N73: 0 | Q73: 561526559.3 | R73: 0 | U73: 561526559.3 | V73: 0 | Y73: 561526559.3 | Z73: 0 | AC73: 561526559.3 | AD73: 0 | AG73: 561526559.3 | AH73: 0
A74: 569548367.3 | B74: 1 | E74: 569548367.3 | F74: 0 | I74: 569548367.3 | J74: 2 | M74: 569548367.3 | N74: 3 | Q74: 569548367.3 | R74: 0 | U74: 569548367.3 | V74: 0 | Y74: 569548367.3 | Z74: 0 | AC74: 569548367.3 | AD74: 0 | AG74: 569548367.3 | AH74: 0
A75: 577570175.3 | B75: 0 | E75: 577570175.3 | F75: 0 | I75: 577570175.3 | J75: 0 | M75: 577570175.3 | N75: 0 | Q75: 577570175.3 | R75: 1 | U75: 577570175.3 | V75: 0 | Y75: 577570175.3 | Z75: 0 | AC75: 577570175.3 | AD75: 0 | AG75: 577570175.3 | AH75: 0
A76: 585591983.2 | B76: 1 | E76: 585591983.2 | F76: 0 | I76: 585591983.2 | J76: 3 | M76: 585591983.2 | N76: 0 | Q76: 585591983.2 | R76: 0 | U76: 585591983.2 | V76: 0 | Y76: 585591983.2 | Z76: 0 | AC76: 585591983.2 | AD76: 0 | AG76: 585591983.2 | AH76: 0
A77: 593613791.2 | B77: 0 | E77: 593613791.2 | F77: 0 | I77: 593613791.2 | J77: 4 | M77: 593613791.2 | N77: 1 | Q77: 593613791.2 | R77: 1 | U77: 593613791.2 | V77: 0 | Y77: 593613791.2 | Z77: 0 | AC77: 593613791.2 | AD77: 0 | AG77: 593613791.2 | AH77: 0
A78: 601635599.2 | B78: 0 | E78: 601635599.2 | F78: 0 | I78: 601635599.2 | J78: 0 | M78: 601635599.2 | N78: 2 | Q78: 601635599.2 | R78: 0 | U78: 601635599.2 | V78: 0 | Y78: 601635599.2 | Z78: 0 | AC78: 601635599.2 | AD78: 0 | AG78: 601635599.2 | AH78: 0
A79: 609657407.2 | B79: 1 | E79: 609657407.2 | F79: 0 | I79: 609657407.2 | J79: 4 | M79: 609657407.2 | N79: 0 | Q79: 609657407.2 | R79: 0 | U79: 609657407.2 | V79: 0 | Y79: 609657407.2 | Z79: 0 | AC79: 609657407.2 | AD79: 0 | AG79: 609657407.2 | AH79: 0
A80: 617679215.2 | B80: 0 | E80: 617679215.2 | F80: 0 | I80: 617679215.2 | J80: 0 | M80: 617679215.2 | N80: 1 | Q80: 617679215.2 | R80: 0 | U80: 617679215.2 | V80: 0 | Y80: 617679215.2 | Z80: 0 | AC80: 617679215.2 | AD80: 0 | AG80: 617679215.2 | AH80: 0
A81: 625701023.2 | B81: 1 | E81: 625701023.2 | F81: 0 | I81: 625701023.2 | J81: 1 | M81: 625701023.2 | N81: 1 | Q81: 625701023.2 | R81: 0 | U81: 625701023.2 | V81: 0 | Y81: 625701023.2 | Z81: 0 | AC81: 625701023.2 | AD81: 0 | AG81: 625701023.2 | AH81: 0
A82: 633722831.2 | B82: 0 | E82: 633722831.2 | F82: 0 | I82: 633722831.2 | J82: 0 | M82: 633722831.2 | N82: 0 | Q82: 633722831.2 | R82: 0 | U82: 633722831.2 | V82: 0 | Y82: 633722831.2 | Z82: 0 | AC82: 633722831.2 | AD82: 0 | AG82: 633722831.2 | AH82: 0
A83: 641744639.2 | B83: 0 | E83: 641744639.2 | F83: 0 | I83: 641744639.2 | J83: 0 | M83: 641744639.2 | N83: 3 | Q83: 641744639.2 | R83: 0 | U83: 641744639.2 | V83: 0 | Y83: 641744639.2 | Z83: 0 | AC83: 641744639.2 | AD83: 0 | AG83: 641744639.2 | AH83: 0
A84: 649766447.2 | B84: 0 | E84: 649766447.2 | F84: 0 | I84: 649766447.2 | J84: 2 | M84: 649766447.2 | N84: 0 | Q84: 649766447.2 | R84: 0 | U84: 649766447.2 | V84: 0 | Y84: 649766447.2 | Z84: 0 | AC84: 649766447.2 | AD84: 0 | AG84: 649766447.2 | AH84: 0
A85: 657788255.2 | B85: 0 | E85: 657788255.2 | F85: 0 | I85: 657788255.2 | J85: 4 | M85: 657788255.2 | N85: 0 | Q85: 657788255.2 | R85: 1 | U85: 657788255.2 | V85: 0 | Y85: 657788255.2 | Z85: 0 | AC85: 657788255.2 | AD85: 0 | AG85: 657788255.2 | AH85: 0
A86: 665810063.1 | B86: 0 | E86: 665810063.1 | F86: 0 | I86: 665810063.1 | J86: 2 | M86: 665810063.1 | N86: 0 | Q86: 665810063.1 | R86: 0 | U86: 665810063.1 | V86: 0 | Y86: 665810063.1 | Z86: 0 | AC86: 665810063.1 | AD86: 0 | AG86: 665810063.1 | AH86: 0
A87: 673831871.1 | B87: 0 | E87: 673831871.1 | F87: 0 | I87: 673831871.1 | J87: 1 | M87: 673831871.1 | N87: 0 | Q87: 673831871.1 | R87: 1 | U87: 673831871.1 | V87: 0 | Y87: 673831871.1 | Z87: 0 | AC87: 673831871.1 | AD87: 0 | AG87: 673831871.1 | AH87: 0
A88: 681853679.1 | B88: 0 | E88: 681853679.1 | F88: 0 | I88: 681853679.1 | J88: 0 | M88: 681853679.1 | N88: 0 | Q88: 681853679.1 | R88: 0 | U88: 681853679.1 | V88: 0 | Y88: 681853679.1 | Z88: 0 | AC88: 681853679.1 | AD88: 0 | AG88: 681853679.1 | AH88: 0
A89: 689875487.1 | B89: 0 | E89: 689875487.1 | F89: 0 | I89: 689875487.1 | J89: 0 | M89: 689875487.1 | N89: 0 | Q89: 689875487.1 | R89: 0 | U89: 689875487.1 | V89: 0 | Y89: 689875487.1 | Z89: 0 | AC89: 689875487.1 | AD89: 0 | AG89: 689875487.1 | AH89: 0
A90: 697897295.1 | B90: 0 | E90: 697897295.1 | F90: 0 | I90: 697897295.1 | J90: 1 | M90: 697897295.1 | N90: 0 | Q90: 697897295.1 | R90: 0 | U90: 697897295.1 | V90: 0 | Y90: 697897295.1 | Z90: 0 | AC90: 697897295.1 | AD90: 0 | AG90: 697897295.1 | AH90: 0
A91: 705919103.1 | B91: 0 | E91: 705919103.1 | F91: 0 | I91: 705919103.1 | J91: 0 | M91: 705919103.1 | N91: 2 | Q91: 705919103.1 | R91: 0 | U91: 705919103.1 | V91: 0 | Y91: 705919103.1 | Z91: 0 | AC91: 705919103.1 | AD91: 0 | AG91: 705919103.1 | AH91: 0
A92: 713940911.1 | B92: 0 | E92: 713940911.1 | F92: 0 | I92: 713940911.1 | J92: 1 | M92: 713940911.1 | N92: 0 | Q92: 713940911.1 | R92: 0 | U92: 713940911.1 | V92: 0 | Y92: 713940911.1 | Z92: 0 | AC92: 713940911.1 | AD92: 0 | AG92: 713940911.1 | AH92: 0
A93: 721962719.1 | B93: 0 | E93: 721962719.1 | F93: 0 | I93: 721962719.1 | J93: 0 | M93: 721962719.1 | N93: 0 | Q93: 721962719.1 | R93: 0 | U93: 721962719.1 | V93: 0 | Y93: 721962719.1 | Z93: 0 | AC93: 721962719.1 | AD93: 0 | AG93: 721962719.1 | AH93: 0
A94: 729984527.1 | B94: 0 | E94: 729984527.1 | F94: 0 | I94: 729984527.1 | J94: 0 | M94: 729984527.1 | N94: 0 | Q94: 729984527.1 | R94: 0 | U94: 729984527.1 | V94: 0 | Y94: 729984527.1 | Z94: 0 | AC94: 729984527.1 | AD94: 0 | AG94: 729984527.1 | AH94: 0
A95: 738006335.1 | B95: 0 | E95: 738006335.1 | F95: 0 | I95: 738006335.1 | J95: 0 | M95: 738006335.1 | N95: 1 | Q95: 738006335.1 | R95: 1 | U95: 738006335.1 | V95: 0 | Y95: 738006335.1 | Z95: 0 | AC95: 738006335.1 | AD95: 0 | AG95: 738006335.1 | AH95: 0
A96: 746028143 | B96: 0 | E96: 746028143 | F96: 0 | I96: 746028143 | J96: 0 | M96: 746028143 | N96: 0 | Q96: 746028143 | R96: 0 | U96: 746028143 | V96: 0 | Y96: 746028143 | Z96: 0 | AC96: 746028143 | AD96: 0 | AG96: 746028143 | AH96: 0
A97: 754049951 | B97: 0 | E97: 754049951 | F97: 0 | I97: 754049951 | J97: 0 | M97: 754049951 | N97: 0 | Q97: 754049951 | R97: 0 | U97: 754049951 | V97: 0 | Y97: 754049951 | Z97: 0 | AC97: 754049951 | AD97: 0 | AG97: 754049951 | AH97: 0
A98: 762071759 | B98: 0 | E98: 762071759 | F98: 0 | I98: 762071759 | J98: 0 | M98: 762071759 | N98: 0 | Q98: 762071759 | R98: 0 | U98: 762071759 | V98: 0 | Y98: 762071759 | Z98: 0 | AC98: 762071759 | AD98: 0 | AG98: 762071759 | AH98: 0
A99: 770093567 | B99: 0 | E99: 770093567 | F99: 0 | I99: 770093567 | J99: 1 | M99: 770093567 | N99: 0 | Q99: 770093567 | R99: 0 | U99: 770093567 | V99: 0 | Y99: 770093567 | Z99: 0 | AC99: 770093567 | AD99: 0 | AG99: 770093567 | AH99: 0
A100: 778115375 | B100: 0 | E100: 778115375 | F100: 0 | I100: 778115375 | J100: 0 | M100: 778115375 | N100: 0 | Q100: 778115375 | R100: 1 | U100: 778115375 | V100: 0 | Y100: 778115375 | Z100: 0 | AC100: 778115375 | AD100: 0 | AG100: 778115375 | AH100: 0
A101: 786137183 | B101: 0 | E101: 786137183 | F101: 0 | I101: 786137183 | J101: 1 | M101: 786137183 | N101: 0 | Q101: 786137183 | R101: 0 | U101: 786137183 | V101: 0 | Y101: 786137183 | Z101: 0 | AC101: 786137183 | AD101: 0 | AG101: 786137183 | AH101: 0
A102: 794158991 | B102: 1 | E102: 794158991 | F102: 1 | I102: 794158991 | J102: 4 | M102: 794158991 | N102: 6 | Q102: 794158991 | R102: 1 | U102: 794158991 | V102: 0 | Y102: 794158991 | Z102: 0 | AC102: 794158991 | AD102: 0 | AG102: 794158991 | AH102: 0

Sheet Simulation Output 3 Graph Data (hidden)
A1: =#REF! ->  | B1: Loss Distribution | C1: =#REF! ->  | D1: Cumulative Loss | E1: =#REF! ->  | F1: Loss Distribution | G1: =#REF! ->  | H1: Cumulative Loss | I1: =#REF! ->  | J1: Loss Distribution | K1: =#REF! ->  | L1: Cumulative Loss | M1: =#REF! ->  | N1: Loss Distribution | O1: =#REF! ->  | P1: Cumulative Loss
A2: Bins | B2: Frequency | C2: Year | D2: Yearly Loss | E2: Bins | F2: Frequency | G2: Year | H2: Yearly Loss | I2: Bins | J2: Frequency | K2: Year | L2: Yearly Loss | M2: Bins | N2: Frequency | O2: Year | P2: Yearly Loss
A3: 0 | B3: 109 | C3: 1 | D3: 3623581.561 | E3: 0 | F3: 108 | G3: 1 | H3: 5611276.017 | I3: 0 | J3: 98 | K3: 1 | L3: 5484899.734 | M3: 0 | N3: 111 | O3: 1 | P3: 5304777.702
A4: 8172407.035 | B4: 349 | C4: 2 | D4: 7124071.422 | E4: 8172407.035 | F4: 427 | G4: 2 | H4: 8033505.502 | I4: 8172407.035 | J4: 180 | K4: 2 | L4: 8095163.422 | M4: 8172407.035 | N4: 230 | O4: 2 | P4: 7648917.624
A5: 16344814.07 | B5: 535 | C5: 3 | D5: 10343733.59 | E5: 16344814.07 | F5: 762 | G5: 3 | H5: 10356799.24 | I5: 16344814.07 | J5: 418 | K5: 3 | L5: 10436011.73 | M5: 16344814.07 | N5: 472 | O5: 3 | P5: 9947942.347
A6: 24517221.11 | B6: 719 | C6: 4 | D6: 13359379.8 | E6: 24517221.11 | F6: 979 | G6: 4 | H6: 12749541.22 | I6: 24517221.11 | J6: 608 | K6: 4 | L6: 12790843.31 | M6: 24517221.11 | N6: 631 | O6: 4 | P6: 12291053.31
A7: 32689628.14 | B7: 748 | C7: 5 | D7: 16557225.71 | E7: 32689628.14 | F7: 1133 | G7: 5 | H7: 14893500.09 | I7: 32689628.14 | J7: 715 | K7: 5 | L7: 14987315.05 | M7: 32689628.14 | N7: 779 | O7: 5 | P7: 14570205.99
A8: 40862035.18 | B8: 798 | C8: 6 | D8: 19640047.76 | E8: 40862035.18 | F8: 1103 | G8: 6 | H8: 16998456.67 | I8: 40862035.18 | J8: 776 | K8: 6 | L8: 17299540.34 | M8: 40862035.18 | N8: 804 | O8: 6 | P8: 16821128.06
A9: 49034442.21 | B9: 768 | C9: 7 | D9: 22597211.07 | E9: 49034442.21 | F9: 1007 | G9: 7 | H9: 19078642.34 | I9: 49034442.21 | J9: 852 | K9: 7 | L9: 19470830.2 | M9: 49034442.21 | N9: 802 | O9: 7 | P9: 19042991.31
A10: 57206849.25 | B10: 700 | C10: 8 | D10: 25346707.81 | E10: 57206849.25 | F10: 851 | G10: 8 | H10: 20970445.37 | I10: 57206849.25 | J10: 841 | K10: 8 | L10: 21685865.06 | M10: 57206849.25 | N10: 780 | O10: 8 | P10: 21325896.46
A11: 65379256.28 | B11: 630 | C11: 9 | D11: 28117454.39 | E11: 65379256.28 | F11: 753 | G11: 9 | H11: 22823701.88 | I11: 65379256.28 | J11: 816 | K11: 9 | L11: 24020512.03 | M11: 65379256.28 | N11: 821 | O11: 9 | P11: 23523696.02
A12: 73551663.32 | B12: 598 | C12: 10 | D12: 30667000.83 | E12: 73551663.32 | F12: 605 | G12: 10 | H12: 24753084.63 | I12: 73551663.32 | J12: 734 | K12: 10 | L12: 26151994.28 | M12: 73551663.32 | N12: 690 | O12: 10 | P12: 25463776.53
A13: 81724070.35 | B13: 478 | C13: 11 | D13: 33082043.57 | E13: 81724070.35 | F13: 473 | G13: 11 | H13: 26480361.66 | I13: 81724070.35 | J13: 633 | K13: 11 | L13: 28129568.45 | M13: 81724070.35 | N13: 601 | O13: 11 | P13: 27495904.14
A14: 89896477.39 | B14: 457 | C14: 12 | D14: 35545371.37 | E14: 89896477.39 | F14: 404 | G14: 12 | H14: 28091902.73 | I14: 89896477.39 | J14: 548 | K14: 12 | L14: 30087397.12 | M14: 89896477.39 | N14: 508 | O14: 12 | P14: 29541936.17
A15: 98068884.42 | B15: 424 | C15: 13 | D15: 37993940.45 | E15: 98068884.42 | F15: 303 | G15: 13 | H15: 29626677.38 | I15: 98068884.42 | J15: 487 | K15: 13 | L15: 32180824.88 | M15: 98068884.42 | N15: 472 | O15: 13 | P15: 31538958.47
A16: 106241291.5 | B16: 376 | C16: 14 | D16: 40146168.17 | E16: 106241291.5 | F16: 240 | G16: 14 | H16: 31157620.43 | I16: 106241291.5 | J16: 396 | K16: 14 | L16: 34182825.55 | M16: 106241291.5 | N16: 411 | O16: 14 | P16: 33562226.48
A17: 114413698.5 | B17: 325 | C17: 15 | D17: 42254991.75 | E17: 114413698.5 | F17: 213 | G17: 15 | H17: 32632241.32 | I17: 114413698.5 | J17: 343 | K17: 15 | L17: 36346523.78 | M17: 114413698.5 | N17: 339 | O17: 15 | P17: 35408175.59
A18: 122586105.5 | B18: 291 | C18: 16 | D18: 44195010.04 | E18: 122586105.5 | F18: 122 | G18: 16 | H18: 34112129.04 | I18: 122586105.5 | J18: 280 | K18: 16 | L18: 38288326.18 | M18: 122586105.5 | N18: 301 | O18: 16 | P18: 37294487.98
A19: 130758512.6 | B19: 247 | C19: 17 | D19: 46079400.71 | E19: 130758512.6 | F19: 123 | G19: 17 | H19: 35417097.34 | I19: 130758512.6 | J19: 246 | K19: 17 | L19: 40129301.53 | M19: 130758512.6 | N19: 229 | O19: 17 | P19: 39177372.91
A20: 138930919.6 | B20: 193 | C20: 18 | D20: 47864370.8 | E20: 138930919.6 | F20: 92 | G20: 18 | H20: 36711751.58 | I20: 138930919.6 | J20: 198 | K20: 18 | L20: 42000040.32 | M20: 138930919.6 | N20: 183 | O20: 18 | P20: 41092396.89
A21: 147103326.6 | B21: 168 | C21: 19 | D21: 49696256.01 | E21: 147103326.6 | F21: 60 | G21: 19 | H21: 38015055.27 | I21: 147103326.6 | J21: 168 | K21: 19 | L21: 43722897.82 | M21: 147103326.6 | N21: 161 | O21: 19 | P21: 42829784.48
A22: 155275733.7 | B22: 153 | C22: 20 | D22: 51790408.18 | E22: 155275733.7 | F22: 61 | G22: 20 | H22: 39229358.28 | I22: 155275733.7 | J22: 137 | K22: 20 | L22: 45525509.85 | M22: 155275733.7 | N22: 158 | O22: 20 | P22: 44592826.8
A23: 163448140.7 | B23: 118 | C23: 21 | D23: 53567802.53 | E23: 163448140.7 | F23: 43 | G23: 21 | H23: 40407240.78 | I23: 163448140.7 | J23: 108 | K23: 21 | L23: 47136763.86 | M23: 163448140.7 | N23: 84 | O23: 21 | P23: 46273330.28
A24: 171620547.7 | B24: 94 | C24: 22 | D24: 55141525.73 | E24: 171620547.7 | F24: 27 | G24: 22 | H24: 41515503.3 | I24: 171620547.7 | J24: 76 | K24: 22 | L24: 48785309.63 | M24: 171620547.7 | N24: 79 | O24: 22 | P24: 47991311.71
A25: 179792954.8 | B25: 87 | C25: 23 | D25: 56661687.1 | E25: 179792954.8 | F25: 19 | G25: 23 | H25: 42623693.43 | I25: 179792954.8 | J25: 77 | K25: 23 | L25: 50404677.63 | M25: 179792954.8 | N25: 72 | O25: 23 | P25: 49562642.29
A26: 187965361.8 | B26: 75 | C26: 24 | D26: 58307146.82 | E26: 187965361.8 | F26: 23 | G26: 24 | H26: 43650062.69 | I26: 187965361.8 | J26: 53 | K26: 24 | L26: 52030342.27 | M26: 187965361.8 | N26: 49 | O26: 24 | P26: 51239858.14
A27: 196137768.8 | B27: 60 | C27: 25 | D27: 59626980.27 | E27: 196137768.8 | F27: 10 | G27: 25 | H27: 44639441.73 | I27: 196137768.8 | J27: 41 | K27: 25 | L27: 53530260.89 | M27: 196137768.8 | N27: 44 | O27: 25 | P27: 52830551.17
A28: 204310175.9 | B28: 64 | C28: 26 | D28: 61049205.4 | E28: 204310175.9 | F28: 14 | G28: 26 | H28: 45561335.98 | I28: 204310175.9 | J28: 25 | K28: 26 | L28: 55176991.6 | M28: 204310175.9 | N28: 37 | O28: 26 | P28: 54404861.58
A29: 212482582.9 | B29: 47 | C29: 27 | D29: 62556840.63 | E29: 212482582.9 | F29: 7 | G29: 27 | H29: 46495612.65 | I29: 212482582.9 | J29: 27 | K29: 27 | L29: 56841566.11 | M29: 212482582.9 | N29: 36 | O29: 27 | P29: 55888973.49
A30: 220654990 | B30: 54 | C30: 28 | D30: 63842236.89 | E30: 220654990 | F30: 9 | G30: 28 | H30: 47377828.84 | I30: 220654990 | J30: 26 | K30: 28 | L30: 58362614.85 | M30: 220654990 | N30: 24 | O30: 28 | P30: 57377333.53
A31: 228827397 | B31: 49 | C31: 29 | D31: 65047240.03 | E31: 228827397 | F31: 4 | G31: 29 | H31: 48295380.35 | I31: 228827397 | J31: 15 | K31: 29 | L31: 59859239.59 | M31: 228827397 | N31: 13 | O31: 29 | P31: 58870548.27
A32: 236999804 | B32: 38 | C32: 30 | D32: 66200327.41 | E32: 236999804 | F32: 4 | G32: 30 | H32: 49147291.88 | I32: 236999804 | J32: 12 | K32: 30 | L32: 61340312.06 | M32: 236999804 | N32: 22 | O32: 30 | P32: 60322668.05
A33: 245172211.1 | B33: 34 | C33: 31 | D33: 67335390.55 | E33: 245172211.1 | F33: 1 | G33: 31 | H33: 49965128.84 | I33: 245172211.1 | J33: 7 | K33: 31 | L33: 62744356.93 | M33: 245172211.1 | N33: 11 | O33: 31 | P33: 61744634.6
A34: 253344618.1 | B34: 25 | C34: 32 | D34: 68447384.67 | E34: 253344618.1 | F34: 3 | G34: 32 | H34: 50711180.26 | I34: 253344618.1 | J34: 13 | K34: 32 | L34: 64048697.51 | M34: 253344618.1 | N34: 8 | O34: 32 | P34: 63045788.36
A35: 261517025.1 | B35: 31 | C35: 33 | D35: 69580927.27 | E35: 261517025.1 | F35: 1 | G35: 33 | H35: 51412188.35 | I35: 261517025.1 | J35: 10 | K35: 33 | L35: 65403174.77 | M35: 261517025.1 | N35: 9 | O35: 33 | P35: 64428501.69
A36: 269689432.2 | B36: 22 | C36: 34 | D36: 70579918.73 | E36: 269689432.2 | F36: 3 | G36: 34 | H36: 52054147.36 | I36: 269689432.2 | J36: 10 | K36: 34 | L36: 66704272.72 | M36: 269689432.2 | N36: 7 | O36: 34 | P36: 65706699.67
A37: 277861839.2 | B37: 17 | C37: 35 | D37: 71529245.26 | E37: 277861839.2 | F37: 5 | G37: 35 | H37: 52698633.86 | I37: 277861839.2 | J37: 1 | K37: 35 | L37: 67914825.58 | M37: 277861839.2 | N37: 5 | O37: 35 | P37: 66959226.58
A38: 286034246.2 | B38: 11 | C38: 36 | D38: 72555127.16 | E38: 286034246.2 | F38: 2 | G38: 36 | H38: 53275065.83 | I38: 286034246.2 | J38: 6 | K38: 36 | L38: 69245166.32 | M38: 286034246.2 | N38: 4 | O38: 36 | P38: 68246655.3
A39: 294206653.3 | B39: 10 | C39: 37 | D39: 73479529.58 | E39: 294206653.3 | F39: 0 | G39: 37 | H39: 53950023.75 | I39: 294206653.3 | J39: 2 | K39: 37 | L39: 70415232.86 | M39: 294206653.3 | N39: 1 | O39: 37 | P39: 69453218.82
A40: 302379060.3 | B40: 7 | C40: 38 | D40: 74344397.69 | E40: 302379060.3 | F40: 2 | G40: 38 | H40: 54537928.96 | I40: 302379060.3 | J40: 0 | K40: 38 | L40: 71736323.3 | M40: 302379060.3 | N40: 2 | O40: 38 | P40: 70619304.2
A41: 310551467.3 | B41: 11 | C41: 39 | D41: 75250715.53 | E41: 310551467.3 | F41: 0 | G41: 39 | H41: 55098501.8 | I41: 310551467.3 | J41: 1 | K41: 39 | L41: 72886975.52 | M41: 310551467.3 | N41: 0 | O41: 39 | P41: 71853803.94
A42: 318723874.4 | B42: 10 | C42: 40 | D42: 76107421.19 | E42: 318723874.4 | F42: 0 | G42: 40 | H42: 55660530.96 | I42: 318723874.4 | J42: 3 | K42: 40 | L42: 74101383.81 | M42: 318723874.4 | N42: 0 | O42: 40 | P42: 73015852.12
A43: 326896281.4 | B43: 4 | E43: 326896281.4 | F43: 1 | I43: 326896281.4 | J43: 2 | M43: 326896281.4 | N43: 0
A44: 335068688.4 | B44: 5 | E44: 335068688.4 | F44: 0 | I44: 335068688.4 | J44: 3 | M44: 335068688.4 | N44: 4
A45: 343241095.5 | B45: 6 | E45: 343241095.5 | F45: 0 | I45: 343241095.5 | J45: 2 | M45: 343241095.5 | N45: 0
A46: 351413502.5 | B46: 3 | E46: 351413502.5 | F46: 1 | I46: 351413502.5 | J46: 0 | M46: 351413502.5 | N46: 0
A47: 359585909.6 | B47: 6 | E47: 359585909.6 | F47: 0 | I47: 359585909.6 | J47: 0 | M47: 359585909.6 | N47: 0
A48: 367758316.6 | B48: 7 | E48: 367758316.6 | F48: 1 | I48: 367758316.6 | J48: 0 | M48: 367758316.6 | N48: 0
A49: 375930723.6 | B49: 2 | E49: 375930723.6 | F49: 0 | I49: 375930723.6 | J49: 1 | M49: 375930723.6 | N49: 1
A50: 384103130.7 | B50: 3 | E50: 384103130.7 | F50: 0 | I50: 384103130.7 | J50: 0 | M50: 384103130.7 | N50: 0
A51: 392275537.7 | B51: 1 | E51: 392275537.7 | F51: 0 | I51: 392275537.7 | J51: 2 | M51: 392275537.7 | N51: 1
A52: 400447944.7 | B52: 0 | E52: 400447944.7 | F52: 0 | I52: 400447944.7 | J52: 1 | M52: 400447944.7 | N52: 0
A53: 408620351.8 | B53: 2 | E53: 408620351.8 | F53: 0 | I53: 408620351.8 | J53: 1 | M53: 408620351.8 | N53: 0
A54: 416792758.8 | B54: 3 | E54: 416792758.8 | F54: 0 | I54: 416792758.8 | J54: 0 | M54: 416792758.8 | N54: 1
A55: 424965165.8 | B55: 2 | E55: 424965165.8 | F55: 0 | I55: 424965165.8 | J55: 0 | M55: 424965165.8 | N55: 1
A56: 433137572.9 | B56: 0 | E56: 433137572.9 | F56: 0 | I56: 433137572.9 | J56: 0 | M56: 433137572.9 | N56: 0
A57: 441309979.9 | B57: 1 | E57: 441309979.9 | F57: 0 | I57: 441309979.9 | J57: 0 | M57: 441309979.9 | N57: 0
A58: 449482386.9 | B58: 4 | E58: 449482386.9 | F58: 0 | I58: 449482386.9 | J58: 1 | M58: 449482386.9 | N58: 0
A59: 457654794 | B59: 1 | E59: 457654794 | F59: 0 | I59: 457654794 | J59: 0 | M59: 457654794 | N59: 1
A60: 465827201 | B60: 1 | E60: 465827201 | F60: 0 | I60: 465827201 | J60: 0 | M60: 465827201 | N60: 0
A61: 473999608 | B61: 4 | E61: 473999608 | F61: 0 | I61: 473999608 | J61: 0 | M61: 473999608 | N61: 0
A62: 482172015.1 | B62: 0 | E62: 482172015.1 | F62: 0 | I62: 482172015.1 | J62: 0 | M62: 482172015.1 | N62: 0
A63: 490344422.1 | B63: 1 | E63: 490344422.1 | F63: 0 | I63: 490344422.1 | J63: 0 | M63: 490344422.1 | N63: 1
A64: 498516829.2 | B64: 2 | E64: 498516829.2 | F64: 0 | I64: 498516829.2 | J64: 0 | M64: 498516829.2 | N64: 0
A65: 506689236.2 | B65: 1 | E65: 506689236.2 | F65: 0 | I65: 506689236.2 | J65: 0 | M65: 506689236.2 | N65: 0
A66: 514861643.2 | B66: 0 | E66: 514861643.2 | F66: 0 | I66: 514861643.2 | J66: 0 | M66: 514861643.2 | N66: 0
A67: 523034050.3 | B67: 2 | E67: 523034050.3 | F67: 0 | I67: 523034050.3 | J67: 0 | M67: 523034050.3 | N67: 0
A68: 531206457.3 | B68: 1 | E68: 531206457.3 | F68: 0 | I68: 531206457.3 | J68: 0 | M68: 531206457.3 | N68: 0
A69: 539378864.3 | B69: 1 | E69: 539378864.3 | F69: 0 | I69: 539378864.3 | J69: 0 | M69: 539378864.3 | N69: 0
A70: 547551271.4 | B70: 2 | E70: 547551271.4 | F70: 0 | I70: 547551271.4 | J70: 0 | M70: 547551271.4 | N70: 0
A71: 555723678.4 | B71: 1 | E71: 555723678.4 | F71: 0 | I71: 555723678.4 | J71: 0 | M71: 555723678.4 | N71: 0
A72: 563896085.4 | B72: 0 | E72: 563896085.4 | F72: 0 | I72: 563896085.4 | J72: 0 | M72: 563896085.4 | N72: 0
A73: 572068492.5 | B73: 0 | E73: 572068492.5 | F73: 0 | I73: 572068492.5 | J73: 0 | M73: 572068492.5 | N73: 0
A74: 580240899.5 | B74: 0 | E74: 580240899.5 | F74: 0 | I74: 580240899.5 | J74: 0 | M74: 580240899.5 | N74: 0
A75: 588413306.5 | B75: 0 | E75: 588413306.5 | F75: 0 | I75: 588413306.5 | J75: 0 | M75: 588413306.5 | N75: 0
A76: 596585713.6 | B76: 0 | E76: 596585713.6 | F76: 0 | I76: 596585713.6 | J76: 0 | M76: 596585713.6 | N76: 0
A77: 604758120.6 | B77: 0 | E77: 604758120.6 | F77: 0 | I77: 604758120.6 | J77: 0 | M77: 604758120.6 | N77: 0
A78: 612930527.6 | B78: 0 | E78: 612930527.6 | F78: 1 | I78: 612930527.6 | J78: 0 | M78: 612930527.6 | N78: 0
A79: 621102934.7 | B79: 0 | E79: 621102934.7 | F79: 0 | I79: 621102934.7 | J79: 0 | M79: 621102934.7 | N79: 0
A80: 629275341.7 | B80: 0 | E80: 629275341.7 | F80: 0 | I80: 629275341.7 | J80: 0 | M80: 629275341.7 | N80: 0
A81: 637447748.8 | B81: 0 | E81: 637447748.8 | F81: 0 | I81: 637447748.8 | J81: 0 | M81: 637447748.8 | N81: 0
A82: 645620155.8 | B82: 0 | E82: 645620155.8 | F82: 0 | I82: 645620155.8 | J82: 0 | M82: 645620155.8 | N82: 0
A83: 653792562.8 | B83: 1 | E83: 653792562.8 | F83: 0 | I83: 653792562.8 | J83: 0 | M83: 653792562.8 | N83: 0
A84: 661964969.9 | B84: 0 | E84: 661964969.9 | F84: 0 | I84: 661964969.9 | J84: 0 | M84: 661964969.9 | N84: 0
A85: 670137376.9 | B85: 0 | E85: 670137376.9 | F85: 0 | I85: 670137376.9 | J85: 0 | M85: 670137376.9 | N85: 0
A86: 678309783.9 | B86: 0 | E86: 678309783.9 | F86: 0 | I86: 678309783.9 | J86: 0 | M86: 678309783.9 | N86: 0
A87: 686482191 | B87: 0 | E87: 686482191 | F87: 0 | I87: 686482191 | J87: 0 | M87: 686482191 | N87: 0
A88: 694654598 | B88: 0 | E88: 694654598 | F88: 0 | I88: 694654598 | J88: 0 | M88: 694654598 | N88: 0
A89: 702827005 | B89: 0 | E89: 702827005 | F89: 0 | I89: 702827005 | J89: 0 | M89: 702827005 | N89: 0
A90: 710999412.1 | B90: 0 | E90: 710999412.1 | F90: 0 | I90: 710999412.1 | J90: 0 | M90: 710999412.1 | N90: 0
A91: 719171819.1 | B91: 0 | E91: 719171819.1 | F91: 0 | I91: 719171819.1 | J91: 0 | M91: 719171819.1 | N91: 0
A92: 727344226.1 | B92: 0 | E92: 727344226.1 | F92: 0 | I92: 727344226.1 | J92: 0 | M92: 727344226.1 | N92: 0
A93: 735516633.2 | B93: 1 | E93: 735516633.2 | F93: 0 | I93: 735516633.2 | J93: 0 | M93: 735516633.2 | N93: 0
A94: 743689040.2 | B94: 0 | E94: 743689040.2 | F94: 0 | I94: 743689040.2 | J94: 0 | M94: 743689040.2 | N94: 0
A95: 751861447.2 | B95: 0 | E95: 751861447.2 | F95: 0 | I95: 751861447.2 | J95: 0 | M95: 751861447.2 | N95: 0
A96: 760033854.3 | B96: 0 | E96: 760033854.3 | F96: 0 | I96: 760033854.3 | J96: 0 | M96: 760033854.3 | N96: 0
A97: 768206261.3 | B97: 0 | E97: 768206261.3 | F97: 0 | I97: 768206261.3 | J97: 0 | M97: 768206261.3 | N97: 0
A98: 776378668.4 | B98: 1 | E98: 776378668.4 | F98: 0 | I98: 776378668.4 | J98: 0 | M98: 776378668.4 | N98: 0
A99: 784551075.4 | B99: 0 | E99: 784551075.4 | F99: 0 | I99: 784551075.4 | J99: 0 | M99: 784551075.4 | N99: 0
A100: 792723482.4 | B100: 0 | E100: 792723482.4 | F100: 0 | I100: 792723482.4 | J100: 0 | M100: 792723482.4 | N100: 0
A101: 800895889.5 | B101: 0 | E101: 800895889.5 | F101: 0 | I101: 800895889.5 | J101: 0 | M101: 800895889.5 | N101: 0
A102: 809068296.5 | B102: 1 | E102: 809068296.5 | F102: 0 | I102: 809068296.5 | J102: 0 | M102: 809068296.5 | N102: 0
